Workbook

Sheet 大学院以外 (hidden)
A1: 特定行為区分別定員一覧（その他指定機関） | Z1: 2016/04/13 現在
A2: 指定研修機関 | B2: 施設名 | C2: 都道府県 | D2: 指定日 | E2: 年間募集回数 | F2: 共通科目 | G2: 呼吸器（気道確保に係るもの） | H2: 呼吸器（人工呼吸療法に係るもの） | I2: 呼吸器（長期呼吸療法に係るもの） | J2: 循環器 | K2: 心嚢ドレーン管理 | L2: 胸腔ドレーン管理 | M2: 腹腔ドレーン管理 | N2: ろう孔管理 | O2: 栄養に係るカテーテル管理（中心静脈カテーテル管理） | P2: 栄養に係るカテーテル管理（末梢留置型中心静脈注射用カテーテル管理） | Q2: 創傷管理 | R2: 創部ドレーン管理 | S2: 動脈血液ガス 分析 | T2: 透析管理 | U2: 栄養及び水分管理に係る薬剤投与 | V2: 感染に係る薬剤投与 | W2: 血糖コントロールに係る薬剤投与 | X2: 術後疼痛管理 | Y2: 循環動態に係る薬剤投与 | Z2: 精神及び神経症状に係る薬剤投与 | AA2: 皮膚損傷に係る薬剤投与
A3: 学校法人岩手医科大学岩手医科大学附属病院高度看護研修センター(岩手) | B3: 岩手医科大学附属病院高度看護研修センター | C3: 岩手 | D3: 平成27年10月 | E3: 1 | F3: 3 | Q3: 3
A4: 公益財団法人星総合病院 | B4: 公益財団法人星総合病院 | C4: 福島 | D4: 平成28年2月 | E4: 1 | F4: 3 | Q4: 3
A5: 学校法人自治医科大学 | B5: 自治医科大学 | C5: 栃木 | D5: 平成27年10月 | E5: 2 | F5: 30 | G5: 5 | H5: 5 | I5: 5 | J5: 5 | L5: 5 | M5: 5 | N5: 5 | O5: 5 | P5: 5 | Q5: 5 | R5: 5 | S5: 5 | T5: 5 | U5: 5 | V5: 5 | W5: 5 | Y5: 5 | Z5: 5 | AA5: 5
A6: 医療法人社団愛友会 | B6: 医療法人社団愛友会上尾中央総合病院 | C6: 埼玉 | D6: 平成27年10月 | E6: 1 | F6: 20 | G6: 20 | H6: 20 | J6: 20 | K6: 20 | R6: 20 | S6: 20 | Y6: 20
A7: 学校法人埼玉医科大学埼玉医科大学総合医療センター | B7: 学校法人埼玉医科大学埼玉医科大学総合医療センター | C7: 埼玉 | D7: 平成27年10月 | E7: 2 | F7: 6 | G7: 6 | H7: 6 | I7: 6 | N7: 6 | T7: 3
A8: 社会医療法人社団さつき会袖ヶ浦さつき台病院 | B8: 社会医療法人社団さつき会袖ヶ浦さつき台病院 | C8: 千葉 | D8: 平成27年10月 | E8: 1 | F8: 3 | Z8: 3
A9: 一般社団法人日本慢性期医療協会 | B9: 日本慢性期医療協会東京研修センター | C9: 東京 | D9: 平成27年10月 | E9: 1 | F9: 100 | H9: 15 | I9: 60 | Q9: 15 | U9: 60 | V9: 70 | W9: 60 | Z9: 45
A10: 公益社団法人地域医療振興協会JADECOM-NDC研修センター | B10: 公益社団法人地域医療振興協会東京ベイ・浦安市川医療センター | C10: 千葉 | D10: 平成27年10月 | E10: 1 | F10: 10 | G10: 10 | H10: 10 | I10: 10 | J10: 10 | K10: 10 | L10: 10 | M10: 10 | N10: 10 | O10: 10 | P10: 10 | Q10: 10 | R10: 10 | S10: 10 | T10: 10 | U10: 10 | V10: 10 | W10: 10 | X10: 10 | Y10: 10 | Z10: 10 | AA10: 10
A11: 公益社団法人日本看護協会 | B11: 公益社団法人日本看護協会 | C11: 東京 | D11: 平成27年10月 | E11: 1 | F11: 100 | G11: 15 | H11: 15 | I11: 15 | N11: 15 | O11: 15 | P11: 30 | Q11: 15 | R11: 15 | S11: 15 | U11: 15 | V11: 15
A12: 独立行政法人地域医療機能推進機構東京メディカルセンター | B12: 独立行政法人地域医療機能推進機構東京メディカルセンター | C12: 東京 | D12: 平成28年2月 | E12: 1 | F12: 4 | U12: 2 | W12: 2
A13: 社会医療法人愛仁会 | B13: 社会医療法人愛仁会 | C13: 愛知 | D13: 平成28年2月 | E13: 1 | F13: 3 | G13: 3 | H13: 3 | Q13: 3 | S13: 3 | T13: 3 | U13: 3 | W13: 3 | Y13: 3 | AA13: 3
A14: 国立大学法人滋賀医科大学 | B14: 国立大学法人滋賀医科大学 | C14: 滋賀 | D14: 平成28年2月 | E14: 1 | F14: 5 | G14: 51) | H14: 51) | I14: 51)
A15: 医療法人社団洛和会洛和会音羽病院 | B15: 医療法人社団洛和会洛和会音羽病院 | C15: 京都 | D15: 平成27年10月 | E15: 1 | F15: 10 | G15: 10 | H15: 10 | W15: 10 | X15: 10 | Y15: 10
A16: 公立大学法人奈良県立医科大学 | B16: 公立大学法人奈良県立医科大学 | C16: 奈良 | D16: 平成27年10月 | E16: 1 | F16: 5 | G16: 5 | H16: 5 | O16: 5 | S16: 5 | U16: 5 | X16: 5 | Y16: 5
A17: 小計（人） | F17: =SUM(F3:F16) -> 302 | G17: =SUM(G3:G16) -> 74 | H17: =SUM(H3:H16) -> 89 | I17: 96 | J17: 35 | K17: 30 | L17: 15 | M17: 15 | N17: 36 | O17: 35 | P17: 45 | Q17: 54 | R17: 50 | S17: 58 | T17: 21 | U17: 100 | V17: 100 | W17: 90 | X17: 25 | Y17: 53 | Z17: 63 | AA17: 18
A18: 年度計（人） | F18: =SUM(F3:F16)+F5+F7 -> 338 | G18: =SUM(G3:G16)+G5+G7 -> 85 | H18: =SUM(H3:H16)+H5+H7 -> 100 | I18: 107 | J18: 40 | K18: 30 | L18: 20 | M18: 20 | N18: 47 | O18: 40 | P18: 50 | Q18: 59 | R18: 55 | S18: 63 | T18: 29 | U18: 105 | V18: 105 | W18: 95 | X18: 25 | Y18: 58 | Z18: 68 | AA18: 23
A19: 1) 3つの区分すべてを履修することが条件

Sheet 大学院 (hidden)
A1: 特定行為区分別定員一覧（大学院）
A2: 指定研修機関 | B2: 施設名 | C2: 都道府県 | D2: 指定日 | E2: 複数回募集 | F2: 共通科目 | G2: 呼吸器（気道確保に係るもの） | H2: 呼吸器（人工呼吸療法に係るもの） | I2: 呼吸器（長期呼吸療法に係るもの） | J2: 循環器 | K2: 心嚢ドレーン管理 | L2: 胸腔ドレーン管理 | M2: 腹腔ドレーン管理 | N2: ろう孔管理 | O2: 栄養に係るカテーテル管理（中心静脈カテーテル管理） | P2: 栄養に係るカテーテル管理（末梢留置型中心静脈注射用カテーテル管理） | Q2: 創傷管理 | R2: 創部ドレーン管理 | S2: 動脈血液ガス 分析 | T2: 透析管理 | U2: 栄養及び水分管理に係る薬剤投与 | V2: 感染に係る薬剤投与 | W2: 血糖コントロールに係る薬剤投与 | X2: 術後疼痛管理 | Y2: 循環動態に係る薬剤投与 | Z2: 精神及び神経症状に係る薬剤投与 | AA2: 皮膚損傷に係る薬剤投与
A3: 学校法人東日本学園北海道医療大学大学院看護福祉学研究科看護学専攻 | B3: 北海道医療大学 | C3: 北海道 | D3: 平成27年10月 | E3: 1 | F3: 5 | G3: 5 | H3: 5 | N3: 5 | O3: 5 | P3: 5 | Q3: 5 | S3: 5 | U3: 5 | V3: 5 | W3: 5 | Y3: 5 | Z3: 5 | AA3: 5
A4: 学校法人東北文化学園大学東北文化学園大学大学院健康社会システム研究科健康福祉専攻 | B4: 学校法人東北文化学園大学東北文化学園大学大学院 | C4: 宮城 | D4: 平成28年2月 | E4: 1 | F4: 8 | G4: 8 | H4: 8 | I4: 8 | J4: 8 | K4: 8 | L4: 8 | M4: 8 | N4: 8 | O4: 8 | P4: 8 | Q4: 8 | R4: 8 | S4: 8 | T4: 8 | U4: 8 | V4: 8 | W4: 8 | X4: 8 | Y4: 8 | Z4: 8 | AA4: 8
A5: 学校法人青葉学園東京医療保健大学大学院看護学研究科 | B5: 東京医療保健大学 | C5: 東京 | D5: 平成27年10月 | E5: 1 | F5: 20 | G5: 20 | H5: 20 | I5: 20 | J5: 20 | K5: 20 | L5: 20 | M5: 20 | N5: 20 | O5: 20 | P5: 20 | Q5: 20 | R5: 20 | S5: 20 | T5: 20 | U5: 20 | V5: 20 | W5: 20 | X5: 20 | Y5: 20 | Z5: 20 | AA5: 20
A6: 学校法人国際医療福祉大学国際医療福祉大学大学院医療福祉学研究科保健医療学専攻 | B6: 国際医療福祉大学病院 | C6: 東京 | D6: 平成27年10月 | E6: 1 | F6: 20 | G6: 20 | H6: 20 | I6: 20 | J6: 20 | K6: 20 | L6: 20 | M6: 20 | N6: 20 | O6: 20 | P6: 20 | Q6: 20 | R6: 20 | S6: 20 | T6: 20 | U6: 20 | V6: 20 | W6: 20 | X6: 20 | Y6: 20 | Z6: 20 | AA6: 20
A7: 学校法人愛知医科大学大学院看護学研究科看護学専攻(愛知) | B7: 学校法人愛知医科大学 | C7: 愛知 | D7: 平成28年2月 | E7: 1 | F7: 6 | G7: 6 | H7: 6 | I7: 6 | J7: 6 | K7: 6 | L7: 6 | M7: 6 | N7: 6 | O7: 6 | P7: 6 | Q7: 6 | R7: 6 | S7: 6 | T7: 6 | U7: 6 | V7: 6 | W7: 6 | X7: 6 | Y7: 6 | Z7: 6 | AA7: 6
A8: 学校法人藤田学園藤田保健衛生大学大学院保健学研究科保健学専攻 | B8: 藤田保健衛生大学大学院保健学研究科保健学専攻 | C8: 愛知 | D8: 平成28年2月 | E8: 1 | F8: 15 | G8: 10 | H8: 10 | I8: 10 | J8: 10 | K8: 10 | L8: 10 | M8: 10 | N8: 10 | O8: 10 | P8: 10 | Q8: 10 | R8: 10 | S8: 10 | T8: 10 | U8: 10 | V8: 10 | W8: 10 | X8: 10 | Y8: 10 | Z8: 10 | AA8: 10
A9: 公立大学法人大分県立看護科学大学大学院看護学研究科看護学専攻 | B9: 公立大学法人大分県立看護科学大学大学院看護学研究科看護学専攻 | C9: 大分 | D9: 平成27年10月 | E9: 1 | F9: 10 | G9: 10 | H9: 10 | I9: 10 | J9: 10 | K9: 10 | L9: 10 | M9: 10 | N9: 10 | O9: 10 | P9: 10 | Q9: 10 | R9: 10 | S9: 10 | T9: 10 | U9: 10 | V9: 10 | W9: 10 | X9: 10 | Y9: 10 | Z9: 10 | AA9: 10
A10: 小計(人) | F10: =SUM(F3:F9) -> 84 | G10: =SUM(G3:G9) -> 79 | H10: =SUM(H3:H9) -> 79 | I10: 74 | J10: 74 | K10: 74 | L10: 74 | M10: 74 | N10: 79 | O10: 79 | P10: 79 | Q10: 79 | R10: 74 | S10: 79 | T10: 74 | U10: 79 | V10: 79 | W10: 79 | X10: 74 | Y10: 79 | Z10: 79 | AA10: 79

Sheet 都道府県番号 (2) (hidden)
A1: 都道府県名 | B1: 都道府県番号 | C1: 厚生局ID | D1: 通し番号 | E1: 作業用通し番号 | G1: 厚生局ID | H1: 厚生局名
A2: 北海道 | B2: 1 | C2: 1 | D2: 22 | G2: 1 | H2: 北海道
A3: 青森県 | B3: 2 | C3: 2 | D3: 6 | G3: 2 | H3: 東北
A4: 岩手県 | B4: 3 | C4: 2 | D4: 2 | G4: 3 | H4: 関東信越
A5: 宮城県 | B5: 4 | C5: 2 | D5: 8 | G5: 4 | H5: 東海北陸
A6: 秋田県 | B6: 5 | C6: 2 | D6: 5 | G6: 5 | H6: 近畿
A7: 山形県 | B7: 6 | C7: 2 | D7: 4 | G7: 6 | H7: 中国四国
A8: 福島県 | B8: 7 | C8: 2 | D8: 3 | G8: 7 | H8: 九州
A9: 茨城県 | B9: 8 | C9: 3 | D9: 4
A10: 栃木県 | B10: 9 | C10: 3 | D10: 2
A11: 群馬県 | B11: 10 | C11: 3 | D11: 10
A12: 埼玉県 | B12: 11 | C12: 3 | D12: 14
A13: 千葉県 | B13: 12 | C13: 3 | D13: 10
A14: 東京都 | B14: 13 | C14: 3 | D14: 52
A15: 神奈川県 | B15: 14 | C15: 3 | D15: 36
A16: 新潟県 | B16: 15 | C16: 3 | D16: 9
A17: 富山県 | B17: 16 | C17: 4 | D17: 9
A18: 石川県 | B18: 17 | C18: 4 | D18: 11
A19: 福井県 | B19: 18 | C19: 4 | D19: 3
A20: 山梨県 | B20: 19 | C20: 3 | D20: 3
A21: 長野県 | B21: 20 | C21: 3 | D21: 8
A22: 岐阜県 | B22: 21 | C22: 4 | D22: 15
A23: 静岡県 | B23: 22 | C23: 4 | D23: 17
A24: 愛知県 | B24: 23 | C24: 4 | D24: 24
A25: 三重県 | B25: 24 | C25: 4 | D25: 4
A26: 滋賀県 | B26: 25 | C26: 5 | D26: 1
A27: 京都府 | B27: 26 | C27: 5 | D27: 12
A28: 大阪府 | B28: 27 | C28: 5 | D28: 37
A29: 兵庫県 | B29: 28 | C29: 5 | D29: 15
A30: 奈良県 | B30: 29 | C30: 5 | D30: 3
A31: 和歌山県 | B31: 30 | C31: 5 | D31: 2
A32: 鳥取県 | B32: 31 | C32: 6 | D32: 2
A33: 島根県 | B33: 32 | C33: 6 | D33: 5
A34: 岡山県 | B34: 33 | C34: 6 | D34: 6
A35: 広島県 | B35: 34 | C35: 6 | D35: 12
A36: 山口県 | B36: 35 | C36: 6 | D36: 12
A37: 徳島県 | B37: 36 | C37: 6 | D37: 2
A38: 香川県 | B38: 37 | C38: 6 | D38: 4
A39: 愛媛県 | B39: 38 | C39: 6 | D39: 3
A40: 高知県 | B40: 39 | C40: 6 | D40: 3
A41: 福岡県 | B41: 40 | C41: 7 | D41: 31
A42: 佐賀県 | B42: 41 | C42: 7 | D42: 7
A43: 長崎県 | B43: 42 | C43: 7 | D43: 3
A44: 熊本県 | B44: 43 | C44: 7 | D44: 6
A45: 大分県 | B45: 44 | C45: 7 | D45: 7
A46: 宮崎県 | B46: 45 | C46: 7 | D46: 6
A47: 鹿児島県 | B47: 46 | C47: 7 | D47: 7
A48: 沖縄県 | B48: 47 | C48: 7 | D48: 11

Sheet 入力方法 (hidden)
A2: 指定研修機関番号 管理簿 登録方法
A4: 新規登録
A5: 1 | B5: seq番号を入力する
A6: 2 | B6: 背景色黄色の項目「年（西暦）」、「指定研修機関名」、「都道府県」を入力する
A7: 3 | B7: 「都道府県」にフィルターをかけ、都道府県別整理番号を確認し、入力する
A8: 4 | B8: フィルターを解除し、入力を確認する
A11: 入力方法
A12: Sheet:基本データベース
A13: 1 | B13: D列、E列、G列は自動入力設定している。この列には入力しない。
B14: 指定審査の後、【重要】指定研修機関番号にデータを入力すると、このsheetにも反映される。
C15: 自動入力設定されている項目 | D15: リンク先
C16: 指定研修機関番号 | D16: 00指定・承認（決裁）＿指定機関番号＿【重要】指定研修機関番号
C17: 指定研修機関名 | D17: 00指定・承認（決裁）＿指定機関番号＿【重要】指定研修機関番号
C18: 都道府県 | D18: 00指定・承認（決裁）＿指定機関番号＿【重要】指定研修機関番号
A19: 2 | B19: 指定審査後には、毎回指定申請時のデータを入力更新する（新規及び変更）
A20: 3 | B20: 変更届が来たら、変更内容を入力する。
A21: 4 | B21: 行を挿入するときは、各行には規制や計算式が入っているので、指定研修機関名最終行から、合計の行（黄色）までの間で挿入する。

Sheet 基本データ (hidden)
I1: 指定研修期間詳細一覧（研修期間、取り扱い区分数、定員、受講要件、受講料等）R７年度4月1日以降に変更した箇所は青字（赤字はR78月部会時の申請変更点)（備考は直近に変更した事項を記載） | O1: =I336 -> 独立行政法人国立病院機構 長良医療センター
A2: Seq | B2: 指定年 | C2: B列の下2桁 | D2: 指定月 | E2: 都道府県番号 | F2: 整理番号 | G2: 指定研修機関番号 | H2: 指定取り消の無 | I2: 指定研修機関名 | J2: 都道府県 | K2: 郵便番号 | L2: 住所 | M2: 属性 | N2: 病床数 | O2: 共通科目定員 | P2: 年間募集回数 | Q2: 年間定員数 | R2: 研修期間 | S2: 研修期間 | T2: 研修期間 | U2: 修士課程 | V2: 認定看護師B課程 | W2: JANPU-NP | X2: JONPH-NP | Y2: 外部生の受入（公開情報） | Z2: 受講要件 経験年数 | AA2: 受講要件上司推薦 | AB2: 履修免除規定の有無 | AC2: 共通科目ｅラン | AD2: 区分別科目ｅラン | AE2: 共通科目 旧基準 | AF2: 区分別科目 旧基準 | AG2: 領域別コース、モデル | AH2: 受講料（Min万円） | AI2: 受講料（Max万円） | AJ2: 教育訓練給付金講座指定 | AK2: 人材開発支援助成金 | AL2: 取り扱い区分数 | AM2: 呼吸器（気道確保に係るもの） | AN2: 呼吸器（人工呼吸療法に係るもの） | AO2: 呼吸器（長期呼吸療法に係るもの） | AP2: 循環器 | AQ2: 心嚢ドレーン管理 | AR2: 胸腔ドレーン管理 | AS2: 腹腔ドレーン管理 | AT2: ろう孔管理 | AU2: 栄養に係るカテーテル管理（中心静脈カテーテル管理） | AV2: 栄養に係るカテーテル管理（末梢留置型中心静脈注射用カテーテル管理） | AW2: 創傷管理 | AX2: 創部ドレーン管理 | AY2: 動脈血液ガス 分析 | AZ2: 透析管理 | BA2: 栄養及び水分管理に係る薬剤投与 | BB2: 感染に係る薬剤投与 | BC2: 血糖コントロールに係る薬剤投与 | BD2: 術後疼痛管理 | BE2: 循環動態に係る薬剤投与 | BF2: 精神及び神経症状に係る薬剤投与 | BG2: 皮膚損傷に係る薬剤投与 | BH2: 在宅 | BI2: 外科術後 | BJ2: 麻酔 | BK2: 救急 | BL2: 外科基本 | BM2: 集中治療領域 | BN2: 実施するパッケージ領域数
A3: 1 | B3: 2015 | C3: =RIGHT(B3,2) -> 15 | D3: 8 | E3: 01 | F3: 001 | G3: =CONCATENATE(C3,E3,F3) -> 1501001 | I3: 学校法人東日本学園北海道医療大学大学院看護福祉学研究科看護学専攻 | J3: 北海道 | K3: 061-0293 | L3: 北海道石狩郡当別町金沢1757番地 | M3: 大学院 | O3: 5 | P3: 1 | Q3: =P3*O3 -> 5 | S3: 4月～翌々年3月 | T3: 24 | U3: ○ | X3: ○ | Y3: 大学院修士課程 | AB3: 無 | AC3: 学研 | AD3: 学研 | AG3: NP | AH3: 328.6 | AL3: =COUNTA(AM3:BG3) -> 13 | AM3: 5 | AO3: 5 | AT3: 5 | AU3: 5 | AV3: 5 | AW3: 5 | AY3: 5 | BA3: 5 | BB3: 5 | BC3: 5 | BE3: 5 | BF3: 5 | BG3: 5 | BN3: =COUNTA(BH3:BM3) -> 0 | BO3: R70401指導者の変更
A4: 2 | B4: 2015 | C4: 15 | D4: 8 | E4: 03 | F4: 001 | G4: 1503001 | I4: 学校法人岩手医科大学 岩手医科大学附属病院高度看護研修センター | J4: 岩手県 | K4: 020－8505 | L4: 岩手県盛岡市内丸19番１号 | M4: 大学病院 | N4: 1166 | O4: 23 | P4: 1 | Q4: =P4*O4 -> 23 | S4: ４月～翌年３月 | T4: 12 | U4: × | V4: ○ | Y4: ○ | Z4: 3 | AA4: 要 | AB4: 有 | AC4: S-QUE | AD4: S-QUE | AG4: 有 | AH4: 77.3 | AI4: 80 | AL4: 14 | AM4: 4 | AN4: 4 | AO4: 11 | AR4: 3 | AS4: 3 | AT4: 9 | AU4: 3 | AV4: 3 | AW4: 10 | AX4: 5 | AY4: 5 | BA4: 23 | BD4: 3 | BE4: 3 | BH4: 7 | BI4: 3 | BN4: 2 | BO4: 令和6年９月20日より施設および指導者,osce評価者の変更
A5: 3 | B5: 2015 | C5: 15 | D5: 8 | E5: 09 | F5: 001 | G5: 1509001 | I5: 学校法人自治医科大学 自治医科大学 | J5: 栃木県 | K5: 329-0498 | L5: 栃木県下野市薬師寺3311-159 | M5: 大学 | O5: 60 | P5: 2 | Q5: =P5*O5 -> 120 | S5: 4月～翌年3月／10月～翌年9月 | T5: 12 | U5: × | Y5: ○ | Z5: 5 | AA5: 要 | AB5: 有 | AC5: 独自 | AD5: 独自 | AG5: 無 | AH5: 41.9 | AI5: 102.3 | AJ5: 専門 | AL5: 20 | AM5: 20 | AN5: 20 | AO5: 20 | AP5: 20 | AR5: 30 | AS5: 30 | AT5: 30 | AU5: 40 | AV5: 30 | AW5: 30 | AX5: 30 | AY5: 40 | AZ5: 40 | BA5: 30 | BB5: 20 | BC5: 30 | BD5: 20 | BE5: 20 | BF5: 20 | BG5: 30 | BH5: 5 | BI5: 5 | BJ5: 5 | BL5: 5 | BM5: 5 | BN5: 5 | BO5: 令和６年６月１日より施設・責任者・指導者、シラバスの変更
A6: 4 | B6: 2015 | C6: 15 | D6: 8 | E6: 11 | F6: 001 | G6: 1511001 | I6: 医療法人社団愛友会上尾中央総合病院 | J6: 埼玉県 | K6: 362-8588 | L6: 埼玉県上尾市柏座1-10-10 | M6: 病院 | N6: 733 | O6: 45 | P6: 1 | Q6: 50 | S6: 4月～翌年3月 | T6: 12 | U6: × | Y6: ○ | Z6: 5 | AA6: 要 | AB6: 有 | AC6: S-QUE | AD6: S-QUE | AG6: 無 | AH6: 16 | AI6: 39 | AL6: 14 | AM6: 20 | AN6: 20 | AO6: 10 | AP6: 0 | AQ6: 0 | AT6: 10 | AU6: 10 | AV6: 15 | AW6: 10 | AX6: 20 | AY6: 20 | BA6: 10 | BB6: 10 | BD6: 10 | BE6: 10 | BF6: 10 | BN6: 0 | BO6: R70210より指導者及びその担当者の変更
A7: 5 | B7: 2015 | C7: 15 | D7: 8 | E7: 13 | F7: 001 | G7: 1513001 | I7: 一般社団法人日本慢性期医療協会 | J7: 東京都 | K7: 162-0067 | L7: 東京都新宿区富久町11-5 シャトレ市ヶ谷２階 | M7: 本部 | O7: 50 | P7: 2 | Q7: =P7*O7 -> 100 | S7: 4月～翌年3月／10月～翌年9月 | T7: 12 | U7: × | Y7: ○ | Z7: 3 | AA7: 要 | AB7: 有 | AC7: 日漫協 | AD7: 日漫協 | AE7: 旧 | AF7: 旧 | AG7: 無 | AH7: 57 | AI7: 81 | AL7: 9 | AN7: 50 | AO7: 50 | AU7: 50 | AV7: 50 | AW7: 50 | BA7: 50 | BB7: 50 | BC7: 50 | BF7: 50 | BN7: 0
A8: 6 | B8: 2015 | C8: 15 | D8: 8 | E8: 13 | F8: 002 | G8: 1513002 | I8: 学校法人青葉学園東京医療保健大学大学院看護学研究科看護学専攻 | J8: 東京都 | K8: 152－8558 | L8: 東京都目黒区東が丘2-5-1 | M8: 大学院 | O8: 20 | P8: 1 | Q8: =P8*O8 -> 20 | S8: 4月～翌々年3月 | T8: 24 | U8: ○ | X8: ○ | Y8: 大学院修士課程 | AB8: 有 | AC8: 対面 | AD8: 独自 | AG8: NP | AJ8: 専門 | AL8: 21 | AM8: 20 | AN8: 20 | AO8: 20 | AP8: 20 | AQ8: 20 | AR8: 20 | AS8: 20 | AT8: 20 | AU8: 20 | AV8: 20 | AW8: 20 | AX8: 20 | AY8: 20 | AZ8: 20 | BA8: 20 | BB8: 20 | BC8: 20 | BD8: 20 | BE8: 20 | BF8: 20 | BG8: 20 | BN8: 0 | BO8: 令和6年6月1日より管理委員会の構成員,指導者の変更
A9: 7 | B9: 2015 | C9: 15 | D9: 8 | E9: 13 | F9: 003 | G9: 1513003 | I9: 学校法人国際医療福祉大学国際医療福祉大学大学院医療福祉学研究科保健医療学専攻 | J9: 東京都 | K9: 105-0000 | L9: 港区赤坂4-1-26 | M9: 大学院 | O9: 25 | P9: 1 | Q9: =P9*O9 -> 25 | S9: 4月～翌々年3月 | T9: 24 | U9: ○ | X9: ○ | Y9: 大学院修士課程 | AB9: 有 | AC9: 対面 | AE9: 旧 | AF9: 旧 | AG9: NP | AH9: 250 | AL9: 21 | AM9: 25 | AN9: 25 | AO9: 25 | AP9: 25 | AQ9: 25 | AR9: 25 | AS9: 25 | AT9: 25 | AU9: 25 | AV9: 25 | AW9: 25 | AX9: 25 | AY9: 25 | AZ9: 25 | BA9: 25 | BB9: 25 | BC9: 25 | BD9: 25 | BE9: 25 | BF9: 25 | BG9: 25 | BN9: 0 | BO9: R6.４.1より既施設における定員の変更（２５は変わらず）
A10: 8 | B10: 2015 | C10: 15 | D10: 8 | E10: 13 | F10: 004 | G10: 1513004 | I10: 公益社団法人地域医療振興協会 NP・NDC研修センター | J10: 東京都 | K10: 102－0093 | L10: 千代田区平河町2－6－3都道府県会館15階 | M10: 本部 | O10: 15 | P10: 1 | Q10: =P10*O10 -> 15 | S10: 10月～翌年9月 | T10: 12 | U10: × | Y10: ○ | Z10: 5 | AA10: 要 | AB10: 有 | AC10: 学研 | AD10: 学研 | AE10: 旧 | AF10: 旧 | AG10: 無 | AH10: 150 | AL10: 21 | AM10: 15 | AN10: 15 | AO10: 15 | AP10: 15 | AQ10: 15 | AR10: 15 | AS10: 15 | AT10: 15 | AU10: 15 | AV10: 15 | AW10: 15 | AX10: 15 | AY10: 15 | AZ10: 15 | BA10: 15 | BB10: 15 | BC10: 15 | BD10: 15 | BE10: 15 | BF10: 15 | BG10: 15 | BN10: 0 | BO10: R61105より協力施設、指導者の変更
A11: 9 | B11: 2015 | C11: 15 | D11: 8 | E11: 13 | F11: 005 | G11: 1513005 | I11: 公益社団法人日本看護協会 | J11: 東京都 | K11: 150ｰ0001 | L11: 渋谷区神宮前5丁目8番2号 | M11: 協会 | O11: 530 | P11: 1 | Q11: =P11*O11 -> 530 | S11: 4月～9月／10月～翌年3月 | T11: 6 | U11: × | V11: ○ | Y11: ○ | Z11: 認定 | AA11: 要 | AB11: 有 | AC11: 独自 | AD11: 独自 | AG11: 有 | AH11: 42.8 | AI11: 58.1 | AL11: 12 | AM11: 30 | AN11: 60 | AO11: 40 | AT11: 30 | AV11: 10 | AW11: 80 | AY11: 30 | BA11: 530 | BB11: 50 | BC11: 50 | BE11: 50 | BF11: 100 | BH11: 30 | BN11: 1 | BO11: R60908よりCVC,創部ドレーン中止R70203より研修施設、定員、指導者の変更
A12: 10 | B12: 2015 | C12: 15 | D12: 8 | E12: 23 | F12: 001 | G12: 1523001 | I12: 学校法人愛知医科大学大学院看護学研究科看護学専攻 | J12: 愛知県 | K12: 480ｰ1195 | L12: 愛知県長久手市岩作雁又１番地１ | M12: 大学院 | O12: 8 | P12: 1 | Q12: 8 | S12: 4月～翌々年3月 | T12: 24 | U12: ○ | X12: ○ | Y12: 大学院修士課程 | Z12: 5 | AA12: 不要 | AB12: 有 | AC12: 対面 | AE12: 旧 | AF12: 旧 | AG12: NP | AH12: 185 | AL12: 21 | AM12: 8 | AN12: 8 | AO12: 8 | AP12: 8 | AQ12: 8 | AR12: 8 | AS12: 8 | AT12: 8 | AU12: 8 | AV12: 8 | AW12: 8 | AX12: 8 | AY12: 8 | AZ12: 8 | BA12: 8 | BB12: 8 | BC12: 8 | BD12: 8 | BE12: 8 | BF12: 8 | BG12: 8 | BN12: 0 | BO12: 令和6年4月1日より定員数、協力施設の定員数の変更
A13: 11 | B13: 2015 | C13: 15 | D13: 8 | E13: 23 | F13: 002 | G13: 1523002 | I13: 学校法人藤田学園藤田保健衛生大学大学院保健学研究科保健学専攻 | J13: 愛知県 | K13: 470ｰ1192 | L13: 愛知県豊明市沓掛町田楽ケ窪1番地98 | M13: 大学院 | O13: 15 | P13: 1 | Q13: =P13*O13 -> 15 | S13: 4月～翌々年3月 | T13: 24 | U13: ○ | X13: ○ | Y13: 大学院修士課程 | Z13: 5 | AA13: 不要 | AB13: 無 | AC13: S-QUE | AE13: 旧 | AF13: 旧 | AG13: NP | AH13: 165 | AL13: 21 | AM13: 10 | AN13: 15 | AO13: 15 | AP13: 15 | AQ13: 15 | AR13: 15 | AS13: 15 | AT13: 15 | AU13: 15 | AV13: 15 | AW13: 15 | AX13: 15 | AY13: 15 | AZ13: 15 | BA13: 15 | BB13: 15 | BC13: 15 | BD13: 15 | BE13: 15 | BF13: 15 | BG13: 15 | BH13: 15 | BN13: 1 | BO13: 令和6年4月30日より研修内容、研修管理委員会の構成員、指導者の変更
A14: 12 | B14: 2015 | C14: 15 | D14: 8 | E14: 26 | F14: 001 | G14: 1526001 | I14: 医療法人社団洛和会洛和会音羽病院 | J14: 京都府 | K14: 607ｰ8062 | L14: 京都市山科区音羽八ノ坪51－4 | M14: 病院 | N14: 548 | O14: 10 | P14: 1 | Q14: 10 | S14: 10月～翌年9月 | T14: 12 | U14: × | Y14: ○ | Z14: 5 | AA14: 要 | AB14: 無 | AC14: S-QUE | AD14: S-QUE | AG14: 有 | AH14: 51.8 | AI14: 80.65 | AL14: 10 | AM14: 10 | AN14: 10 | AO14: 10 | AW14: 5 | AY14: 10 | BA14: 10 | BC14: 10 | BD14: 10 | BE14: 10 | BF14: 10 | BJ14: 2 | BN14: 1 | BO14: 令和6年4月1日より研修管理委員会の構成員、研修責任者、指導者の変更
A15: 13 | B15: 2015 | C15: 15 | D15: 8 | E15: 29 | F15: 001 | G15: 1529001 | I15: 公立大学法人奈良県立医科大学 | J15: 奈良県 | K15: 634-8521 | L15: 奈良県橿原市四条町840番地 | M15: 大学 | O15: 22 | P15: 1 | Q15: 22 | S15: 4月～翌3月 | T15: 12 | U15: × | Y15: ○ | Z15: 3 | AA15: 要 | AB15: 無 | AC15: S-QUE | AD15: S-QUE | AG15: 有 | AH15: 65 | AI15: 75 | AL15: 14 | AM15: 10 | AN15: 10 | AO15: 12 | AP15: 5 | AT15: 12 | AU15: 15 | AV15: 5 | AW15: 12 | AY15: 10 | BA15: 22 | BC15: 17 | BD15: 10 | BE15: 10 | BF15: 5 | BN15: 0 | BO15: R60901よりteiinn指導者の変更
A16: 14 | B16: 2015 | C16: 15 | D16: 8 | E16: 44 | F16: 001 | G16: 1544001 | I16: 公立大学法人大分県立看護科学大学大学院看護学研究科看護学専攻 | J16: 大分県 | K16: 870ｰ1201 | L16: 大分県大分市大字廻栖野2994ｰ9 | M16: 大学院 | O16: 10 | P16: 1 | Q16: 10 | S16: 4月～翌々年3月 | T16: 24 | U16: ○ | X16: ○ | Y16: 大学院修士課程 | Z16: 5 | AA16: 要 | AB16: 無 | AC16: 対面 | AD16: ナーシングスキル | AE16: 旧 | AF16: 旧 | AG16: NP | AH16: 140.36 | AL16: 21 | AM16: 10 | AN16: 10 | AO16: 10 | AP16: 10 | AQ16: 10 | AR16: 10 | AS16: 10 | AT16: 10 | AU16: 10 | AV16: 10 | AW16: 10 | AX16: 10 | AY16: 10 | AZ16: 10 | BA16: 10 | BB16: 10 | BC16: 10 | BD16: 10 | BE16: 10 | BF16: 10 | BG16: 10 | BN16: 0 | BO16: R60911より定員、区分ごとの定員変更
A17: 15 | B17: 2016 | C17: 16 | D17: 2 | E17: 04 | F17: 001 | G17: 1604001 | I17: 学校法人東北文化学園大学東北文化学園大学大学院健康社会システム研究科健康福祉専攻 | J17: 宮城県 | K17: 981-8551 | L17: 宮城県仙台市青葉区国見６丁目４５番１号 | M17: 大学院 | O17: 8 | P17: 1 | Q17: 8 | S17: 4月～翌々年3月 | T17: 24 | U17: ○ | X17: ○ | Y17: 大学院修士課程 | Z17: 5 | AB17: 無 | AC17: 対面 | AG17: NP | AH17: 280 | AL17: 21 | AM17: 8 | AN17: 8 | AO17: 8 | AP17: 8 | AQ17: 8 | AR17: 8 | AS17: 8 | AT17: 8 | AU17: 8 | AV17: 8 | AW17: 8 | AX17: 8 | AY17: 8 | AZ17: 8 | BA17: 8 | BB17: 8 | BC17: 8 | BD17: 8 | BE17: 8 | BF17: 8 | BG17: 8 | BN17: 0 | BO17: 令和6年８月1日より協力施設の変更、指導者の変更
A18: 16 | B18: 2016 | C18: 16 | D18: 2 | E18: 07 | F18: 001 | G18: 1607001 | I18: 公益財団法人星総合病院 | J18: 福島県 | K18: 963-8501 | L18: 郡山市向河原町159番地1号 | M18: 病院 | N18: 430 | O18: 40 | P18: 1 | Q18: =P18*O18 -> 40 | S18: 4月～翌年3月 | T18: 7.12 | U18: × | V18: ○ | Y18: ○ | Z18: 5 | AA18: 要 | AB18: 有 | AC18: S-QUE | AG18: 無 | AH18: 50 | AL18: 6 | AT18: 3 | AW18: 5 | AY18: 5 | BA18: 19 | BB18: 18 | BF18: 5 | BN18: 0 | BO18: R70130指導者の変更
A19: 17 | B19: 2016 | C19: 16 | D19: 2 | E19: 11 | F19: 002 | G19: 1611002 | I19: 学校法人埼玉医科大学埼玉医科大学総合医療センター | J19: 埼玉県 | K19: 350-8500 | L19: 川越市鴨田1981 | M19: 大学病院 | N19: 1053 | O19: 6 | P19: 2 | Q19: 12 | S19: 4月～9月／10月～翌年3月 | T19: 6 | U19: × | Y19: × | Z19: 不明 | AA19: 不明 | AB19: 無 | AC19: 放送大学 | AE19: 旧 | AF19: 旧 | AG19: 無 | AH19: 無料 | AL19: 7 | AM19: 6 | AN19: 6 | AO19: 6 | AT19: 6 | AZ19: 3 | BA19: 3 | BC19: 3 | BN19: 0
A20: 18 | B20: 2016 | C20: 16 | D20: 2 | E20: 12 | F20: 001 | G20: 1612001 | I20: 社会医療法人社団さつき会袖ヶ浦さつき台病院看護師特定行為研修センター | J20: 千葉県 | K20: 299-0246 | L20: 袖ヶ浦市長浦駅前5-21 | M20: 病院 | N20: 409 | O20: 9 | P20: 1 | Q20: 9 | S20: 4月～翌年3月 | T20: 12 | U20: × | Y20: ○ | Z20: 5 | AA20: 要 | AB20: 有 | AC20: 日漫協 | AD20: 日漫協 | AG20: 無 | AH20: 72.2 | AI20: 75 | AL20: 3 | BA20: 0 | BC20: 0 | BF20: 0 | BN20: 0 | BO20: 令和6年4月1日より研修の休止
A21: 19 | B21: 2016 | C21: 16 | D21: 2 | E21: 13 | F21: 006 | G21: 1613006 | I21: 独立行政法人地域医療機能推進機構東京新宿メディカルセンター | J21: 東京都 | K21: 162-8543 | L21: 新宿区津久戸町5-1 | M21: 病院 | N21: 520 | O21: 4 | P21: 1 | Q21: 4 | S21: 4月～翌年3月 | T21: 12 | U21: × | Y21: × | Z21: 5 | AA21: 不明 | AB21: 無 | AC21: 放送大学 | AG21: 無 | AL21: 2 | BA21: 5 | BC21: 5 | BN21: 0 | BO21: 令和6年4月1日より研修内容の変更
A22: 20 | B22: 2016 | C22: 16 | D22: 2 | E22: 25 | F22: 001 | G22: 1625001 | I22: 国立大学法人 滋賀医科大学 | J22: 滋賀県 | K22: 520-2192 | L22: 大津市瀬田月輪町 | M22: 大学 | O22: 30 | P22: 1 | Q22: 30 | S22: 4月～翌3月、9月～翌8月 | T22: 12、18 | U22: × | Y22: ○ | Z22: 5 | AA22: 要 | AB22: 有 | AC22: S-QUE | AD22: S-QUE | AG22: 有 | AH22: 60.4 | AI22: 92.9 | AJ22: 一般 | AL22: 21 | AM22: 25 | AN22: 25 | AO22: 15 | AP22: 10 | AQ22: 5 | AR22: 10 | AS22: 10 | AT22: 10 | AU22: 20 | AV22: 10 | AW22: 20 | AX22: 20 | AY22: 35 | AZ22: 5 | BA22: 40 | BB22: 10 | BC22: 5 | BD22: 20 | BE22: 20 | BF22: 10 | BG22: 5 | BH22: 5 | BI22: 5 | BJ22: 5 | BK22: 5 | BL22: 5 | BM22: 5 | BN22: 6 | BO22: R60104より協力施設の追加、指導者の変更
A23: 21 | B23: 2016 | C23: 16 | D23: 2 | E23: 27 | F23: 001 | G23: 1627001 | I23: 社会医療法人愛仁会 | J23: 大阪府 | K23: 555-0034 | L23: 大阪市西淀川区福町3丁目2番39号 | M23: 本部 | O23: 15 | P23: 1 | Q23: 15 | S23: 4月～翌年3月 | T23: 12 | U23: × | Y23: ○（H30.4～） | Z23: 5 | AA23: 要 | AB23: 有 | AC23: 学研 | AD23: 学研 | AG23: 有 | AH23: 35 | AI23: 80 | AL23: 16 | AM23: 7 | AN23: 7 | AO23: 4 | AP23: 2 | AT23: 4 | AU23: 3 | AV23: 3 | AW23: 4 | AY23: 7 | AZ23: 0 | BA23: 11 | BB23: 4 | BC23: 4 | BD23: 4 | BE23: 4 | BF23: 5 | BH23: 3 | BJ23: 3 | BK23: 3 | BN23: 3 | BO23: H30.4.18皮膚廃止 透析管理関連はR2/5/18から休止 R4.5～麻酔パの人工呼吸管理削除 研修時間の変更
A24: 22 | B24: 2016 | C24: 16 | D24: 8 | F24: 002 | G24: 16002 | H24: 〇 | I24: 医療法人平心会 須賀川病院 | J24: 福島県 | K24: 962-0022 | L24: 福島県須賀川市丸田町17番地 | BN24: 0
A25: 23 | B25: 2016 | C25: 16 | D25: 8 | E25: 08 | F25: 001 | G25: 1608001 | I25: 国立大学法人筑波大学 筑波大学付属病院 | J25: 茨城県 | K25: 305-8576 | L25: 茨城県つくば市天久保２－１－１ | M25: 大学病院 | N25: 800 | O25: 35 | P25: 2 | Q25: =P25*O25 -> 70 | S25: 4月～翌年3月／10月～翌年9月 | T25: 12 | U25: × | Y25: ○ | Z25: 5 | AA25: 要 | AB25: 有 | AC25: S-QUE | AD25: S-QUE | AG25: 有 | AL25: =COUNTA(AM25:BG25) -> 20 | AM25: 23 | AN25: 23 | AO25: 9 | AP25: 9 | AR25: 9 | AS25: 9 | AT25: 9 | AU25: 16 | AV25: 11 | AW25: 12 | AX25: 9 | AY25: 22 | AZ25: 6 | BA25: 20 | BB25: 9 | BC25: 9 | BD25: 19 | BE25: 19 | BF25: 16 | BG25: 6 | BH25: 3 | BI25: 3 | BJ25: 5 | BK25: 3 | BL25: 3 | BM25: 3 | BN25: 6 | BO25: R61125より研修施設および指導者の変更
A26: 24 | B26: 2016 | C26: 16 | D26: 8 | E26: 10 | F26: 001 | G26: 1610001 | I26: 公益財団法人脳血管研究所 附属美原記念病院 | J26: 群馬県 | K26: 372-0006 | L26: 群馬県伊勢崎市太田町366番地 | M26: 病院 | N26: 189 | O26: 6 | P26: 1 | Q26: 9 | S26: 10月～翌年3月、4月~翌年３月 | T26: 6.12 | U26: × | Y26: ○ | Z26: 5 | AA26: 要 | AB26: 無 | AC26: S-QUE | AD26: S-QUE | AG26: 無 | AL26: 6 | AO26: 3 | AT26: 3 | AV26: 3 | AW26: 3 | AY26: 3 | BA26: 3 | BH26: 3 | BN26: 1 | BO26: 令和6年4月1日より指導者の変更
A27: 25 | B27: 2016 | C27: 16 | D27: 8 | E27: 17 | F27: 001 | G27: 1617001 | I27: 社会医療法人財団董仙会 恵寿総合病院 | J27: 石川県 | K27: 926-8605 | L27: 石川県七尾市富岡町94番地 | M27: 病院 | N27: 426 | O27: 10 | P27: 1 | Q27: =P27*O27 -> 10 | S27: 10月～翌年9月 | T27: 12 | U27: × | Y27: ○ | Z27: 5 | AA27: 要 | AB27: 有 | AC27: S-QUE | AD27: S-QUE | AG27: 無 | AH27: 44.25 | AI27: 56.75 | AL27: 9 | AM27: 5 | AN27: 5 | AO27: 5 | AT27: 5 | AW27: 2 | AY27: 10 | BA27: 5 | BC27: 10 | BE27: 2 | BH27: 2 | BN27: 1
A28: 26 | B28: 2016 | C28: 16 | D28: 8 | E28: 18 | F28: 001 | G28: 1618001 | I28: 学校法人 新田塚学園 福井医療大学 | J28: 福井県 | K28: 910-8561 | L28: 福井県福井市江上町第58号16番1号 | M28: 大学 | O28: 5 | P28: 1 | Q28: =P28*O28 -> 5 | S28: 1月～翌年3月 | T28: 15 | U28: × | Y28: ○ | Z28: 5 | AA28: 要 | AB28: 不明 | AC28: S-QUE | AD28: S-QUE | AG28: 無 | AL28: 12 | AM28: 5 | AN28: 5 | AO28: 5 | AT28: 5 | AW28: 5 | AY28: 5 | BA28: 5 | BB28: 5 | BC28: 5 | BD28: 5 | BE28: 5 | BF28: 5 | BH28: 5 | BJ28: 5 | BN28: 2 | BO28: R70122より研修管理委員会の構成員の変更
A29: 27 | B29: 2016 | C29: 16 | D29: 8 | E29: 39 | F29: 001 | G29: 1639001 | I29: 社会医療法人近森会 近森病院 | J29: 高知県 | K29: 780-8522 | L29: 高知県高知市大川筋１丁目１-16 | M29: 病院 | N29: 512 | O29: 20 | P29: 1 | Q29: =P29*O29 -> 20 | S29: 6月～翌年３月 | T29: 10 | U29: × | Y29: ○ | Z29: 3 | AA29: 要 | AB29: 有 | AC29: S-QUE | AD29: S-QUE | AG29: 無 | AH29: 40 | AI29: 47.2 | AL29: 17 | AM29: 12 | AN29: 12 | AO29: 2 | AP29: 4 | AR29: 2 | AS29: 2 | AU29: 6 | AV29: 2 | AW29: 4 | AX29: 2 | AY29: 14 | BA29: 20 | BB29: 2 | BC29: 4 | BD29: 6 | BE29: 8 | BF29: 4 | BI29: 0 | BJ29: 4 | BK29: 4 | BL29: 2 | BM29: 4 | BN29: 5 | BO29: R61202より協力施設、指導者の変更
A30: 28 | B30: 2016 | C30: 16 | D30: 8 | E30: 46 | F30: 001 | G30: 1646001 | I30: 国立大学法人鹿児島大学 鹿児島大学病院 | J30: 鹿児島県 | K30: 890-8520 | L30: 鹿児島県鹿児島市桜ヶ丘八丁目３５番１号 | M30: 大学病院 | N30: 716 | O30: 30 | P30: 1 | Q30: =P30*O30 -> 30 | S30: 4月～翌年3月 | T30: 12 | U30: × | Y30: ○ | Z30: 5 | AA30: 要 | AB30: 有 | AC30: S-QUE | AD30: S-QUE | AG30: 無 | AH30: 33.8 | AI30: 98.7 | AL30: 16 | AM30: 15 | AN30: 20 | AO30: 10 | AR30: 5 | AS30: 5 | AT30: 5 | AU30: 10 | AV30: 10 | AW30: 5 | AX30: 5 | AY30: 15 | BA30: 20 | BB30: 5 | BC30: 5 | BD30: 15 | BE30: 20 | BH30: 5 | BI30: 5 | BJ30: 10 | BN30: 3 | BO30: R3.4 外科パ定員増R70401協力施設,指導者の変更
A31: 29 | B31: 2017 | C31: 17 | D31: ２ | E31: 06 | F31: 001 | G31: 1706001 | I31: 国立大学法人山形大学 山形大学大学院医学系研究科看護学専攻 | J31: 山形県 | K31: 990-9585 | L31: 山形県山形市飯田西2-2-2 | M31: 大学院 | O31: 3 | P31: 1 | Q31: =P31*O31 -> 3 | S31: 4月～翌々年3月 | T31: 24 | U31: ○ | W31: ○ | X31: ○ | Y31: 大学院修士課程 | Z31: 5 | AA31: 要 | AB31: 無 | AC31: 対面 | AG31: NP | AL31: 21 | AM31: 3 | AN31: 3 | AO31: 3 | AP31: 3 | AQ31: 3 | AR31: 3 | AS31: 3 | AT31: 3 | AU31: 3 | AV31: 3 | AW31: 3 | AX31: 3 | AY31: 3 | AZ31: 3 | BA31: 3 | BB31: 3 | BC31: 3 | BD31: 3 | BE31: 3 | BF31: 3 | BG31: 3 | BN31: 0 | BO31: 令和6年4月1日より研修管理委員会の構成員、研修施設、指導者の変更
A32: 30 | B32: 2017 | C32: 17 | D32: ２ | E32: 07 | F32: 003 | G32: 1707003 | I32: 公立大学法人福島県立医科大学 | J32: 福島県 | K32: 960-1295 | L32: 福島県福島市光が丘1番地 | M32: 大学 | O32: 30 | P32: 1 | Q32: 40 | S32: 4月～翌年3月 | T32: 12 | U32: × | Y32: ○ | Z32: 6 | AA32: 要 | AB32: 有 | AC32: S-QUE | AG32: 無 | AH32: 43.5 | AI32: 89.6 | AL32: 20 | AM32: 8 | AN32: 8 | AO32: 8 | AP32: 2 | AR32: 5 | AS32: 5 | AT32: 8 | AU32: 10 | AV32: 5 | AW32: 13 | AX32: 5 | AY32: 11 | AZ32: 5 | BA32: 14 | BB32: 7 | BC32: 7 | BD32: 8 | BE32: 8 | BF32: 5 | BG32: 5 | BH32: 3 | BJ32: 3 | BN32: 2 | BO32: R61201より協力施設、指導者の変更
A33: 31 | B33: 2017 | C33: 17 | D33: ２ | E33: 13 | F33: 007 | G33: 1713007 | I33: 医療法人社団 明芳会 | J33: 東京都 | K33: 174-0051 | L33: 東京都板橋区小豆沢３－３－２ | M33: 本部 | O33: 115 | P33: 1 | Q33: =P33*O33 -> 115 | S33: 6月～翌年８月 | T33: 14 | U33: × | Y33: × | Z33: 5 | AA33: 不明 | AB33: 不明 | AC33: S-QUE | AD33: S-QUE | AG33: 無 | AI33: 47 | AL33: 12 | AM33: 16 | AN33: 15 | AO33: 10 | AU33: 4 | AV33: 7 | AW33: 13 | AY33: 13 | BA33: 8 | BB33: 6 | BC33: 6 | BE33: 15 | BF33: 2 | BN33: 0 | BO33: 令和6年7月24日より施設、定員、指導者の変更
A34: 32 | B34: 2017 | C34: 17 | D34: ２ | E34: 13 | F34: 008 | G34: 1713008 | H34: 〇 | I34: 社会医療法人河北医療財団 河北総合病院 | J34: 東京都 | K34: 166-0001 | L34: 東京都杉並区阿佐谷北1-7-3 | BN34: 0 | BO34: R4.6～血糖、腹ド休止 令和6年10月取り消し
A35: 33 | B35: 2017 | C35: 17 | D35: ２ | E35: 17 | F35: 002 | G35: 1717002 | I35: 公立能登総合病院 | J35: 石川県 | K35: 926-0816 | L35: 石川県七尾市藤橋町ア部6番地4 | M35: 病院 | N35: 434 | O35: 4 | P35: 1 | Q35: =P35*O35 -> 4 | S35: 4月～翌年3月 | T35: 12 | U35: × | Y35: ○ | Z35: 5 | AA35: 要 | AB35: 有 | AC35: S-QUE | AD35: 不明 | AG35: 無 | AH35: 40 | AL35: =COUNTA(AM35:BG35) -> 4 | AW35: 4 | AZ35: 2 | BA35: 4 | BC35: 4 | BN35: =COUNTA(BH35:BM35) -> 0 | BO35: 令和6年4月1日より研修管理委員会の構成員および指導者の変更
A36: 34 | B36: 2017 | C36: 17 | D36: ２ | E36: 27 | F36: 002 | G36: 1727002 | I36: 公立大学法人大阪（大阪公立大学） | J36: 大阪府 | K36: 5360025 | L36: 大阪市城東区森之宮1丁目6番85号3階 | M36: 大学 | O36: 29 | P36: 1 | Q36: 29 | S36: 4月～翌年3月,9月～翌年6月 | T36: 12,10 | U36: × | V36: ○ | Y36: ○ | Z36: 5 | AA36: 不明 | AB36: 不明 | AC36: S-QUE | AG36: 無 | AL36: 10 | AM36: 10 | AN36: 10 | AO36: 5 | AP36: 5 | AU36: 10 | AY36: 10 | BA36: 29 | BB36: 24 | BC36: 5 | BE36: 5 | BM36: 5 | BN36: 1 | BO36: R70101より住所変更、R70401より責任者、構成員、指導者の変更
A37: 35 | B37: 2017 | C37: 17 | D37: ２ | E37: 27 | F37: 003 | G37: 1727003 | I37: 社会医療法人きつこう会 多根総合病院 | J37: 大阪府 | K37: 550-0025 | L37: 大阪府大阪市西区九条南1-12-21 | M37: 病院 | N37: 304 | O37: 8 | P37: 1 | Q37: 8 | S37: 5月～翌年3月 | T37: 11 | U37: × | Y37: ○ | Z37: 5 | AA37: 要 | AB37: 不明 | AC37: S-QUE | AD37: S-QUE | AG37: 無 | AH37: 54 | AL37: 7 | AS37: 8 | AU37: 8 | AV37: 8 | AW37: 8 | AX37: 8 | AY37: 8 | BA37: 8 | BN37: 0 | BO37: R60501 より研修施設、構成員、指導者変更
A38: 36 | B38: 2017 | C38: 17 | D38: ２ | E38: 28 | F38: 001 | G38: 1728001 | I38: 兵庫医科大学 臨床教育統括センター | J38: 兵庫県 | K38: 663-8501 | L38: 兵庫県西宮市武庫川町1番1号 | M38: 大学 | O38: 40 | P38: 1 | Q38: 40 | S38: 4月～翌年3月 | T38: 12 | U38: × | V38: ○ | Y38: ○ | Z38: 5 | AA38: 不明 | AB38: 無 | AC38: S-QUE | AG38: 無 | AL38: 16 | AM38: 30 | AN38: 30 | AO38: 10 | AP38: 10 | AT38: 10 | AU38: 20 | AV38: 10 | AW38: 15 | AX38: 10 | AY38: 30 | BA38: 30 | BB38: 20 | BC38: 10 | BD38: 20 | BE38: 30 | BF38: 10 | BH38: 10 | BJ38: 10 | BK38: 10 | BL38: 10 | BM38: 10 | BN38: 5 | BO38: R60816より、協力施設の追加、指導者の変更、研修管理委員会の構成員の変更
A39: 37 | B39: 2017 | C39: 17 | D39: ２ | E39: 30 | F39: 001 | G39: 1730001 | I39: 公立大学法人和歌山県立医科大学 | J39: 和歌山県 | K39: 641-8510 | L39: 和歌山県和歌山市紀三井寺811-1 | M39: 大学 | O39: 65 | P39: 1 | Q39: 65 | S39: 4月～翌年9月 | T39: 18 | U39: × | Y39: ○ | Z39: 5 | AA39: 要 | AB39: 有 | AC39: 放送大学 | AD39: 学研 | AG39: 無 | AH39: 22.9 | AI39: 32.35 | AL39: 9 | AM39: 5 | AO39: 10 | AT39: 5 | AU39: 15 | AV39: 5 | AW39: 10 | AY39: 10 | BA39: 15 | BC39: 5 | BH39: 5 | BN39: 1 | BO39: R61201より施設、指導者シラバスの変更
A40: 38 | B40: 2017 | C40: 17 | D40: ２ | E40: 33 | F40: 001 | G40: 1733001 | I40: 学校法人 川崎学園 | J40: 岡山県 | K40: 701-0192 | L40: 岡山県倉敷市松島577 | M40: 大学 | O40: 56 | P40: 1 | Q40: 56 | S40: 10月~翌３月 6月～翌年3月 | T40: ５ 10 | U40: × | V40: ○ | Y40: ○ | Z40: 5 | AA40: 要 | AB40: 有 | AC40: S-QUE | AD40: S-QUE | AG40: 有 | AH40: 56 | AI40: 59 | AL40: 15 | AM40: 13 | AN40: 13 | AO40: 6 | AR40: 5 | AS40: 10 | AT40: 8 | AU40: 5 | AV40: 5 | AW40: 8 | AX40: 5 | AY40: 13 | BA40: 56 | BB40: 18 | BD40: 10 | BE40: 28 | BJ40: 5 | BN40: 1 | BO40: R70501より定員数の変更、在宅Pの申請構成員、指導者の変更
A41: 39 | B41: 2017 | C41: 17 | D41: ２ | E41: 37 | F41: 001 | G41: 1737001 | I41: 独立行政法人国立病院機構 四国こどもとおとなの医療センター | J41: 香川県 | K41: 765-8507 | L41: 香川県善通寺市仙遊町2丁目1-1 | M41: 病院 | N41: 689 | O41: 12 | P41: 1 | Q41: 12 | S41: 5月~翌年1月 | T41: 9 | U41: × | Y41: ○ | Z41: 5 | AA41: 要 | AB41: 有 | AC41: 学研 | AD41: 学研 | AG41: 無 | AH41: 45 | AL41: 7 | AM41: 0 | AN41: 3 | AO41: 0 | AT41: 3 | AW41: 3 | BA41: 3 | BC41: 3 | BH41: 3 | BN41: 1 | BO41: R70508より長期呼吸療法休止、気道確保引き続き休止(R60521より)、人工呼吸再開
A42: 40 | B42: 2017 | C42: 17 | D42: ２ | E42: 13 | F42: 009 | G42: 1713009 | I42: 独立行政法人地域医療機能推進機構 | J42: 東京都 | K42: 108-8583 | L42: 東京都港区高輪3-22-12 | M42: 本部 | O42: 130 | P42: 1 | Q42: =P42*O42 -> 130 | S42: 4月～翌々年3月 | T42: 24 | U42: × | Y42: 不明 | Z42: 5 | AB42: 有 | AC42: 放送大学 | AD42: 独自 | AL42: 18 | AM42: 23 | AN42: 23 | AO42: 20 | AR42: 4 | AS42: 6 | AT42: 51 | AU42: 25 | AV42: 14 | AW42: 130 | AX42: 30 | AY42: 33 | AZ42: 54 | BA42: 130 | BB42: 70 | BC42: 90 | BD42: 25 | BE42: 25 | BG42: 27 | BH42: 6 | BJ42: 12 | BN42: 2 | BO42: R70201より協力施設の定員、指導者の変更
A43: 41 | B43: 2017 | C43: 17 | D43: 8 | E43: 01 | F43: 002 | G43: 1701002 | I43: 社会医療法人恵和会 西岡病院 | J43: 北海道 | K43: 003-0034 | L43: 北海道札幌市豊平区西岡4条4丁目1番52号 | M43: 病院 | N43: 150 | O43: 4 | P43: 1 | Q43: 4 | S43: 10月～翌年9月 | T43: 12 | U43: × | Y43: ○ | Z43: 5 | AA43: 要 | AB43: 有 | AC43: S-QUE | AD43: S-QUE | AE43: 旧 | AF43: 旧 | AG43: 無 | AL43: 1 | BA43: 4 | BN43: 0 | BO43: H30年4月1日区分別eーラン変更
A44: 42 | B44: 2017 | C44: 17 | D44: ８ | E44: 13 | F44: 010 | G44: 1713010 | I44: 医療法人社団永生会 | J44: 東京都 | K44: 193-0942 | L44: 東京都八王子市椚田町583-15 | M44: 本部 | O44: 3 | P44: 1 | Q44: 3 | S44: 10月～翌年9月 | T44: 12 | U44: × | Y44: 不明 | Z44: 5 | AA44: 要 | AB44: 不明 | AC44: S-QUE | AE44: 旧 | AF44: 旧 | AG44: 無 | AL44: 2 | AO44: 3 | AW44: 3 | BN44: 0
A45: 43 | B45: 2017 | C45: 17 | D45: 8 | E45: 13 | F45: 011 | G45: 1713011 | I45: 社会福祉法人恩賜財団済生会支部東京都済生会 東京都済生会中央病院 | J45: 東京都 | K45: 108-0073 | L45: 東京都港区三田１丁目４番１７号 | M45: 病院 | N45: 535 | O45: 10 | P45: 1 | Q45: 10 | S45: 10月～翌年9月 | T45: 12 | U45: × | Y45: × | Z45: 5 | AA45: 要 | AB45: 有 | AC45: 学研 | AD45: 学研 | AG45: 無 | AL45: 10 | AM45: 7 | AN45: 7 | AP45: 1 | AV45: 1 | AY45: 7 | BA45: 9 | BC45: 3 | BD45: 7 | BE45: 7 | BF45: 1 | BJ45: 6 | BN45: 1 | BO45: 令和6年4月1日より研修管理委員会の構成員の変更
A46: 44 | B46: 2017 | C46: 17 | D46: 8 | E46: 13 | F46: 012 | G46: 1713012 | I46: セコム医療システム株式会社 | J46: 東京都 | K46: 150-0001 | L46: 東京都渋谷区神宮前1-5-1 | M46: 本部 | O46: 10 | P46: 1 | Q46: 10 | S46: 10月～翌々年３月 | T46: 18 | U46: × | Y46: ○（H30～） | Z46: 5 | AA46: 要 | AB46: 不明 | AC46: 放送大学 | AD46: 独自 | AE46: 旧 | AF46: 旧 | AG46: 無 | AH46: 無料 | AL46: 14 | AM46: 15 | AN46: 15 | AO46: 15 | AT46: 15 | AU46: 15 | AV46: 15 | AW46: 15 | AX46: 15 | AY46: 15 | BA46: 15 | BB46: 15 | BC46: 15 | BD46: 15 | BE46: 15 | BH46: 15 | BJ46: 15 | BL46: 15 | BN46: 3 | BO46: R70327より協力施設、指導者の変更
A47: 45 | B47: 2017 | C47: 17 | D47: 8 | E47: 14 | F47: 001 | G47: 1714001 | I47: 医療法人五星会 菊名記念病院 | J47: 神奈川県 | K47: 222-0011 | L47: 神奈川県横浜市港北区菊名4-4-27 | M47: 病院 | N47: 218 | O47: 3 | P47: 1 | Q47: 3 | S47: 10月～翌年9月 | T47: 12 | U47: × | Y47: ○ | Z47: 5 | AA47: 要 | AB47: 不明 | AC47: 学研 | AD47: 学研 | AG47: 無 | AH47: 24 | AL47: 2 | BA47: 3 | BC47: 5 | BN47: 0 | BO47: 受講料（グループ外受講生は34万円）
A48: 46 | B48: 2017 | C48: 17 | D48: 8 | E48: 14 | F48: 002 | G48: 1714002 | I48: 医療法人横浜未来ヘルスケアシステム 戸塚共立第1病院 | J48: 神奈川県 | K48: 244－0003 | L48: 神奈川県横浜市戸塚区戸塚町116番地 | M48: 病院 | N48: 148 | O48: 5 | P48: 2 | Q48: 10 | S48: 4月～翌3月、10月～翌年9月 | T48: 12 | U48: × | Y48: 不明 | Z48: 5 | AA48: 要 | AB48: 不明 | AC48: S-QUE | AD48: S-QUE | AG48: 不明 | AL48: 18 | AM48: 5 | AN48: 5 | AO48: 5 | AR48: 5 | AS48: 5 | AT48: 5 | AU48: 5 | AV48: 5 | AX48: 5 | AY48: 5 | AZ48: 5 | BA48: 5 | BB48: 5 | BC48: 5 | BD48: 5 | BE48: 5 | BF48: 5 | BG48: 5 | BN48: 0 | BO48: R2.1指定研修機関名変更
A49: 47 | B49: 2017 | C49: 17 | D49: 8 | E49: 14 | F49: 003 | G49: 1714003 | I49: 社会福祉法人恩賜財団済生会支部神奈川県済生会横浜市東部病院 | J49: 神奈川県 | K49: 230-0012 | L49: 神奈川県横浜市鶴見区下末吉3-6-1 | M49: 病院 | N49: 560 | O49: 28 | P49: 1 | Q49: 31 | S49: ４月～翌年３月、11月～翌年1月 | T49: 12、３ | U49: × | Y49: ○ | Z49: 5 | AA49: 要 | AB49: 不明 | AC49: S-QUE | AD49: S-QUE | AG49: 有 | AH49: 36 | AI49: 46 | AL49: 13 | AM49: 7 | AN49: 7 | AO49: 16 | AS49: 6 | AT49: 3 | AU49: 6 | AV49: 3 | AW49: 9 | AX49: 6 | AY49: 7 | BA49: 28 | BC49: 12 | BF49: 7 | BH49: 3 | BN49: 1 | BO49: 令和6年4月1日より施設の追加、管理委員会の構成員の変更、研修の責任者の変更、指導者の変更、定員数の変更
A50: 48 | B50: 2017 | C50: 17 | D50: 8 | E50: 16 | F50: 001 | G50: 1716001 | H50: 〇 | I50: 医療法人社団藤聖会 八尾総合病院 | J50: 富山県 | BN50: 0 | BO50: 指定取消→富山西総合病院へ(20180807)
A51: 49 | B51: 2017 | C51: 17 | D51: 8 | E51: 17 | F51: 003 | G51: 1717003 | I51: 医療法人社団和楽仁 芳珠記念病院 | J51: 石川県 | K51: 923-1226 | L51: 石川県能美市緑が丘１１－７１ | M51: 病院 | N51: 320 | O51: 3 | P51: 1 | Q51: =P51*O51 -> 3 | S51: 4月～翌年3月 | T51: 12 | U51: × | Y51: ○ | Z51: 5 | AA51: 要 | AB51: 有 | AC51: S-QUE | AG51: 無 | AH51: 40 | AL51: =COUNTA(AM51:BG51) -> 5 | AO51: 3 | AT51: 3 | AW51: 3 | BA51: 3 | BC51: 3 | BH51: 3 | BN51: 1
A52: 50 | B52: 2017 | C52: 17 | D52: 8 | E52: 17 | F52: 004 | G52: 1717004 | I52: 公立松任石川中央病院 | J52: 石川県 | K52: 924-8588 | L52: 石川県白山市倉光三丁目８番地 | M52: 病院 | N52: 305 | O52: 4 | P52: 1 | Q52: 12 | S52: 10月～9月 | T52: 12 | U52: × | Y52: ○ | Z52: 5 | AA52: 要 | AB52: 有 | AC52: S-QUE | AD52: S-QUE | AG52: 無 | AH52: 39.5 | AI52: 53.5 | AL52: 7 | AS52: 3 | AU52: 4 | AV52: 4 | AW52: 1 | AZ52: 3 | BA52: 6 | BB52: 3 | BN52: 0 | BO52: 令和6年10月1日より定員数の変更
A53: 51 | B53: 2017 | C53: 17 | D53: 8 | E53: 17 | F53: 005 | G53: 1717005 | I53: 国民健康保険 小松市民病院 | J53: 石川県 | K53: 923-8560 | L53: 石川県小松市向本折町ホ６０ | M53: 病院 | N53: 344 | O53: 6 | P53: 1 | Q53: =P53*O53 -> 6 | S53: 4月～翌年3月 | T53: 12 | U53: × | Y53: 不明 | Z53: 3 | AA53: 要 | AB53: 有 | AC53: 学研 | AD53: 学研 | AG53: 無 | AL53: 3 | AW53: 3 | BA53: 0 | BC53: 3 | BN53: 0 | BO53: 令和5年4月から栄養区分は休止R060401より協力施設、指導者の変更
A54: 52 | B54: 2017 | C54: 17 | D54: 8 | E54: 40 | F54: 001 | G54: 1740001 | I54: 社会医療法人 弘恵会 ヨコクラ病院 | J54: 福岡県 | K54: 839－0295 | L54: 福岡県みやま市高田町濃施480-2 | M54: 病院 | N54: 199 | O54: 6 | P54: 1 | Q54: 6 | S54: 4月～翌々年3月 | T54: 24 | U54: × | Y54: ○ | Z54: 5 | AA54: 要 | AB54: 有 | AC54: S-QUE | AD54: S-QUE | AG54: 無 | AH54: 40 | AL54: 5 | AO54: 2 | AT54: 2 | AW54: 4 | AY54: 2 | BA54: 2 | BH54: 2 | BN54: 1 | BO54: H30年4月1日名称変更（旧 医療法人弘恵会 ヨコクラ病院）
A55: 53 | B55: 2017 | C55: 17 | D55: 8 | E55: 40 | F55: 002 | G55: 1740002 | I55: 社会医療法人雪の聖母会 聖マリア病院 | J55: 福岡県 | K55: 830－8543 | L55: 福岡県久留米市津福本町422 | M55: 病院 | N55: 1097 | O55: 6 | P55: 1 | Q55: 6 | S55: 4月～翌年3月 | T55: 12 | U55: × | Y55: ○ | Z55: 5 | AA55: 要 | AB55: 不明 | AC55: S-QUE | AD55: S-QUE | AG55: 無 | AH55: 40 | AL55: 9 | AM55: 2 | AN55: 2 | AO55: 2 | AT55: 2 | AW55: 4 | AY55: 2 | BA55: 4 | BD55: 2 | BE55: 2 | BH55: 2 | BJ55: 2 | BN55: 2 | BO55: 令和6年7月1日より研修管理委員会の構成員および指導者の変更
A56: 54 | B56: 2017 | C56: 17 | D56: 8 | E56: 41 | F56: 001 | G56: 1741001 | I56: 社会医療法人祐愛会 織田病院 | J56: 佐賀県 | K56: 849－1392 | L56: 佐賀県鹿島市大字高津原4306 | M56: 病院 | N56: 111 | O56: 8 | P56: 1 | Q56: 8 | S56: 4月～翌年3月 | T56: 12 | U56: × | Y56: 不明 | Z56: 5 | AA56: 要 | AB56: 有 | AC56: S-QUE | AD56: S-QUE | AG56: 無 | AL56: 5 | AO56: 3 | AT56: 3 | AW56: 3 | BA56: 3 | BD56: 5 | BH56: 3 | BN56: 1
A57: 55 | B57: 2018 | C57: 18 | D57: ２ | E57: 01 | F57: 003 | G57: 1801003 | I57: 旭川赤十字病院 | J57: 北海道 | K57: 070-8530 | L57: 北海道旭川市曙1条1丁目1番1号 | M57: 病院 | N57: 520 | O57: 1 | P57: 1 | Q57: 1 | S57: 4月～翌年3月 | T57: 12 | U57: × | Y57: × | Z57: 5 | AB57: 有 | AC57: 放送大学 | AD57: 独自 | AG57: 無 | AH57: 10.8 | AL57: 2 | AW57: 2 | BC57: 1 | BN57: 0 | BO57: ラダーレベルⅢ以上,区分別は日赤職員無料、R70401構成員の変更
A58: 56 | B58: 2018 | C58: 18 | D58: ２ | E58: 01 | F58: 004 | G58: 1801004 | I58: 社会福祉法人恩賜財団済生会支部北海道済生会小樽病院 | J58: 北海道 | K58: 047-0008 | L58: 北海道小樽市築港10番1号 | M58: 病院 | N58: 258 | O58: 2 | P58: 0.5 | Q58: 1 | S58: 4月～翌年12月 | T58: 21 | U58: × | Y58: ○ | Z58: 5 | AA58: 要 | AB58: 有 | AC58: 学研 | AD58: 学研 | AG58: 有 | AH58: 42.8 | AI58: 45.6 | AL58: 10 | AM58: 1 | AN58: 2 | AT58: 2 | AW58: 2 | AY58: 2 | BA58: 2 | BC58: 2 | BD58: 1 | BE58: 2 | BF58: 2 | BJ58: 1 | BN58: 1 | BO58: 令和6年4月1日より指導者の変更および研修計画（eラーニング）の変更
A59: 57 | B59: 2018 | C59: 18 | D59: ２ | E59: 05 | F59: 001 | G59: 1805001 | I59: 社会医療法人青嵐会 本荘第一病院 | J59: 秋田県 | K59: 015-8567 | L59: 秋田県由利本荘市岩渕下110 | M59: 病院 | N59: 160 | O59: 4 | P59: 1 | Q59: 4 | S59: 4月～翌年2月 | T59: 11 | U59: × | Y59: ○ | Z59: 5 | AA59: 要 | AB59: 無 | AC59: S-QUE | AD59: S-QUE | AG59: 無 | AL59: 4 | AU59: 4 | AV59: 4 | AY59: 4 | BA59: 4 | BN59: 0
A60: 58 | B60: 2018 | C60: 18 | D60: ２ | E60: 13 | F60: 013 | G60: 1813013 | I60: 医療法人財団慈生会 野村病院 | J60: 東京都 | K60: 181-8503 | L60: 東京都三鷹市下連雀８－３－６ | M60: 病院 | N60: 133 | O60: 3 | P60: 1 | Q60: 3 | S60: 4月～翌年3月 | T60: 12 | U60: × | Y60: × | Z60: 4 | AA60: 不要 | AB60: 無 | AC60: S-QUE | AD60: S-QUE | AG60: 無 | AL60: 1 | BA60: 3 | BN60: 0 | BO60: ラダーレベルⅢ以上
A61: 59 | B61: 2018 | C61: 18 | D61: ２ | E61: 13 | F61: 014 | G61: 1813014 | I61: 日本赤十字社 | J61: 東京都 | K61: 105-8521 | L61: 東京都港区芝大門１－１－３ | M61: 本部 | O61: 71 | P61: 1 | Q61: 75 | S61: 4～3月．4～11月．10～5月、10～９月 | T61: 8.12 | U61: × | Y61: × | Z61: 5 | AB61: 有 | AC61: 放送大学 | AD61: 独自 | AG61: 無 | AH61: 10.8 | AL61: 12 | AM61: 10 | AN61: 9 | AO61: 8 | AT61: 1 | AW61: 19 | AY61: 18 | BA61: 39 | BB61: 8 | BC61: 15 | BD61: 4 | BE61: 3 | BF61: 3 | BH61: 1 | BJ61: 3 | BK61: 3 | BN61: 3 | BO61: 令和6年4月30日より構成員、協力施設の追加、指導者の変更、定員数の変更
A62: 60 | B62: 2018 | C62: 18 | D62: ２ | E62: 13 | F62: 015 | G62: 1813015 | I62: 武蔵野赤十字病院 | J62: 東京都 | K62: 180-8610 | L62: 東京都武蔵野市境南町１－２６－１ | M62: 病院 | N62: 611 | O62: 12 | P62: 1 | Q62: =P62*O62 -> 12 | S62: 10月～翌年９月・10月~翌５月 | T62: 12・８ | U62: × | Y62: × | Z62: 5 | AB62: 有 | AC62: エルゼビア | AD62: エルゼビア | AG62: 無 | AH62: 10.8 | AL62: 11 | AM62: 2 | AN62: 2 | AO62: 2 | AW62: 2 | AX62: 2 | AY62: 2 | BA62: 2 | BB62: 2 | BC62: 2 | BD62: 2 | BE62: 2 | BJ62: 2 | BN62: 1 | BO62: R70101より構成員、指導者の変更
A63: 61 | B63: 2018 | C63: 18 | D63: ２ | E63: 20 | F63: 001 | G63: 1820001 | I63: 学校法人佐久学園 佐久大学大学院看護学研究科看護学専攻 | J63: 長野県 | K63: 385-0022 | L63: 長野県佐久市岩村田２３８４ | M63: 大学院 | O63: 5 | P63: 1 | Q63: =P63*O63 -> 5 | S63: 4月～翌々年3月 | T63: 24 | U63: ○ | X63: ○ | Y63: 大学院修士課程 | Z63: 5 | AA63: 要 | AB63: 無 | AC63: 放送大学 | AD63: 独自 | AG63: 無 | AH63: 223 | AL63: 10 | AN63: 5 | AO63: 5 | AT63: 5 | AW63: 5 | AY63: 5 | BA63: 5 | BB63: 5 | BC63: 5 | BE63: 5 | BF63: 5 | BH63: 5 | BN63: 1 | BO63: 令和5年11月16日より研修施設および指導者の変更
A64: 62 | B64: 2018 | C64: 18 | D64: ２ | E64: 27 | F64: 004 | G64: 1827004 | I64: 公益社団法人 大阪府看護協会 | J64: 大阪府 | K64: 536-0014 | L64: 大阪市城東区鴫野西2丁目5番25号 | M64: 協会 | O64: 50 | P64: 1 | Q64: =P64*O64 -> 50 | S64: 4月～翌年3月 | T64: 12 | U64: × | V64: ○ | Y64: ○ | Z64: 認定 | AA64: 不要 | AB64: 有 | AC64: S-QUE | AD64: S-QUE | AF64: 旧 | AL64: 14 | AM64: 10 | AN64: 10 | AO64: 10 | AT64: 10 | AU64: 10 | AW64: 15 | AX64: 10 | AY64: 15 | BA64: 45 | BB64: 10 | BC64: 5 | BD64: 10 | BE64: 5 | BF64: 10 | BH64: 5 | BK64: 5 | BL64: 5 | BN64: 3 | BO64: 令和6年11月７日より協力施設の定員変更、施設の追加および研修責任者、指導者の変更
A65: 63 | B65: 2018 | C65: 18 | D65: ２ | E65: 28 | F65: 002 | G65: 1828002 | I65: 姫路赤十字病院 | J65: 兵庫県 | K65: 670-8540 | L65: 姫路市下手野1丁目12番１号 | M65: 病院 | N65: 555 | O65: 5 | P65: 2 | Q65: 9 | S65: 4月～3月 | T65: 12,24 | U65: × | Y65: × | Z65: 5 | AA65: 要 | AB65: 有 | AC65: エルゼビア | AD65: エルゼビア | AG65: 無 | AL65: 12 | AM65: 2 | AN65: 4 | AO65: 5 | AV65: 2 | AW65: 5 | AY65: 4 | BA65: 7 | BB65: 5 | BC65: 5 | BD65: 2 | BE65: 2 | BF65: 2 | BJ65: 2 | BN65: 1 | BO65: ラダーレベルⅢ以上,区分別は日赤職員無料
A66: 64 | B66: 2018 | C66: 18 | D66: ２ | E66: 31 | F66: 001 | G66: 1831001 | I66: 国立大学法人 鳥取大学医学部附属病院 | J66: 鳥取県 | K66: 683-8504 | L66: 鳥取県米子市西町３６－１ | M66: 大学病院 | N66: 697 | O66: 10 | P66: 1 | Q66: =P66*O66 -> 10 | S66: 4月～翌年3月 | T66: 12 | U66: × | Y66: ○ | Z66: 5 | AA66: 不要 | AB66: 有 | AC66: S-QUE | AD66: S-QUE | AG66: 無 | AL66: 7 | AM66: 4 | AN66: 4 | AY66: 4 | BA66: 4 | BC66: 4 | BD66: 4 | BE66: 4 | BN66: 0 | BO66: R70401より構成員、協力施設、指導者の変更
A67: 65 | B67: 2018 | C67: =RIGHT(B67,2) -> 18 | D67: ２ | E67: 35 | F67: 001 | G67: =CONCATENATE(C67,E67,F67) -> 1835001 | I67: 綜合病院 山口赤十字病院 | J67: 山口県 | K67: 753-8519 | L67: 山口県山口市八幡馬場53-1 | M67: 病院 | N67: 475 | O67: 4 | P67: 1 | Q67: =P67*O67 -> 4 | S67: 4月～翌年3月 | T67: 12 | U67: × | Y67: × | Z67: 5 | AA67: 要 | AB67: 有 | AC67: 放送大学 | AD67: 独自 | AG67: 無 | AH67: 10.8 | AL67: 4 | AO67: 2 | AT67: 2 | AW67: 4 | BA67: 4 | BH67: 2 | BN67: =COUNTA(BH67:BM67) -> 1 | BO67: R70401より構成員および指導者の変更
A68: 66 | B68: 2018 | C68: 18 | D68: ２ | E68: 37 | F68: 002 | G68: 1837002 | I68: 高松赤十字病院 | J68: 香川県 | K68: 760-0017 | L68: 香川県高松市番町四丁目1番3号 | M68: 病院 | N68: 576 | O68: 4 | P68: 1 | Q68: =P68*O68 -> 4 | S68: 4月～翌年3月 | T68: 12,24 | U68: × | Y68: × | Z68: 5 | AA68: 要 | AB68: 有 | AC68: 放送大学 | AD68: 独自 | AG68: 無 | AH68: 10.8 | AL68: 5 | AN68: 1 | AO68: 1 | AW68: 1 | BA68: 4 | BC68: 1 | BN68: 0 | BO68: 令和6年4月1日より研修管理委員会の構成員および指導者の変更
A69: 67 | B69: 2018 | C69: 18 | D69: ２ | E69: 40 | F69: 003 | G69: 1840003 | I69: 社会医療法人共愛会 戸畑共立病院 | J69: 福岡県 | K69: 804-0093 | L69: 北九州市戸畑区沢見2丁目5番1号 | M69: 病院 | N69: 218 | O69: 13 | P69: 1 | Q69: 28 | S69: 4月～翌3月,4月～9月 | T69: 6,12 | U69: × | Y69: ○ | Z69: 5 | AA69: 要 | AB69: 有 | AC69: S-QUE | AD69: S-QUE | AG69: 無 | AL69: 12 | AM69: 4 | AN69: 4 | AO69: 4 | AT69: 4 | AU69: 6 | AV69: 2 | AW69: 6 | AY69: 6 | AZ69: 6 | BA69: 18 | BD69: 4 | BE69: 4 | BH69: 4 | BJ69: 4 | BN69: 2 | BO69: 令和6年6月1日より指導者の変更
A70: 68 | B70: 2018 | C70: 18 | D70: ２ | E70: 47 | F70: 001 | G70: 1847001 | I70: 国立大学法人琉球大学 琉球大学病院 | J70: 沖縄県 | K70: 901-2222 | L70: 沖縄県宜野湾市宇喜友名1076番地 | M70: 大学病院 | N70: 570 | O70: 16 | P70: 2 | Q70: 60 | S70: 4月～翌年3月,9月～翌3月、4月～9月 | T70: 6,7,12 | U70: × | Y70: ○ | Z70: 5 | AA70: 不要 | AB70: 有 | AC70: 学研 | AD70: 学研 | AG70: 無 | AL70: 20 | AM70: 11 | AN70: 11 | AO70: 6 | AP70: 2 | AQ70: 3 | AR70: 2 | AS70: 3 | AT70: 3 | AU70: 8 | AV70: 3 | AW70: 9 | AX70: 3 | AY70: 14 | AZ70: 3 | BA70: 28 | BB70: 3 | BC70: 16 | BD70: 9 | BE70: 8 | BF70: 6 | BH70: 3 | BJ70: 3 | BK70: 3 | BL70: 3 | BM70: 2 | BN70: 5 | BO70: R70101に移転に伴う所在地の変更,R70401,疼痛関連区分でも開講、協力施設、指導者の変更
A71: 69 | B71: 2018 | C71: 18 | D71: ２ | E71: 47 | F71: 002 | G71: 1847002 | I71: 社会医療法人仁愛会 浦添総合病院 | J71: 沖縄県 | K71: 901-2102 | L71: 沖縄県浦添市前田一丁目56番１号 | M71: 病院 | N71: 334 | O71: 19 | P71: 1 | Q71: =P71*O71 -> 19 | S71: 4月～翌年3月 | T71: 12 | U71: × | Y71: ○ | Z71: 5 | AA71: 要 | AB71: 有 | AC71: S-QUE | AD71: S-QUE | AG71: 無 | AL71: 7 | AM71: 5 | AN71: 8 | AO71: 5 | AT71: 2 | AY71: 5 | BA71: 6 | BE71: 6 | BF71: 5 | BK71: 5 | BN71: 1 | BO71: 令和70101より指導者及び担当分野の変更。
A72: 70 | B72: 2018 | C72: 18 | D72: 8 | E72: 16 | F72: 002 | G72: 1816002 | I72: 医療法人社団藤聖会 富山西総合病院 | J72: 富山県 | K72: 939-2716 | L72: 富山県富山市婦中町下轡田1019番地 | M72: 病院 | N72: 154 | O72: 4 | P72: 1 | Q72: =P72*O72 -> 4 | S72: 10月～翌年9月 | T72: 12 | U72: × | Y72: ○ | Z72: 5 | AA72: 要 | AB72: 有 | AC72: S-QUE | AD72: S-QUE | AG72: 無 | AL72: 3 | BA72: 4 | BC72: 8 | BE72: 4 | BN72: 0 | BO72: R6.8.1より定員数、特定行為研修管理委員会構成員の変更。
A73: 71 | B73: 2018 | C73: 18 | D73: 8 | E73: 01 | F73: 005 | G73: 1801005 | I73: 医療法人社団 エス・エス・ジェイ 札幌整形循環器病院 | J73: 北海道 | K73: 004-0861 | L73: 北海道札幌市清田区北野１条２丁目11番30号 | M73: 病院 | N73: 181 | O73: 5 | P73: 1 | Q73: =P73*O73 -> 5 | S73: 10月～翌年9月 | T73: 12 | U73: × | Y73: 不明 | AA73: 要 | AB73: 有 | AC73: 放送大学 | AG73: 有 | AH73: 28 | AI73: 54 | AL73: 3 | BA73: 0 | BD73: 0 | BE73: 0 | BN73: 0 | BO73: 5年勤務継続で受講料免除 栄養及び水分管理に係る薬剤投与関連、術後疼痛管理関連、循環動態に係る薬剤投与関連はR２/9/30から休講
A74: 72 | B74: 2018 | C74: 18 | D74: 8 | E74: 05 | F74: 002 | G74: 1805002 | I74: 秋田赤十字病院 | J74: 秋田県 | K74: 010-1495 | L74: 秋田県秋田市上北手猿田字苗代沢222番地1 | M74: 病院 | N74: 480 | O74: 2 | P74: 1 | Q74: =P74*O74 -> 2 | S74: 10月～翌年9月 | T74: 12 | U74: × | Y74: ○ | Z74: 5 | AA74: 要 | AB74: 有 | AC74: 放送大学 | AD74: 独自 | AG74: 無 | AH74: 39.9 | AL74: 4 | AO74: 2 | AT74: 2 | AW74: 4 | BA74: 2 | BH74: 2 | BN74: 1 | BO74: 令和6年4月25日より研修管理委員会の構成員の変更
A75: 73 | B75: 2018 | C75: 18 | D75: 8 | E75: 08 | F75: 002 | G75: 1808002 | I75: 社会福祉法人恩賜財団済生会支部 茨城県済生会水戸済生会総合病院 | J75: 茨城県 | K75: 311-4198 | L75: 茨城県水戸市双葉台3丁目3番10号 | M75: 病院 | N75: 472 | O75: 15 | P75: 1 | Q75: 35 | S75: 4月～翌年3月 | T75: 12 | U75: × | Y75: 不明 | Z75: 3 | AA75: 要 | AB75: 有 | AC75: S-QUE | AD75: S-QUE | AG75: 無 | AH75: 45.2 | AI75: 52.4 | AL75: 20 | AM75: 20 | AN75: 20 | AO75: 13 | AP75: 13 | AQ75: 5 | AR75: 15 | AS75: 15 | AT75: 15 | AU75: 20 | AV75: 15 | AW75: 15 | AX75: 10 | AY75: 20 | AZ75: 10 | BA75: 20 | BB75: 15 | BC75: 20 | BD75: 13 | BE75: 15 | BF75: 13 | BH75: 10 | BI75: 10 | BJ75: 10 | BK75: 10 | BL75: 10 | BM75: 10 | BN75: 6 | BO75: 令和6年4月1日より指導者の変更
A76: 74 | B76: 2018 | C76: 18 | D76: 8 | E76: 18 | F76: 002 | G76: 1818002 | I76: 市立敦賀病院 | J76: 福井県 | K76: 914-0058 | L76: 福井県敦賀市三島町1丁目6番60号 | M76: 病院 | N76: 332 | O76: 5 | P76: 1 | Q76: =P76*O76 -> 5 | S76: 4月～翌年3月 | T76: 12 | U76: × | Y76: ○ | Z76: 認定 | AA76: 要 | AB76: 有 | AC76: S-QUE | AD76: S-QUE | AG76: 無 | AH76: 39 | AL76: 5 | AO76: 5 | AT76: 5 | AV76: 5 | AW76: 5 | BA76: 5 | BH76: 5 | BN76: 1 | BO76: 令和6年5月1日より研修管理委員会の構成員の変更
A77: 75 | B77: 2018 | C77: 18 | D77: 8 | E77: 20 | F77: 002 | G77: 1820002 | I77: 伊那中央病院 | J77: 長野県 | K77: 396-8555 | L77: 長野県伊那市小四郎久保1313番地1 | M77: 病院 | N77: 394 | O77: 50 | P77: 1 | Q77: =P77*O77 -> 50 | S77: 10月～翌年9月 | T77: 12 | U77: × | Y77: 不明 | Z77: 5 | AA77: 要 | AB77: 有 | AC77: S-QUE | AD77: S-QUE | AG77: 無 | AL77: 10 | AM77: 5 | AN77: 5 | AO77: 5 | AU77: 5 | AW77: 5 | AY77: 5 | BA77: 5 | BC77: 5 | BF77: 0 | BG77: 5 | BN77: 0 | BO77: R70115より構成員、指導者の変更。精神および神経症に～休止
A78: 76 | B78: 2018 | C78: 18 | D78: 8 | E78: 21 | F78: 001 | G78: 1821001 | I78: 岐阜県厚生農業協同組合連合会 岐阜・西濃医療センター 西濃厚生病院 | J78: 岐阜県 | K78: 501-0532 | L78: 岐阜県揖斐郡大野町下磯293番地1 | M78: 病院 | N78: 293 | O78: 4 | P78: 1 | Q78: 4 | S78: 6月～翌年6月、1～6月 | T78: 6，13 | U78: × | Y78: 不明 | Z78: 5 | AA78: 要 | AB78: 無 | AC78: S-QUE | AD78: S-QUE | AG78: 無 | AL78: 2 | AW78: 2 | AY78: 2 | BN78: 0 | BO78: R61001より研修講義時間の変更
A79: 77 | B79: 2018 | C79: 18 | D79: 8 | E79: 21 | F79: 002 | G79: 1821002 | I79: 岐阜県厚生農業協同組合連合会 岐阜・西濃医療センター 岐北厚生病院 | J79: 岐阜県 | K79: 501-2105 | L79: 岐阜県山県市高富1187番地3 | M79: 病院 | N79: 316 | O79: 2 | P79: 1 | Q79: =P79*O79 -> 2 | S79: 10月～翌年9月 | T79: 12 | U79: × | Y79: 不明 | Z79: 5 | AA79: 要 | AB79: 無 | AC79: S-QUE | AD79: S-QUE | AG79: 無 | AL79: 1 | AU79: 2 | BN79: 0 | BO79: 令和6年4月1日より研修管理委員会の構成員の変更
A80: 78 | B80: 2018 | C80: 18 | D80: 8 | E80: 21 | F80: 003 | G80: 1821003 | I80: 岐阜県厚生農業協同組合連合会 飛騨医療センター 久美愛厚生病院 | J80: 岐阜県 | K80: 506-8502 | L80: 岐阜県高山市中切町1番地1 | M80: 病院 | N80: 300 | O80: 6 | P80: 1 | Q80: 6 | S80: 4月～翌年3月 | T80: 12 | U80: × | Y80: 不明 | AB80: 有 | AC80: S-QUE | AD80: S-QUE | AG80: 無 | AL80: 2 | AW80: 3 | BA80: 3 | BN80: 0 | BO80: 令和6年4月１日より研修管理委員会の構成員の変更、特定行為研修責任者の変更、特定行為研修の指導者の変更
A81: 79 | B81: 2018 | C81: 18 | D81: 8 | E81: 21 | F81: 004 | G81: 1821004 | I81: 岐阜県厚生農業協同組合連合会 中濃厚生病院 | J81: 岐阜県 | K81: 501-3802 | L81: 岐阜県関市若草通5丁目1番地 | M81: 病院 | N81: 402 | O81: 10 | P81: 1 | Q81: 10 | S81: 10月～翌年９月 | T81: 18 | U81: × | Y81: 不明 | Z81: 5 | AA81: 要 | AB81: 無 | AC81: S-QUE | AD81: S-QUE | AE81: 旧 | AF81: 旧 | AG81: 無 | AL81: 5 | AU81: 2 | AY81: 2 | AZ81: 2 | BA81: 2 | BC81: 2 | BN81: 0
A82: 80 | B82: 2018 | C82: 18 | D82: 8 | E82: 21 | F82: 005 | G82: 1821005 | I82: 岐阜県厚生農業協同組合連合会 東濃中部医療センター 東濃厚生病院 | J82: 岐阜県 | K82: 509-6101 | L82: 岐阜県瑞浪市土岐町76番地1 | M82: 病院 | N82: 270 | O82: 4 | P82: 1 | Q82: 4 | S82: 4月～翌年3月 | T82: 12 | U82: × | Y82: ○ | Z82: 5 | AA82: 要 | AB82: 無 | AC82: S-QUE | AD82: S-QUE | AG82: 無 | AL82: 5 | AN82: 6 | AY82: 6 | BA82: 6 | BB82: 6 | BG82: 6 | BN82: 0 | BO82: 令和５年4月1日より進度表の変更。 令和6年4月1日より管理委員会構成員の変更
A83: 81 | B83: 2018 | C83: 18 | D83: 8 | E83: 21 | F83: 006 | G83: 1821006 | I83: 岐阜県厚生農業協同組合連合会 岐阜・西濃医療センター 西美濃厚生病院 | J83: 岐阜県 | K83: 503-1394 | L83: 岐阜県養老郡養老町押越986 | M83: 病院 | N83: 315 | O83: 2 | P83: 1 | Q83: 2 | S83: 4月～翌年3月 | T83: 12 | U83: × | Y83: ○ | Z83: 5 | AA83: 要 | AB83: 無 | AC83: S-QUE | AD83: S-QUE | AG83: 無 | AL83: =COUNTA(AM83:BG83) -> 1 | AT83: 2 | BN83: 0
A84: 82 | B84: 2018 | C84: 18 | D84: 8 | E84: 22 | F84: 001 | G84: 1822001 | I84: 学校法人 聖隷学園 聖隷クリストファー大学 | J84: 静岡県 | K84: 453-8558 | L84: 静岡県浜松市中央区三方原町3453 | M84: 大学 | O84: 9 | P84: 1 | Q84: 9 | S84: 4月～翌年3月 | T84: 12 | U84: × | X84: ○ | Y84: ○ | Z84: 5 | AA84: 要 | AB84: 無 | AC84: 放送大学 | AD84: 学研 | AG84: 無 | AH84: 48 | AJ84: 一般 | AK84: ○ | AL84: 8 | AO84: 9 | AT84: 9 | AW84: 9 | BA84: 9 | BB84: 4 | BC84: 4 | BE84: 4 | BF84: 4 | BH84: 5 | BN84: 1 | BO84: 令和6年4月1日より定員数、研修施設、研修責任者、研修管理委員会の構成員、指導者の変更R6110より構成員の変更
A85: 83 | B85: 2018 | C85: 18 | D85: 8 | E85: 22 | F85: 002 | G85: 1822002 | I85: 公益社団法人有隣厚生会富士病院 | J85: 静岡県 | K85: 412-0043 | L85: 静岡県御殿場市新橋1784 | M85: 病院 | N85: 160 | O85: 10 | P85: 2 | Q85: 20 | S85: 4月～９月、10月～翌年3月 | T85: 6 | U85: × | Y85: 不明 | Z85: 5 | AA85: 要 | AB85: 有 | AC85: S-QUE | AD85: S-QUE | AG85: 無 | AL85: 17 | AM85: 20 | AN85: 20 | AO85: 20 | AS85: 5 | AT85: 20 | AU85: 20 | AV85: 20 | AW85: 20 | AX85: 20 | AY85: 20 | AZ85: 20 | BA85: 20 | BB85: 20 | BC85: 20 | BD85: 20 | BE85: 20 | BF85: 6 | BH85: 20 | BJ85: 20 | BL85: 20 | BN85: 3 | BO85: 令和6年4月1日より施設、指導者、定員数の変更
A86: 84 | B86: 2018 | C86: 18 | D86: 8 | E86: 28 | F86: 003 | G86: 1828003 | I86: 医療法人社団慈恵会新須磨病院 | J86: 兵庫県 | K86: 654-0048 | L86: 兵庫県神戸市須磨区衣掛町3-1-14 | M86: 病院 | N86: 147 | O86: 6 | P86: 1 | Q86: =P86*O86 -> 6 | S86: 10月～3月/9月～（次年度） | T86: 6 | U86: × | Y86: × | Z86: 5 | AA86: 要 | AB86: 有 | AC86: S-QUE | AD86: S-QUE | AE86: 新 | AF86: 新 | AG86: 無 | AL86: 6 | AU86: 6 | AW86: 6 | AY86: 6 | BA86: 6 | BC86: 6 | BF86: 6 | BN86: 0
A87: 85 | B87: 2018 | C87: 18 | D87: 8 | E87: 40 | F87: 004 | G87: 1840004 | I87: 福岡赤十字病院 | J87: 福岡県 | K87: 815-8555 | L87: 福岡県福岡市南区大楠3丁目1番1号 | M87: 病院 | N87: 509 | O87: 7 | P87: 2 | Q87: 14 | S87: 10月～9月/4月～ | T87: 12 | U87: × | Y87: × | Z87: 5 | AA87: 要 | AB87: 有 | AC87: 放送大学 | AD87: 独自 | AG87: 無 | AL87: 11 | AM87: 4 | AN87: 4 | AO87: 2 | AW87: 1 | AY87: 4 | BA87: 8 | BB87: 1 | BC87: 1 | BD87: 2 | BE87: 2 | BF87: 2 | BJ87: 2 | BK87: 2 | BN87: 2 | BO87: ラダーレベルⅢ以上、共通科目（実習）及び区分別科目は赤十字医療施設の職員は無料で受講可 R3.4定員変更R60401より構成員、責任者、指導者の変更
A88: 86 | B88: 2018 | C88: 18 | D88: 8 | E88: 41 | F88: 002 | G88: 1841002 | I88: 社会医療法人謙仁会 山元記念病院 | J88: 佐賀県 | K88: 848-0031 | L88: 佐賀県伊万里市二里町八谷搦 88-4 | M88: 病院 | N88: 150 | O88: 8 | P88: 1 | Q88: 8 | S88: 4月～翌年3月 | T88: 12 | U88: × | Y88: ○ | Z88: 5 | AA88: 要 | AB88: 無 | AC88: S-QUE | AD88: S-QUE | AG88: 無 | AL88: 5 | AO88: 3 | AT88: 3 | AU88: 5 | AW88: 3 | BA88: 3 | BH88: 3 | BN88: 1 | BO88: 令和6年4月24日より研修管理委員会の構成員および指導者の変更
A89: 87 | B89: 2018 | C89: 18 | D89: 8 | E89: 44 | F89: 002 | G89: 1844002 | I89: 社会医療法人敬和会 大分岡病院 | J89: 大分県 | K89: 870-0192 | L89: 大分県大分市西鶴崎3-7-11 | M89: 病院 | N89: 224 | O89: 6 | P89: 1 | Q89: 6 | S89: 4月～翌年10月・4月～翌4月・12月～4月 | T89: 5・13・19 | U89: × | Y89: ○ | Z89: 5 | AA89: 要 | AB89: 有 | AC89: S-QUE | AD89: S-QUE | AG89: 無 | AL89: 15 | AM89: 4 | AN89: 4 | AO89: 4 | AR89: 2 | AS89: 2 | AT89: 2 | AU89: 2 | AV89: 2 | AW89: 4 | AX89: 2 | AY89: 6 | BA89: 6 | BB89: 2 | BD89: 4 | BE89: 4 | BH89: 2 | BI89: 2 | BJ89: 2 | BL89: 2 | BN89: 4 | BO89: 令和6年2月1日より施設の追加および指導者の変更
A90: 88 | B90: 2018 | C90: 18 | D90: 8 | E90: 47 | F90: 003 | G90: 1847003 | I90: 医療法人徳洲会 南部徳洲会病院 | J90: 沖縄県 | K90: 901-0493 | L90: 沖縄県島尻郡八重瀬町字外間171番地1 | M90: 病院 | N90: 345 | O90: 5 | P90: 1 | Q90: 5 | S90: 10月～翌年9月 | T90: 12 | U90: × | Y90: ○ | Z90: 5 | AA90: 要 | AB90: 有 | AC90: 学研 | AD90: 学研 | AG90: 無 | AL90: 7 | AO90: 5 | AT90: 10 | AU90: 10 | AW90: 5 | AY90: 10 | BA90: 10 | BC90: 0 | BH90: 10 | BN90: 1 | BO90: 令和6年4月1日より研修管理委員会の構成員、研修責任者、指導者、定員数の変更
A91: 89 | B91: 2019 | C91: 19 | D91: ２ | E91: 01 | F91: 006 | G91: 1901006 | I91: 清水赤十字病院 | J91: 北海道 | K91: 089-0195 | L91: 北海道上川郡清水町南2条2丁目1 | M91: 病院 | N91: 92 | O91: 2 | P91: 1 | Q91: 2 | S91: 4月～10月 10月～翌9月 4月～翌3月 | T91: 12 | U91: × | Y91: × | Z91: 5 | AA91: 要 | AB91: 有 | AC91: 放送大学 | AD91: 独自 | AL91: 6 | AO91: 2 | AT91: 2 | AW91: 2 | BA91: 2 | BC91: 2 | BD91: 2 | BH91: 2 | BN91: 1
A92: 90 | B92: 2019 | C92: 19 | D92: 2 | E92: 04 | F92: 002 | G92: 1904002 | I92: 石巻赤十字病院 | J92: 宮城県 | K92: 986-0861 | L92: 宮城県石巻市蛇田字西道下71番地 | M92: 病院 | N92: 464 | O92: 8 | P92: 1 | Q92: 8 | S92: 4月～翌年3月 | T92: 12 | U92: × | Y92: × | Z92: 5 | AA92: 要 | AB92: 有 | AC92: 放送大学 | AD92: 独自 | AL92: 7 | AM92: 2 | AN92: 2 | AW92: 2 | AY92: 2 | BA92: 2 | BB92: 2 | BC92: 2 | BN92: 0 | BO92: 令和6年10月1日より指導者の変更
A93: 91 | B93: 2019 | C93: 19 | D93: 2 | E93: 04 | F93: 003 | G93: 1904003 | I93: 医療法人 浄仁会 大泉記念病院 | J93: 宮城県 | K93: 989-0731 | L93: 宮城県白石市福岡深谷字一本松5-1 | M93: 病院 | N93: 192 | O93: 5 | P93: 1 | Q93: 5 | S93: 4月～翌年3月 | T93: 12 | U93: × | Y93: × | Z93: 5 | AA93: 要 | AB93: 有 | AC93: 学研 | AD93: 学研 | AL93: 4 | AO93: 9 | AT93: 9 | AW93: 1 | BA93: 2 | BH93: 2 | BN93: 1 | BO93: 令和6年4月1日より研修管理委員会の構成員および指導者の変更
A94: 92 | B94: 2019 | C94: 19 | D94: 2 | E94: 13 | F94: 016 | G94: 1913016 | I94: 公益財団法人日産厚生会玉川病院 | J94: 東京都 | K94: 158-0095 | L94: 東京都世田谷区瀬田4-8-1 | M94: 病院 | N94: 389 | O94: 6 | P94: 1 | Q94: 6 | S94: 6月～翌年5月 | T94: 12 | U94: × | Y94: 不明 | Z94: 不明 | AA94: 不明 | AB94: 有 | AC94: S-QUE | AD94: S-QUE | AL94: 8 | AR94: 3 | AV94: 3 | AW94: 3 | AX94: 3 | AY94: 2 | BA94: 3 | BB94: 3 | BC94: 2 | BN94: 0 | BO94: 令和6年6月1日より研修内容の変更
A95: 93 | B95: 2019 | C95: 19 | D95: 2 | E95: 13 | F95: 017 | G95: 1913017 | I95: 社会医療法人社団正志会 花と森の東京病院 | J95: 東京都 | K95: 114-0024 | L95: 東京都北区西ヶ原2丁目3番6号 | M95: 病院 | N95: 199 | O95: 8 | P95: 2 | Q95: 8 | S95: 4月～翌年3月、7月～翌々年3月 | T95: 12、21 | U95: × | Y95: × | Z95: 5 | AA95: 要 | AB95: 有 | AC95: S-QUE | AD95: S-QUE | AL95: 8 | AM95: 8 | AN95: 8 | AO95: 8 | AU95: 8 | AV95: 8 | AY95: 8 | BA95: 8 | BF95: 8 | BI95: 0 | BK95: 8 | BN95: 2 | BO95: R70101より指導者の変更
A96: 94 | B96: 2019 | C96: 19 | D96: 2 | E96: 14 | F96: 004 | G96: 1914004 | I96: 独立行政法人労働者健康安全機構 | J96: 神奈川県 | K96: 211－0021 | L96: 神奈川県川崎市中原区木月住吉町1番1号 | M96: 本部 | O96: 90 | P96: 1 | Q96: =P96*O96 -> 90 | S96: 4月～翌年3月 | T96: 12 | U96: × | Y96: × | Z96: 5 | AA96: 要 | AB96: 有 | AC96: S-QUE | AD96: S-QUE | AL96: 18 | AM96: 37 | AN96: 39 | AO96: 10 | AP96: 1 | AS96: 1 | AT96: 1 | AU96: 12 | AV96: 14 | AW96: 22 | AX96: 19 | AY96: 46 | AZ96: 1 | BA96: 90 | BB96: 12 | BC96: 19 | BD96: 25 | BE96: 32 | BF96: 10 | BJ96: 13 | BK96: 1 | BL96: 3 | BM96: 1 | BN96: =COUNTA(BH96:BM96) -> 4 | BO96: R61201より、使用施設、指導者の変更
A97: 95 | B97: 2019 | C97: 19 | D97: 2 | E97: 14 | F97: 005 | G97: 1914005 | I97: 横浜市立みなと赤十字病院 | J97: 神奈川県 | K97: 232-8682 | L97: 神奈川県横浜市中区新山下3丁目12番1号 | M97: 病院 | N97: 634 | O97: 8 | P97: 1 | Q97: 8 | S97: ４月～翌年３月．4～11月、10～9月、１０～5 | T97: 8.12 | U97: × | Y97: × | Z97: 5 | AA97: 要 | AB97: 有 | AC97: 放送大学 | AD97: 独自 | AL97: 10 | AM97: 1 | AN97: 1 | AO97: 2 | AV97: 1 | AW97: 1 | AY97: 2 | BA97: 3 | BB97: 1 | BD97: 1 | BE97: 1 | BJ97: 1 | BM97: 10 | BN97: 2 | BO97: R70101より指導者の変更
A98: 96 | B98: 2019 | C98: 19 | D98: 2 | E98: 16 | F98: 003 | G98: 1916003 | I98: 富山県立中央病院 | J98: 富山県 | K98: 930-8550 | L98: 富山県富山市西長江2丁目2番78号 | M98: 病院 | N98: 733 | O98: 5 | P98: 1 | Q98: 8 | S98: 6月～翌年3月、11~3月 | T98: 10 | U98: × | Y98: ○ | Z98: 5 | AA98: 要 | AB98: 有 | AC98: 学研 | AD98: 学研 | AL98: 14 | AM98: 5 | AN98: 5 | AO98: 5 | AP98: 5 | AS98: 5 | AU98: 5 | AV98: 5 | AW98: 6 | AX98: 5 | AY98: 5 | BA98: 8 | BC98: 5 | BE98: 5 | BF98: 5 | BK98: 5 | BM98: 5 | BN98: 2 | BO98: R61101より区分・栄養（中心静脈）定員数変更で合計５とする
A99: 97 | B99: 2019 | C99: 19 | D99: 2 | E99: 16 | F99: 004 | G99: 1916004 | I99: 南砺市民病院 | J99: 富山県 | K99: 932-0211 | L99: 富山県南砺市井波938番地 | M99: 病院 | N99: 175 | O99: 4 | P99: 1 | Q99: =P99*O99 -> 4 | S99: ７月～６月 | T99: 12 | U99: × | Y99: ○ | Z99: 5 | AA99: 不明 | AB99: 有 | AC99: 学研 | AD99: 学研 | AL99: 5 | AO99: 4 | AT99: 4 | AW99: 4 | BA99: 4 | BC99: 4 | BH99: 4 | BN99: 1 | BO99: 令和6年7月1日より定員数の変更
A100: 98 | B100: 2019 | C100: 19 | D100: 2 | E100: 20 | F100: 003 | G100: 1920003 | I100: 社会医療法人財団慈泉会 相澤病院 | J100: 長野県 | K100: 390-8510 | L100: 長野県松本市本庄2-5-1 | M100: 病院 | N100: 460 | O100: 8 | P100: 1 | Q100: =P100*O100 -> 8 | S100: 4月～翌年3月 | T100: 12 | U100: × | Y100: × | Z100: 5 | AA100: 要 | AB100: 有 | AC100: 学研 | AD100: 学研 | AL100: 14 | AM100: 3 | AN100: 3 | AO100: 2 | AR100: 2 | AS100: 2 | AU100: 2 | AV100: 2 | AW100: 3 | AX100: 5 | AY100: 3 | BA100: 8 | BC100: 3 | BD100: 3 | BE100: 3 | BN100: 0 | BO100: R70201より指導者の変更
A101: 99 | B101: 2019 | C101: 19 | D101: 2 | E101: 21 | F101: 007 | G101: 1921007 | I101: 県北西部地域医療センター 国保白鳥病院 | J101: 岐阜県 | K101: 501-5122 | L101: 岐阜県郡上市白鳥町為真１２０５番地１ | M101: 病院 | N101: 64 | O101: 3 | P101: 1 | Q101: =P101*O101 -> 3 | S101: 4月～翌年3月 | T101: 12 | U101: × | Y101: 不明 | Z101: 5 | AA101: 要 | AB101: 有 | AC101: S-QUE | AD101: S-QUE | AL101: 4 | AO101: 1 | AT101: 1 | AW101: 1 | BA101: 3 | BH101: 2 | BN101: 1 | BO101: 令和6年4月1日より研修管理委員会の構成員および指導者の変更
A102: 100 | B102: 2019 | C102: 19 | D102: 2 | E102: 22 | F102: 003 | G102: 1922003 | I102: 国立大学法人浜松医科大学 浜松医科大学医学部附属病院 | J102: 静岡県 | K102: 431-3192 | L102: 静岡県浜松市東区半田山一丁目20番1号 | M102: 大学病院 | N102: 613 | O102: 30 | P102: 1 | Q102: =P102*O102 -> 30 | S102: 4～3月、8～3月 | T102: 8.12 | U102: × | Y102: × | Z102: 5 | AA102: 要 | AB102: 有 | AC102: S-QUE | AD102: S-QUE | AL102: 17 | AM102: 20 | AN102: 20 | AO102: 5 | AP102: 5 | AQ102: 3 | AR102: 3 | AS102: 3 | AU102: 10 | AV102: 3 | AX102: 3 | AY102: 20 | BA102: 30 | BB102: 5 | BC102: 10 | BD102: 15 | BE102: 10 | BF102: 10 | BJ102: 5 | BK102: 5 | BN102: 2 | BO102: 令和6年8月1日より協力施設、定員数、 指導者の変更
A103: 101 | B103: 2019 | C103: 19 | D103: 2 | E103: 23 | F103: 003 | G103: 1923003 | I103: 医療法人名古屋澄心会 名古屋ハートセンター | J103: 愛知県 | K103: 461-0045 | L103: 愛知県名古屋市東区砂田橋一丁目1番14号 | M103: 病院 | N103: 64 | O103: 5 | P103: 1 | Q103: 20 | S103: 4月～翌年3月、8月~翌3月 | T103: 8.12 | U103: × | AB103: 有 | AC103: S-QUE | AD103: S-QUE | AL103: 10 | AN103: 5 | AO103: 3 | AU103: 3 | AV103: 3 | AY103: 3 | AZ103: 5 | BA103: 5 | BB103: 5 | BC103: 5 | BE103: 3 | BN103: 0 | BO103: 令和４年４月より共通５ 区分各５名 計２５名
A104: 102 | B104: 2019 | C104: 19 | D104: 2 | E104: 23 | F104: 004 | G104: 1923004 | I104: 学校法人 藤田学園 藤田医科大学 保健衛生学部 臨床看護研修センター | J104: 愛知県 | K104: 470-1192 | L104: 愛知県豊明市沓掛町田楽ヶ窪1番地98 | M104: 大学 | O104: 77 | P104: 2 | Q104: =P104*O104 -> 154 | S104: 4月～翌年3月 10月～翌9月、4~9月、10~3月 | T104: 6.12 | U104: × | AB104: 有 | AC104: S-QUE | AD104: S-QUE | AL104: 18 | AM104: 38 | AN104: 32 | AO104: 14 | AP104: 6 | AR104: 14 | AS104: 14 | AU104: 77 | AV104: 8 | AW104: 15 | AX104: 14 | AY104: 38 | AZ104: 8 | BA104: 71 | BB104: 8 | BC104: 23 | BD104: 16 | BE104: 22 | BF104: 10 | BI104: 8 | BJ104: 8 | BK104: 10 | BM104: 6 | BN104: 4 | BO104: R60920から指導者、担当分野の変更
A105: 103 | B105: 2019 | C105: 19 | D105: 2 | E105: 23 | F105: 005 | G105: 1923005 | I105: 国立大学法人東海国立大学機構 名古屋大学医学部附属病院 | J105: 愛知県 | K105: 466-8560 | L105: 愛知県名古屋市昭和区鶴舞町65番地 | M105: 大学病院 | N105: 1080 | O105: 30 | P105: 2 | Q105: =P105*O105 -> 60 | S105: 7月～翌年6月、1月～12月 | T105: 12 | U105: × | Z105: 5 | AA105: 要 | AB105: 有 | AC105: S-QUE | AD105: S-QUE | AL105: 18 | AM105: 20 | AN105: 20 | AO105: 10 | AP105: 5 | AR105: 5 | AS105: 5 | AT105: 5 | AU105: 20 | AV105: 10 | AW105: 5 | AX105: 15 | AY105: 25 | BA105: 40 | BB105: 10 | BC105: 5 | BD105: 20 | BE105: 15 | BF105: 5 | BH105: 2 | BI105: 5 | BK105: 3 | BL105: 1 | BN105: 4 | BO105: R061101より構成員の変更
A106: 104 | B106: 2019 | C106: 19 | D106: 2 | E106: 27 | F106: 005 | G106: 1927005 | I106: 医療法人藤井会 石切生喜病院 | J106: 大阪府 | K106: 579-8026 | L106: 大阪府東大阪市弥生町18-28 | M106: 病院 | N106: 331 | O106: 12 | P106: 1 | Q106: =P106*O106 -> 12 | S106: 4月～翌年3月 | T106: 12 | U106: × | AB106: 無 | AC106: S-QUE | AL106: 13 | AM106: 4 | AN106: 4 | AP106: 2 | AU106: 4 | AW106: 2 | AX106: 2 | AY106: 6 | AZ106: 2 | BA106: 4 | BB106: 2 | BD106: 2 | BE106: 2 | BF106: 2 | BK106: 2 | BL106: 2 | BN106: 2 | BO106: 令和6年4月1日より指導者の変更・令和６年４・５月研修管理委員会の構成員の変更
A107: 105 | B107: 2019 | C107: 19 | D107: 2 | E107: 27 | F107: 006 | G107: 1927006 | I107: 社会福祉法人恩賜財団済生会支部大阪府済生会泉南医療福祉センター | J107: 大阪府 | K107: 590-0535 | L107: 大阪府泉南市りんくう南浜3-7 | M107: 病院 | N107: 未記入 | O107: 3 | P107: 1 | Q107: =P107*O107 -> 3 | S107: 4月～翌年3月 | T107: 12 | U107: × | AB107: 無 | AC107: S-QUE | AD107: S-QUE | AL107: 2 | BA107: 3 | BB107: 3 | BN107: 0
A108: 106 | B108: 2019 | C108: 19 | D108: 2 | E108: 30 | F108: 002 | G108: 1930002 | I108: 日本赤十字社 和歌山医療センター | J108: 和歌山県 | K108: 640-8558 | L108: 和歌山県和歌山市小松原通四丁目20番地 | M108: 病院 | N108: 873 | O108: 25 | P108: 1 | Q108: 25 | S108: 10月～翌9月 | T108: 12 | U108: × | AB108: 有 | AC108: 学研 | AD108: 学研 | AL108: 11 | AM108: 8 | AN108: 8 | AV108: 2 | AW108: 2 | AY108: 8 | BA108: 8 | BB108: 2 | BC108: 2 | BD108: 2 | BE108: 5 | BF108: 3 | BJ108: 2 | BK108: 3 | BN108: 2 | BO108: 令和6年4月1日より研修責任者、研修管理委員会の構成員、指導者の変更
A109: 107 | B109: 2019 | C109: 19 | D109: 2 | E109: 31 | F109: 002 | G109: 1931002 | I109: 鳥取赤十字病院 | J109: 鳥取県 | K109: 680-0001 | L109: 鳥取県鳥取市尚徳町117番地 | M109: 病院 | N109: 350 | O109: 13 | P109: 1 | Q109: =P109*O109 -> 13 | S109: 4月～翌年3月 | T109: 12 | U109: × | AB109: 有 | AC109: 放送大学 | AD109: その他 | AL109: 11 | AM109: 3 | AN109: 2 | AO109: 1 | AV109: 2 | AW109: 1 | AY109: 3 | BA109: 5 | BB109: 1 | BC109: 1 | BD109: 2 | BE109: 2 | BJ109: 2 | BN109: 1 | BO109: 令和6年4月1日より研修管理委員会構成員、研修責任者の変更、指導者の変更
A110: 108 | B110: 2019 | C110: 19 | D110: 2 | E110: 32 | F110: 001 | G110: 1932001 | I110: 松江市立病院 | J110: 島根県 | K110: 690-8509 | L110: 島根県松江市乃白町32番地1 | M110: 病院 | N110: 802 | O110: 9 | P110: 1 | Q110: =P110*O110 -> 9 | S110: 5月～翌年2月 | T110: 10 | U110: × | AB110: 有 | AC110: S-QUE | AD110: S-QUE | AL110: 7 | AM110: 3 | AN110: 3 | AY110: 3 | BA110: 6 | BC110: 3 | BD110: 3 | BE110: 3 | BJ110: 3 | BN110: 1 | BO110: 令和6年4月1日より研修管理委員会の構成員の変更
A111: 109 | B111: 2019 | C111: 19 | D111: 2 | E111: 32 | F111: 002 | G111: 1932002 | I111: 松江赤十字病院 | J111: 島根県 | K111: 690-8506 | L111: 島根県松江市母衣町200番地 | M111: 病院 | N111: 599 | O111: 8 | P111: 2 | Q111: =P111*O111 -> 16 | S111: 4月～翌3月（一部11月）/10月～翌9月（一部5月） | T111: 12、８ | U111: × | AB111: 有 | AC111: 放送大学 | AD111: その他 | AL111: 10 | AM111: 8 | AN111: 8 | AO111: 4 | AW111: 4 | AY111: 8 | BA111: 8 | BB111: 4 | BC111: 4 | BD111: 8 | BE111: 4 | BJ111: 4 | BN111: 1 | BO111: 令和6年4月1日より研修管理委員会の構成員の変更、指導者の追加
A112: 110 | B112: 2019 | C112: 19 | D112: 2 | E112: 34 | F112: 001 | G112: 1934001 | I112: 国立大学法人 広島大学病院 | J112: 広島県 | K112: 734-8551 | L112: 広島県広島市南区霞1丁目2番地3号 | M112: 大学病院 | N112: 746 | O112: 10 | P112: 1 | Q112: =P112*O112 -> 10 | S112: 4月～翌年3月 | T112: 12 | U112: × | Z112: 5 | AA112: 要 | AB112: 有 | AC112: 学研 | AD112: S-QUE | AL112: 10 | AM112: 2 | AN112: 2 | AV112: 2 | AW112: 3 | AY112: 2 | BA112: 10 | BB112: 2 | BC112: 5 | BD112: 3 | BE112: 3 | BN112: 0 | BO112: R61011より研修施設、指導者の変更
A113: 111 | B113: 2019 | C113: 19 | D113: 2 | E113: 35 | F113: 002 | G113: 1935002 | H113: 〇 | I113: 医療法人茜会 ウエストジャパン看護専門学校 よしみず病院附属看護学院 | J113: 山口県 | K113: 750-0061 | L113: 山口県下関市大坪本町44番20号 | BN113: 0 | BO113: 令和6年6月1日より区分別科目2区分の休止 Ｒ６．１１月指定の取り消し
A114: 112 | B114: 2019 | C114: 19 | D114: 2 | E114: 41 | F114: 003 | G114: 1941003 | I114: 地方独立行政法人 佐賀県医療センター好生館 | J114: 佐賀県 | K114: 840-8571 | L114: 佐賀県佐賀市嘉瀬町大字中原 400番地 | M114: 病院 | N114: 450 | O114: 6 | P114: 3 | Q114: 9 | S114: 4月～8月,4月～翌3月,4月～翌7月 | T114: 5,12,16 | U114: × | AB114: 有 | AC114: S-QUE | AD114: S-QUE | AL114: =COUNTA(AM114:BG114) -> 11 | AM114: 6 | AN114: 6 | AR114: 2 | AS114: 2 | AU114: 2 | AX114: 2 | AY114: 6 | BA114: 6 | BD114: 4 | BE114: 2 | BF114: 4 | BJ114: 2 | BK114: 7 | BN114: 2 | BO114: R70401より救急領域12月コース追加、指導者、構成員、定員の変更
A115: 113 | B115: 2019 | C115: 19 | D115: 2 | E115: 43 | F115: 001 | G115: 1943001 | I115: 独立行政法人国立病院機構 熊本医療センター | J115: 熊本県 | K115: 860-0008 | L115: 熊本県熊本市中央区二の丸1番5号 | M115: 病院 | N115: 550 | O115: 7 | P115: 1 | Q115: =P115*O115 -> 7 | S115: 6月～12月 | T115: 7 | U115: × | Z115: 5 | AA115: 要 | AB115: 有 | AC115: S-QUE | AD115: S-QUE | AL115: 6 | AM115: 6 | AN115: 6 | AW115: 2 | AY115: 6 | BA115: 2 | BF115: 6 | BK115: 3 | BN115: 1 | BO115: R6/5/28から協力施設、構成員、責任者、指導者、の変更
A116: 114 | B116: 2019 | C116: 19 | D116: 2 | E116: 46 | F116: 002 | G116: 1946002 | I116: 公益財団法人慈愛会 今村総合病院 | J116: 鹿児島県 | K116: 890-0064 | L116: 鹿児島県鹿児島市鴨池新町11-23 | M116: 病院 | N116: 376 | O116: 19 | P116: 3 | Q116: 30 | S116: 4月～翌年3月/4月～８月/5～8月、6～8月 | T116: 3.4.5.12 | U116: × | Z116: 5 | AA116: 要 | AB116: 有 | AC116: 学研 | AD116: 学研 | AL116: 17 | AM116: 10 | AN116: 16 | AO116: 6 | AS116: 2 | AT116: 8 | AU116: 8 | AV116: 8 | AW116: 8 | AX116: 2 | AY116: 24 | AZ116: 6 | BA116: 24 | BB116: 14 | BC116: 6 | BD116: 2 | BE116: 6 | BF116: 2 | BH116: 2 | BJ116: 2 | BK116: 2 | BN116: 3
A117: 115 | B117: 2019 | C117: 19 | D117: ８ | E117: 09 | F117: 002 | G117: 1909002 | I117: 学校法人獨協学園 獨協医科大学 | J117: 栃木県 | K117: 321-0293 | L117: 栃木県下都賀郡壬生町北小林880 | M117: 大学 | O117: 45 | P117: 2 | Q117: =P117*O117 -> 90 | S117: 4月～12月/10月～翌年9月 | T117: 12 | U117: × | V117: ○ | AB117: 有 | AC117: S-QUE | AD117: S-QUE | AL117: 21 | AM117: 6 | AN117: 6 | AO117: 20 | AP117: 2 | AQ117: 5 | AR117: 6 | AS117: 6 | AT117: 4 | AU117: 6 | AV117: 3 | AW117: 6 | AX117: 6 | AY117: 6 | AZ117: 5 | BA117: 45 | BB117: 25 | BC117: 5 | BD117: 6 | BE117: 6 | BF117: 10 | BG117: 2 | BH117: 3 | BI117: 2 | BJ117: 5 | BK117: 5 | BL117: 5 | BM117: 2 | BN117: 6 | BO117: 令和6年6月1日より看護師の定員数、4区分の定員数、期間の変更
A118: 116 | B118: 2019 | C118: 19 | D118: 8 | E118: 10 | F118: 002 | G118: 1910002 | I118: 医療法人 群馬会 群馬病院 | J118: 群馬県 | K118: 370-3516 | L118: 群馬県高崎市稲荷台町136番地 | M118: 病院 | N118: 461 | O118: 5 | P118: 1 | Q118: =P118*O118 -> 5 | S118: 10月～翌年9月 | T118: 12 | U118: × | AB118: 不明 | AC118: S-QUE | AD118: S-QUE | AE118: 旧 | AF118: 旧 | AL118: 1 | BF118: 5 | BN118: 0 | BO118: 令和6年4月1日より指導者の変更
A119: 117 | B119: 2019 | C119: 19 | D119: 8 | E119: 10 | F119: 003 | G119: 1910003 | I119: 前橋赤十字病院 | J119: 群馬県 | K119: 371-0811 | L119: 群馬県前橋市朝倉町389番地1 | M119: 病院 | N119: 555 | O119: 24 | P119: 1 | Q119: =P119*O119 -> 24 | S119: ４～3月、4～11月、10月～翌年9月、１０～5月 | T119: 8.12 | U119: × | AB119: 有 | AC119: 放送大学 | AD119: その他 | AL119: 12 | AM119: 6 | AN119: 6 | AO119: 2 | AV119: 2 | AW119: 2 | AY119: 6 | BA119: 6 | BB119: 2 | BC119: 2 | BD119: 4 | BE119: 2 | BF119: 2 | BJ119: 2 | BK119: 2 | BN119: 2 | BO119: 令和6年7月22日より研修管理委員会の構成員および指導者、協力施設の変更
A120: 118 | B120: 2019 | C120: 19 | D120: 8 | E120: 12 | F120: 002 | G120: 1912002 | I120: 医療法人鉄蕉会 亀田総合病院 | J120: 千葉県 | K120: 296-8602 | L120: 千葉県鴨川市東町929 | M120: 病院 | N120: 917 | O120: 20 | P120: 1 | Q120: 30 | S120: 9月～翌年8月 | T120: 12 | U120: × | Y120: ○ | Z120: 3 | AA120: 要 | AB120: 有 | AC120: S-QUE | AD120: S-QUE | AL120: 18 | AM120: 20 | AN120: 20 | AO120: 5 | AP120: 10 | AQ120: 10 | AR120: 10 | AS120: 10 | AT120: 5 | AU120: 8 | AV120: 7 | AW120: 5 | AX120: 5 | AY120: 20 | BA120: 10 | BC120: 10 | BD120: 15 | BE120: 20 | BF120: 10 | BH120: 4 | BI120: 4 | BK120: 4 | BM120: 4 | BN120: 4
A121: 119 | B121: 2019 | C121: 19 | D121: 8 | E121: 14 | F121: 007 | G121: 1914007 | I121: 学校法人日本医科大学 日本医科大学武蔵小杉病院 | J121: 神奈川県 | K121: 211-8533 | L121: 神奈川県川崎市中原区小杉町1-383 | M121: 大学病院 | N121: 372 | O121: 30 | P121: 1 | Q121: =P121*O121 -> 30 | S121: 10月～翌々年3月 | T121: 18 | U121: × | Y121: ○ | AA121: 要 | AB121: 有 | AC121: S-QUE | AD121: S-QUE | AL121: 8 | AM121: 10 | AN121: 10 | AU121: 10 | AY121: 10 | BA121: 10 | BC121: 10 | BD121: 10 | BE121: 10 | BJ121: 4 | BN121: 1 | BO121: R60401より構成員、指導者の変更
A122: 120 | B122: 2019 | C122: 19 | D122: 8 | E122: 14 | F122: 006 | G122: 1914006 | I122: 学校法人 東海大学 | J122: 神奈川県 | K122: 259-1193 | L122: 神奈川県伊勢原市下糟屋143 | M122: 大学 | O122: 10 | P122: 1 | Q122: 10 | S122: 4月～翌年3月 | T122: 12 | U122: × | AB122: 有 | AC122: S-QUE | AD122: S-QUE | AL122: 18 | AM122: 10 | AN122: 10 | AO122: 10 | AP122: 10 | AR122: 10 | AS122: 10 | AT122: 10 | AU122: 10 | AV122: 10 | AW122: 10 | AX122: 10 | AY122: 10 | BA122: 10 | BB122: 10 | BC122: 10 | BD122: 10 | BE122: 10 | BF122: 10 | BH122: 10 | BI122: 10 | BJ122: 10 | BK122: 10 | BL122: 10 | BM122: 10 | BN122: 6
A123: 121 | B123: 2019 | C123: 19 | D123: 8 | E123: 15 | F123: 001 | G123: 1915001 | I123: 国立大学法人新潟大学 新潟大学医歯学総合病院 | J123: 新潟県 | K123: 951-8520 | L123: 新潟市中央区旭町通一番町754番地 | M123: 大学病院 | N123: 827 | O123: 35 | P123: 1 | Q123: 35 | S123: 10月～翌々年3月 | T123: 12 | U123: × | V123: ○ | Z123: 5 | AA123: 要 | AB123: 有 | AC123: 学研 | AD123: 学研 | AL123: 17 | AM123: 4 | AN123: 4 | AO123: 1 | AP123: 4 | AQ123: 2 | AR123: 2 | AS123: 2 | AU123: 4 | AW123: 3 | AX123: 4 | AY123: 6 | BA123: 19 | BB123: 19 | BC123: 3 | BD123: 4 | BE123: 4 | BF123: 2 | BJ123: 1 | BL123: 2 | BM123: 2 | BN123: 3 | BO123: R70106より協力施設の変更、協力施設の区分、指導者変更
A124: 122 | B124: 2019 | C124: 19 | D124: 8 | E124: 15 | F124: 002 | G124: 1915002 | I124: 新潟県厚生農業協同組合連合会 上越総合病院 | J124: 新潟県 | K124: 943-8507 | L124: 新潟県上越市大道福田 | M124: 病院 | N124: 318 | O124: 8 | P124: 1 | Q124: 8 | S124: 10月～翌年9月 | T124: 12 | U124: × | AB124: 無 | AC124: S-QUE | AD124: S-QUE | AL124: 6 | AM124: 4 | AN124: 4 | AY124: 4 | BA124: 4 | BD124: 4 | BE124: 8 | BJ124: 4 | BN124: 1 | BO124: 令和6年10月1日より施設および指導者の変更
A125: 123 | B125: 2019 | C125: 19 | D125: 8 | E125: 15 | F125: 003 | G125: 1915003 | I125: 新潟県厚生農業協同組合連合会 長岡中央綜合病院 | J125: 新潟県 | K125: 940-8653 | L125: 新潟県長岡市川崎町2041番地 | M125: 病院 | N125: 500 | O125: 6 | P125: 1 | Q125: 6 | S125: 10月～翌年9月 | T125: 12 | U125: × | AB125: 不明 | AC125: S-QUE | AD125: S-QUE | AL125: 5 | AO125: 2 | AT125: 2 | AW125: 2 | AY125: 4 | BA125: 2 | BH125: 2 | BN125: 1 | BO125: 令和6年6月1日より研修施設および指導者の変更
A126: 124 | B126: 2019 | C126: 19 | D126: 8 | E126: 15 | F126: 004 | G126: 1915004 | I126: 新潟県厚生農業協同組合連合会 新潟医療センター | J126: 新潟県 | K126: 950-2022 | L126: 新潟県新潟市西区小針3丁目27番11号 | M126: 病院 | N126: 297 | O126: 4 | P126: 1 | Q126: 4 | S126: 10月～翌年9月 | T126: 12 | U126: × | AB126: 不明 | AC126: S-QUE | AD126: S-QUE | AL126: 2 | AU126: 2 | AY126: 2 | BN126: 0 | BO126: 令和６年１０月１日より指導者変更
A127: 125 | B127: 2019 | C127: 19 | D127: 8 | E127: 16 | F127: 005 | G127: 1916005 | I127: 国立大学法人富山大学附属病院 | J127: 富山県 | K127: 930-0194 | L127: 富山県富山市杉谷2630番地 | M127: 大学病院 | N127: 612 | O127: 10 | P127: 1 | Q127: 12 | S127: 5月～3月 | T127: 11 | U127: × | Y127: ○ | Z127: 5 | AA127: 要 | AB127: 有 | AC127: S-QUE | AD127: S-QUE | AJ127: 一般 | AK127: ○ | AL127: 15 | AM127: 12 | AN127: 12 | AP127: 12 | AQ127: 12 | AR127: 12 | AS127: 12 | AU127: 12 | AX127: 12 | AY127: 12 | BA127: 12 | BB127: 12 | BC127: 12 | BD127: 12 | BE127: 12 | BF127: 12 | BN127: 0 | BO127: 令和6年8月1日より協力施設、指導者の変更
A128: 126 | B128: 2019 | C128: 19 | D128: 8 | E128: 21 | F128: 008 | G128: 1921008 | I128: 医療法人澄心会 岐阜ハートセンター | J128: 岐阜県 | K128: 500-8384 | L128: 岐阜県岐阜市薮田南4-14-4 | M128: 病院 | N128: 120 | O128: 5 | P128: 1 | Q128: =P128*O128 -> 5 | S128: kara | T128: 12 | U128: × | Z128: 5 | AA128: 要 | AB128: 有 | AC128: S-QUE | AD128: S-QUE | AL128: 9 | AM128: 5 | AN128: 5 | AQ128: 5 | AR128: 5 | AU128: 5 | AW128: 5 | AX128: 5 | AY128: 5 | BA128: 5 | BN128: 0
A129: 127 | B129: 2019 | C129: 19 | D129: 8 | E129: 22 | F129: 004 | G129: 1922004 | I129: 静岡県立静岡がんセンター | J129: 静岡県 | K129: 411-8777 | L129: 静岡県駿東郡長泉町下長窪1007番地 | M129: 病院 | O129: 50 | P129: 1 | Q129: =P129*O129 -> 50 | S129: 3tuki | T129: 12 | U129: × | V129: ○ | AB129: 不明 | AC129: S-QUE | AD129: S-QUE | AL129: 3 | AW129: 14 | AX129: 12 | BA129: 60 | BN129: 0 | BO129: 令和6年7月1日より研修施設、指導者の変更
A130: 128 | B130: 2019 | C130: 19 | D130: 8 | E130: 22 | F130: 005 | G130: 1922005 | I130: 社会福祉法人 聖隷福祉事業団 | J130: 静岡県 | K130: 430-0946 | L130: 静岡県浜松市中央区元城町218番地26 | M130: 本部 | O130: 10 | P130: 2 | Q130: 14 | S130: 5月～3月 | T130: 11 | U130: × | Z130: 5 | AA130: 要 | AB130: 有 | AC130: 学研 | AD130: 学研 | AL130: 11 | AM130: 3 | AN130: 4 | AO130: 4 | AT130: 4 | AW130: 4 | AY130: 4 | BA130: 7 | BB130: 1 | BD130: 2 | BE130: 2 | BF130: 2 | BH130: 3 | BJ130: 2 | BK130: 1 | BN130: 3 | BO130: 令和6年5月13日より協力施設、指導者の変更
A131: 129 | B131: 2019 | C131: =RIGHT(B131,2) -> 19 | D131: 8 | E131: 22 | F131: 006 | G131: =CONCATENATE(C131,E131,F131) -> 1922006 | I131: 社会福祉法人 聖隷福祉事業団 総合病院 聖隷三方原病院 | J131: 静岡県 | K131: 433-8558 | L131: 静岡県浜松市中央区三方原町3453 | M131: 病院 | N131: 934 | O131: 8 | P131: 1 | Q131: 8 | S131: 4月～翌年3月4～９月 | T131: 6.12 | U131: × | AB131: 有 | AC131: S-QUE | AD131: S-QUE | AL131: 17 | AM131: 6 | AN131: 6 | AO131: 6 | AR131: 2 | AS131: 2 | AT131: 6 | AU131: 2 | AV131: 2 | AW131: 6 | AX131: 2 | AY131: 6 | BA131: 6 | BB131: 6 | BC131: 6 | BD131: 4 | BE131: 4 | BF131: 6 | BI131: 2 | BJ131: 2 | BN131: 2 | BO131: 令和6年6月1日より研修管理委員会の構成員の変更
A132: 130 | B132: 2019 | C132: 19 | D132: 8 | E132: 26 | F132: 002 | G132: 1926002 | I132: 市立福知山市民病院 | J132: 京都府 | K132: 620-8505 | L132: 京都府福知山市厚中町231番地 | M132: 病院 | N132: 354 | O132: 8 | P132: 1 | Q132: 11 | S132: 4月～翌年3月、４月~翌翌3月、１２～5月 | T132: 6.12.24 | U132: × | Y132: × | Z132: 5 | AB132: 有 | AC132: 学研 | AD132: 学研 | AL132: 14 | AM132: 8 | AN132: 8 | AO132: 8 | AR132: 5 | AS132: 5 | AT132: 3 | AU132: 5 | AV132: 8 | AW132: 3 | AX132: 5 | AY132: 8 | BA132: 0 | BD132: 8 | BE132: 8 | BH132: 3 | BI132: 5 | BJ132: 3 | BN132: 3 | BO132: R61201より栄養薬剤の休止（R71130まで）、PICC開講
A133: 131 | B133: 2019 | C133: 19 | D133: 8 | E133: 27 | F133: 007 | G133: 1927007 | I133: 大阪赤十字病院 | J133: 大阪府 | K133: 543-8555 | L133: 大阪府大阪市天王寺区筆ヶ崎町5-30 | M133: 病院 | N133: 999 | O133: 5 | P133: 1 | Q133: =P133*O133 -> 5 | S133: 1２月～翌５月,４～3月 | T133: 12 | U133: × | AB133: 有 | AC133: 放送大学 | AD133: その他 | AL133: 10 | AM133: 4 | AN133: 2 | AO133: 1 | AW133: 2 | AY133: 4 | BA133: 7 | BB133: 1 | BC133: 2 | BD133: 2 | BE133: 2 | BJ133: 2 | BN133: 1
A134: 132 | B134: 2019 | C134: 19 | D134: 8 | E134: 27 | F134: 008 | G134: 1927008 | I134: 国立研究開発法人 国立循環器病研究センター | J134: 大阪府 | K134: 564-8565 | L134: 大阪府吹田市岸部新町6番1号 | M134: 病院 | N134: 550 | O134: 8 | P134: 1 | Q134: 12 | S134: 4～２月 | T134: 11 | U134: × | AB134: 有 | AC134: 学研 | AL134: 11 | AM134: 8 | AN134: 8 | AP134: 8 | AU134: 8 | AV134: 4 | AY134: 8 | BA134: 8 | BC134: 8 | BD134: 8 | BE134: 8 | BF134: 8 | BN134: 0 | BO134: 令和6年4月8日より研修内容、研修管理委員会の構成員、指導者、定員の変更
A135: 133 | B135: 2019 | C135: 19 | D135: 8 | E135: 28 | F135: 004 | G135: 1928004 | I135: 神戸アドベンチスト病院 | J135: 兵庫県 | K135: 651-1321 | L135: 兵庫県神戸市北区有野台8-4-1 | M135: 病院 | N135: 116 | O135: 8 | P135: 1 | Q135: =P135*O135 -> 8 | S135: 4月～翌年3月 | T135: 12 | U135: × | AB135: 無 | AC135: S-QUE | AD135: S-QUE | AL135: 4 | AV135: 1 | AY135: 2 | BA135: 5 | BB135: 3 | BN135: 0
A136: 134 | B136: 2019 | C136: 19 | D136: 8 | E136: 32 | F136: 003 | G136: 1932003 | I136: 島根県立中央病院 | J136: 島根県 | K136: 693-8555 | L136: 島根県出雲市姫原4丁目1-1 | M136: 病院 | N136: 679 | O136: 8 | P136: 1 | Q136: 16 | S136: 5月～翌年3月 | T136: 11 | U136: × | AB136: 有 | AC136: S-QUE | AD136: S-QUE | AL136: 13 | AM136: 2 | AN136: 2 | AO136: 0 | AS136: 1 | AU136: 0 | AW136: 2 | AX136: 0 | AY136: 2 | BA136: 5 | BB136: 0 | BC136: 0 | BD136: 2 | BE136: 2 | BJ136: 2 | BN136: 1 | BO136: R61231より指導者の変更
A137: 135 | B137: 2019 | C137: 19 | D137: 8 | E137: 33 | F137: 002 | G137: 1933002 | I137: 公益財団法人 大原記念倉敷中央医療機構 倉敷中央病院 | J137: 岡山県 | K137: 710-8602 | L137: 岡山県倉敷市美和1-1-1 | M137: 病院 | N137: 1166 | O137: 12 | P137: 1 | Q137: =P137*O137 -> 12 | S137: 9月～翌年8月 | T137: 12 | U137: × | AB137: 有 | AC137: S-QUE | AD137: S-QUE | AL137: 11 | AM137: 7 | AN137: 7 | AP137: 7 | AU137: 7 | AV137: 7 | AY137: 7 | BA137: 7 | BC137: 12 | BD137: 5 | BE137: 7 | BF137: 5 | BK137: 5 | BM137: 7 | BN137: 2 | BO137: R70213より構成員の変更
A138: 136 | B138: 2020 | C138: 20 | D138: ２ | E138: 01 | F138: 007 | G138: 2001007 | I138: 医療法人渓仁会 法人本部 | J138: 北海道 | K138: 006-0811 | L138: 札幌市手稲区前田１条１２丁目２番３０号 渓仁会ビル３階 | M138: 本部 | O138: 9 | P138: 1 | Q138: =P138*O138 -> 9 | S138: 6～翌年5月10~翌年5月 | T138: 8,12 | U138: × | AB138: 無 | AC138: S-QUE | AD138: S-QUE | AL138: 11 | AM138: 9 | AN138: 9 | AO138: 4 | AT138: 4 | AV138: 5 | AW138: 6 | AY138: 9 | BA138: 9 | BC138: 9 | BD138: 9 | BE138: 9 | BH138: 4 | BJ138: 5 | BN138: 2 | BO138: 令和6年11月1日から指導者の変更
A139: 137 | B139: 2020 | C139: 20 | D139: ２ | E139: 01 | F139: 008 | G139: 2001008 | I139: 医療法人徳洲会 札幌徳洲会病院 | J139: 北海道 | K139: 004-0041 | L139: 札幌市厚別区大谷地東１丁目１番１号 | M139: 病院 | N139: 301 | O139: 17 | P139: 2 | Q139: 29 | S139: 4月～翌年3月 4月～9月 10月～3月 | T139: 12 6 6 | U139: × | AB139: 有 | AC139: S-QUE | AD139: S-QUE | AL139: 13 | AM139: 3 | AN139: 6 | AO139: 5 | AT139: 3 | AU139: 3 | AV139: 4 | AW139: 5 | AX139: 2 | AY139: 7 | BA139: 6 | BD139: 1 | BE139: 1 | BF139: 2 | BH139: 3 | BJ139: 1 | BK139: 2 | BN139: 3 | BO139: 令和6年4月1日より研修施設および指導者の変更
A140: 138 | B140: 2020 | C140: 20 | D140: ２ | E140: 01 | F140: 009 | G140: 2001009 | I140: 国立大学法人北海道大学病院 | J140: 北海道 | K140: 060-8648 | L140: 札幌市北区北１４条西５丁目 | M140: 大学病院 | N140: 874 | O140: 10 | P140: 1 | Q140: 10 | S140: 4月～翌年3月 | T140: 12 | U140: × | AB140: 無 | AC140: 学研 | AD140: 学研 | AL140: 15 | AM140: 6 | AN140: 6 | AO140: 2 | AP140: 2 | AR140: 2 | AS140: 2 | AU140: 7 | AV140: 5 | AW140: 3 | AX140: 2 | AY140: 9 | BA140: 7 | BC140: 3 | BD140: 4 | BE140: 6 | BI140: 2 | BJ140: 2 | BN140: 2 | BO140: R60401より栄養に係わる【中心静脈）区分の変更
A141: 139 | B141: 2020 | C141: 20 | D141: ２ | E141: 01 | F141: 010 | G141: 2001010 | I141: 社会医療法人禎心会 札幌禎心会病院 | J141: 北海道 | K141: 065-0033 | L141: 札幌市東区北３３条東１丁目３－１ | M141: 病院 | N141: 279 | O141: 3 | P141: 1 | Q141: =P141*O141 -> 3 | S141: 10月～翌年８月、4月～9月 | T141: 12 | U141: × | AB141: 有 | AC141: S-QUE | AD141: S-QUE | AL141: 4 | AV141: 2 | AY141: 4 | BA141: 4 | BB141: 4 | BN141: 0 | BO141: 令和7年6月1日より指導者の変更
A142: 140 | B142: 2020 | C142: 20 | D142: ２ | E142: 02 | F142: 001 | G142: 2002001 | I142: 学校法人青森田中学園 青森中央学院大学 | J142: 青森県 | K142: 030-0132 | L142: 青森市大字横内字神田12－1 | M142: 大学 | O142: 6 | P142: 1 | Q142: 6 | S142: 10月～翌年9月 | T142: 6.12 | U142: × | AB142: 無 | AC142: 学研 | AD142: 学研 | AL142: 4 | AO142: 4 | AT142: 4 | AW142: 4 | BA142: 6 | BH142: 4 | BN142: 1 | BO142: 令和6年4月8日より研修施設、指導者の変更
A143: 141 | B143: 2020 | C143: 20 | D143: ２ | E143: 05 | F143: 003 | G143: 2005003 | I143: 国立大学法人秋田大学大学院医学系研究科保健学専攻（博士前期課程）臨床看護学分野 | J143: 秋田県 | K143: 010-8502 | L143: 秋田県秋田市本道1－1－1 | M143: 大学院 | O143: 18 | P143: 1 | Q143: =P143*O143 -> 18 | S143: 4月～翌々年3月 | T143: 11 | U143: ○ | X143: ○ | AB143: 有 | AC143: 学研 | AD143: 学研 | AG143: NP | AL143: 21 | AM143: 10 | AN143: 10 | AO143: 10 | AP143: 10 | AQ143: 10 | AR143: 10 | AS143: 10 | AT143: 18 | AU143: 10 | AV143: 10 | AW143: 18 | AX143: 10 | AY143: 10 | AZ143: 10 | BA143: 10 | BB143: 10 | BC143: 10 | BD143: 10 | BE143: 10 | BF143: 10 | BG143: 10 | BN143: 0 | BO143: 令和6年4月1日より管理委員会の構成員の変更、指導者の変更
A144: 142 | B144: 2020 | C144: 20 | D144: ２ | E144: 06 | F144: 002 | G144: 2006002 | I144: 国立大学法人山形大学医学部附属病院 | J144: 山形県 | K144: 998ｰ8501 | L144: 山形市飯田西2丁目2-2 | M144: 大学病院 | N144: 637 | O144: 12 | P144: 1 | Q144: 12 | S144: 4月～翌年3月 | T144: 12 | U144: × | AB144: 有 | AC144: 学研 | AD144: 学研 | AL144: 14 | AM144: 12 | AN144: 12 | AO144: 4 | AP144: 2 | AR144: 4 | AS144: 4 | AU144: 6 | AV144: 4 | AX144: 4 | AY144: 12 | BA144: 10 | BD144: 8 | BE144: 10 | BF144: 2 | BI144: 4 | BJ144: 4 | BK144: 2 | BM144: 2 | BN144: 4 | BO144: 令和6年4月1日より研修管理委員会の構成員、研修責任者、指導者、定員数の変更
A145: 143 | B145: 2020 | C145: 20 | D145: ２ | E145: 06 | F145: 003 | G145: 2006003 | I145: 地方独立行政法人山形県・酒田市病院機構 日本海総合病院 | J145: 山形県 | K145: 990-9585 | L145: 酒田市あきほ町30番地 | M145: 病院 | N145: 630 | O145: 3 | P145: 1 | Q145: 3 | S145: 4月～翌年3月 | T145: 12 | U145: × | AB145: 有 | AC145: 学研 | AD145: 学研 | AL145: 6 | AM145: 3 | AN145: 3 | AY145: 3 | BA145: 3 | BD145: 3 | BE145: 3 | BJ145: 3 | BN145: 1 | BO145: 令和6年4月1日より研修管理委員会の構成員および指導者の変更
A146: 144 | B146: 2020 | C146: 20 | D146: ２ | E146: 10 | F146: 004 | G146: 2010004 | I146: 群馬県公立大学法人 群馬県立県民健康科学大学 | J146: 群馬県 | K146: 371-0052 | L146: 前橋市上沖町３２３－１ | M146: 大学 | O146: 5 | P146: 1 | Q146: 5 | S146: 4月～翌年3月 | T146: 12 | U146: × | AB146: 有 | AC146: 放送大学 | AD146: S-QUE | AL146: =COUNTA(AM146:BG146) -> 3 | AO146: 5 | BA146: 5 | BC146: 5 | BN146: 0 | BO146: R61101より施設、指導者の変更
A147: 145 | B147: 2020 | C147: 20 | D147: ２ | E147: 12 | F147: 003 | G147: 2012003 | I147: 千葉大学医学部附属病院 | J147: 千葉県 | K147: 260-8677 | L147: 千葉市中央区亥鼻１－８－１ | M147: 大学病院 | N147: 850 | O147: 20 | P147: 1 | Q147: 20 | S147: 4月～翌年3月、9月～翌年3月 | T147: 12,7 | U147: × | AB147: 有 | AC147: 学研 | AD147: 学研 | AL147: 21 | AM147: 5 | AN147: 5 | AO147: 5 | AP147: 5 | AQ147: 5 | AR147: 5 | AS147: 5 | AT147: 5 | AU147: 5 | AV147: 5 | AW147: 5 | AX147: 5 | AY147: 5 | AZ147: 5 | BA147: 5 | BB147: 5 | BC147: 5 | BD147: 5 | BE147: 5 | BF147: 5 | BG147: 5 | BN147: 0 | BO147: R61113より構成員の変更
A148: 146 | B148: 2020 | C148: 20 | D148: ２ | E148: 13 | F148: 018 | G148: 2013018 | I148: 医療法人社団ダイアステップ | J148: 東京都 | K148: 154-0004 | L148: 世田谷区太子堂４－２２－７森住ビル３階 | M148: 診療所 | O148: 5 | P148: 1 | Q148: 5 | S148: 4月～12月 | T148: 11 | U148: × | AB148: 無 | AC148: S-QUE | AD148: S-QUE | AL148: 5 | AO148: 1 | AT148: 1 | AW148: 2 | BA148: 2 | BC148: 5 | BH148: 1 | BN148: 1 | BO148: 令和6年2月1日より研修施設および指導者の変更
A149: 147 | B149: 2020 | C149: 20 | D149: ２ | E149: 13 | F149: 019 | G149: 2013019 | I149: 学校法人順天堂 順天堂大学医学部附属順天堂医院 | J149: 東京都 | K149: 113-8431 | L149: 文京区本郷３丁目１番３号 | M149: 大学病院 | N149: 1051 | O149: 5 | P149: 1 | Q149: 5 | S149: 4月～翌年3月 | T149: 12 | U149: × | AB149: 無 | AC149: 学研 | AD149: 学研 | AL149: 6 | AM149: 3 | AN149: 3 | AY149: 5 | BA149: 3 | BD149: 3 | BE149: 3 | BJ149: 4 | BN149: 1 | BO149: 令和6年8月1日より構成員 の変更
A150: 148 | B150: 2020 | C150: 20 | D150: ２ | E150: 13 | F150: 020 | G150: 2013020 | I150: 学校法人東邦大学 | J150: 東京都 | K150: 143-8540 | L150: 大田区大森西５丁目２１番１６号 | M150: 大学 | O150: 16 | P150: 1 | Q150: 16 | S150: 4月～翌年3月 | T150: 12 | U150: × | AB150: 有 | AC150: 学研 | AD150: 学研 | AL150: 13 | AM150: 3 | AN150: 6 | AO150: 5 | AU150: 3 | AV150: 6 | AW150: 3 | AX150: 3 | AY150: 9 | BA150: 9 | BB150: 3 | BD150: 7 | BE150: 6 | BF150: 3 | BJ150: 3 | BL150: 3 | BN150: 2 | BO150: 令和6年4月1日より研修管理委員会の構成員、指導者、定員数の変更
A151: 149 | B151: 2020 | C151: 20 | D151: ２ | E151: 13 | F151: 021 | G151: 2013021 | I151: 国立研究開発法人 国立国際医療研究センター | J151: 東京都 | K151: 162-8655 | L151: 東京都新宿区戸山１－２１－１ | M151: 病院 | N151: 763 | O151: 18 | P151: 1 | Q151: 18 | S151: ９月～翌年８月 | T151: 12 | U151: × | AB151: 有 | AC151: S-QUE | AD151: S-QUE | AL151: 8 | AM151: 3 | AN151: 3 | AS151: 4 | AV151: 3 | AX151: 3 | AY151: 3 | BA151: 5 | BB151: 3 | BN151: 0 | BO151: R60930日より定員数、腹腔ドレーン、栄養水分薬剤投与の変更
A152: 150 | B152: 2020 | C152: 20 | D152: ２ | E152: 13 | F152: 022 | G152: 2013022 | I152: 東京科学大学病院 | J152: 東京都 | K152: 113-8510 | L152: 文京区湯島１丁目５番４５号 | M152: 大学病院 | N152: 753 | O152: 10 | P152: 1 | Q152: 10 | S152: 5月～翌年3月、 12月から翌3月 | T152: 11,16 | U152: × | AB152: 有 | AC152: S-QUE | AD152: S-QUE | AL152: 20 | AM152: 8 | AN152: 8 | AO152: 5 | AP152: 2 | AQ152: 2 | AR152: 5 | AS152: 5 | AT152: 2 | AU152: 5 | AV152: 5 | AW152: 2 | AX152: 5 | AY152: 8 | AZ152: 2 | BA152: 10 | BB152: 2 | BC152: 2 | BD152: 8 | BE152: 8 | BF152: 2 | BN152: 0 | BO152: 令和6年10月1日より名称変更,協力施設、指導者変更
A153: 151 | B153: 2020 | C153: 20 | D153: ２ | E153: 13 | F153: 023 | G153: 2013023 | I153: 国立大学法人東京大学 東京大学医学部附属病院 | J153: 東京都 | K153: 113-8655 | L153: 文京区本郷７－３－１ | M153: 大学病院 | N153: 1264 | O153: 5 | P153: 1 | Q153: 5 | S153: 4月～翌年3月 | T153: 12 | U153: × | AB153: 無 | AC153: 学研 | AD153: 学研 | AL153: 6 | AM153: 5 | AN153: 5 | AY153: 5 | BA153: 5 | BD153: 5 | BE153: 5 | BJ153: 5 | BN153: 1 | BO153: R3.4定員変更
A154: 152 | B154: 2020 | C154: 20 | D154: ２ | E154: 13 | F154: 024 | G154: 2013024 | I154: 町田市民病院 | J154: 東京都 | K154: 194-0023 | L154: 東京都町田市旭町2－15－41 | M154: 病院 | N154: 447 | O154: 2 | P154: 1 | Q154: 2 | S154: 4月～翌年3月 | T154: 12 | U154: × | AB154: 有 | AC154: 学研 | AD154: 学研 | AL154: 7 | AN154: 3 | AT154: 3 | AU154: 3 | AW154: 3 | AY154: 3 | BA154: 3 | BF154: 3 | BN154: 0 | BO154: R61120より協力施設、指導者変更の変更
A155: 153 | B155: 2020 | C155: 20 | D155: ２ | E155: 14 | F155: 008 | G155: 2014008 | I155: 医療法人徳洲会 湘南鎌倉総合病院 | J155: 神奈川県 | K155: 247ｰ8533 | L155: 鎌倉市岡本１３７０番１ | M155: 病院 | N155: 658 | O155: 15 | P155: 4 | Q155: 60 | S155: 4月～翌年3月 | T155: 12 | U155: × | AB155: 有 | AC155: 学研 | AD155: 学研 | AL155: 16 | AM155: 20 | AN155: 20 | AO155: 5 | AP155: 5 | AR155: 5 | AS155: 5 | AU155: 15 | AV155: 5 | AW155: 5 | AX155: 10 | AY155: 25 | BA155: 20 | BB155: 5 | BD155: 15 | BE155: 15 | BF155: 5 | BI155: 5 | BJ155: 5 | BK155: 5 | BL155: 5 | BN155: 4 | BO155: 令和6年4月1日より研修管理委員会の構成員、研修施設、指導者の変更
A156: 154 | B156: 2020 | C156: 20 | D156: ２ | E156: 14 | F156: 009 | G156: 2014009 | I156: 学校法人北里研究所 北里大学病院 | J156: 神奈川県 | K156: 252-0375 | L156: 相模原市南区北里１－１５－１ | M156: 大学病院 | N156: 1033 | O156: 30 | P156: 1 | Q156: 30 | S156: 4月～翌年3月 | T156: 12 | U156: × | Y156: × | Z156: 3 | AA156: 要 | AB156: 有 | AC156: エルゼビア | AD156: エルゼビア | AL156: 12 | AM156: 8 | AN156: 8 | AO156: 8 | AS156: 8 | AV156: 8 | AW156: 8 | AX156: 8 | AY156: 8 | BA156: 8 | BC156: 8 | BD156: 8 | BE156: 8 | BN156: 0 | BO156: 令和6年10月1日より指導者の変更
A157: 155 | B157: 2020 | C157: 20 | D157: ２ | E157: 14 | F157: 010 | G157: 2014010 | I157: 学校法人 聖マリアンナ医科大学 聖マリアンナ医科大学病院 看護師特定行為研修センター | J157: 神奈川県 | K157: 216-8511 | L157: 川崎市宮前区菅生２－１６－１ | M157: 大学病院 | N157: 1175 | O157: 5 | P157: 1 | Q157: 5 | S157: 4月～翌年3月 | T157: 12 | U157: × | AB157: 無 | AC157: 学研 | AD157: 学研 | AL157: 21 | AM157: 5 | AN157: 5 | AO157: 5 | AP157: 5 | AQ157: 5 | AR157: 5 | AS157: 5 | AT157: 5 | AU157: 5 | AV157: 5 | AW157: 5 | AX157: 5 | AY157: 5 | AZ157: 5 | BA157: 5 | BB157: 5 | BC157: 5 | BD157: 5 | BE157: 5 | BF157: 5 | BG157: 5 | BN157: 0 | BO157: 令和6年4月1日より指導者の変更、管理委員会の構成員の変更
A158: 156 | B158: 2020 | C158: 20 | D158: ２ | E158: 14 | F158: 011 | G158: 2014011 | I158: 公立大学法人横浜市立大学 YCU看護キャリア開発支援センター | J158: 神奈川県 | K158: 236-0004 | L158: 神奈川県横浜市金沢区福浦３丁目９番地 | M158: 大学 | N158: 674 | O158: 5 | P158: 1 | Q158: 5 | S158: 5月～翌々年9月 | T158: 11 | U158: × | AB158: 無 | AC158: 学研 | AD158: 学研 | AL158: 18 | AM158: 5 | AN158: 5 | AO158: 5 | AR158: 5 | AS158: 5 | AT158: 3 | AU158: 5 | AV158: 5 | AW158: 2 | AX158: 5 | AY158: 5 | BA158: 5 | BB158: 5 | BC158: 5 | BD158: 5 | BE158: 5 | BF158: 5 | BG158: 5 | BI158: 5 | BN158: 1 | BO158: R60401より名称の変更、R60701より構成員の変更、指導者の変更
A159: 157 | B159: 2020 | C159: 20 | D159: ２ | E159: 14 | F159: 012 | G159: 2014012 | I159: 公立大学法人横浜市立大学 横浜市立大学大学院医学研究科看護学専攻 | J159: 神奈川県 | K159: 236-0004 | L159: 神奈川県横浜市金沢区福浦３ー９ | M159: 大学院 | O159: 20 | P159: 1 | Q159: 20 | S159: 4月～翌々年3月 | T159: 24 | U159: ○ | AB159: 有 | AC159: 学研 | AD159: 学研 | AL159: 8 | AM159: 20 | AN159: 20 | AV159: 15 | AY159: 20 | BA159: 20 | BC159: 20 | BD159: 20 | BE159: 20 | BJ159: 20 | BN159: 1 | BO159: R61115より使用施設、指導者の変更
A160: 158 | B160: 2020 | C160: 20 | D160: ２ | E160: 14 | F160: 013 | G160: 2014013 | I160: 社会福祉法人 親善福祉協会 国際親善総合病院 | J160: 神奈川県 | K160: 245-0006 | L160: 横浜市泉区西が岡１ー２８ー１ | M160: 病院 | N160: 287 | O160: 6 | P160: 1 | Q160: 6 | S160: 4月～翌年3月 | T160: 12 | U160: × | AB160: 有 | AC160: 学研 | AD160: 学研 | AL160: 10 | AM160: 2 | AN160: 2 | AO160: 2 | AS160: 6 | AU160: 4 | AW160: 2 | AX160: 4 | AY160: 6 | BA160: 6 | BD160: 3 | BN160: =COUNTA(BH160:BM160) -> 0 | BO160: R70101より研修管理委員会の構成員の変更
A161: 159 | B161: 2020 | C161: 20 | D161: ２ | E161: 16 | F161: 006 | G161: 2016006 | I161: 黒部市民病院 | J161: 富山県 | K161: 938-8502 | L161: 富山県黒部市三日市１１０８ー１ | M161: 病院 | N161: 405 | O161: 5 | P161: 1 | Q161: 5 | S161: 4月～翌年3月 | T161: 12 | U161: × | AB161: 有 | AC161: 学研 | AD161: 学研 | AL161: 2 | BA161: 5 | BC161: 4 | BN161: 0 | BO161: 令和6年4月1日より研修管理委員会の構成員および指導者の変更
A162: 160 | B162: 2020 | C162: 20 | D162: ２ | E162: 17 | F162: 006 | G162: 2017006 | I162: 金沢医科大学病院 | J162: 石川県 | K162: 920-0293 | L162: 石川県河北郡内灘町大学１丁目１番地 | M162: 大学病院 | N162: 817 | O162: 10 | P162: 1 | Q162: 10 | S162: 4月～翌年3月、9～３月、１0～翌々３月、10月～翌3月 | T162: ７.12. 18 | U162: × | AB162: 無 | AC162: 学研 | AD162: 学研 | AL162: 10 | AM162: 10 | AN162: 5 | AU162: 5 | AV162: 5 | AY162: 10 | AZ162: 5 | BA162: 10 | BB162: 5 | BD162: 10 | BE162: 5 | BJ162: 5 | BN162: 1 | BO162: 令和6年１０月1日より指導者の変更
A163: 161 | B163: 2020 | C163: 20 | D163: ２ | E163: 18 | F163: 003 | G163: 2018003 | I163: 国立大学法人 福井大学大学院医学系研究科 | J163: 福井県 | K163: 910-1193 | L163: 福井県吉田郡永平寺町松岡下合月２３－３ | M163: 大学院 | O163: 5 | P163: 1 | Q163: 45 | S163: 4月～翌年3月、 | T163: 12 | U163: ○ | V163: ○ | AB163: 無 | AC163: S-QUE | AD163: その他 | AL163: 10 | AM163: 5 | AN163: 25 | AU163: 5 | AV163: 5 | AY163: 15 | BA163: 35 | BB163: 20 | BD163: 2 | BE163: 2 | BF163: 18 | BJ163: 2 | BK163: 3 | BN163: 2 | BO163: R61227より協力施設、指導者の変更
A164: 162 | B164: 2020 | C164: 20 | D164: ２ | E164: 20 | F164: 004 | G164: 2020004 | I164: 地方独立行政法人長野県立病院機構 長野県立信州医療センター | J164: 長野県 | K164: 382-8577 | L164: 長野県須坂市大字須坂１３３２ | M164: 病院 | N164: 320 | O164: 11 | P164: 1 | Q164: 11 | S164: 10月～翌年9月 | T164: 11 | U164: × | AB164: 有 | AC164: S-QUE | AD164: S-QUE | AL164: 5 | AO164: 6 | AT164: 6 | AW164: 6 | BA164: 16 | BC164: 5 | BH164: 6 | BN164: 1 | BO164: 令和6年4月1日より協力施設および指導者の追加、研修管理委員会の構成員および指導者の変更、10月1日より指導者の変更
A165: 163 | B165: 2020 | C165: 20 | D165: ２ | E165: 20 | F165: 005 | G165: 2020005 | I165: 長野赤十字病院 | J165: 長野県 | K165: 380-8582 | L165: 長野市若里５丁目２２番１号 | M165: 病院 | N165: 680 | O165: 1 | P165: 1 | Q165: =P165*O165 -> 1 | S165: 4月～翌年3月/4月～11月 | U165: × | AB165: 有 | AC165: 放送大学 | AD165: 独自 | AL165: 3 | AO165: 2 | AW165: 1 | BA165: 2 | BN165: 0 | BO165: R５0401より研修管理委員会の構成員、担当の変更
A166: 164 | B166: 2020 | C166: 20 | D166: ２ | E166: 21 | F166: 009 | G166: 2021009 | I166: 岐阜大学医学部附属病院 | J166: 岐阜県 | K166: 501-1194 | L166: 岐阜県岐阜市柳戸１番１ | M166: 大学病院 | N166: 614 | O166: 18 | P166: 1 | Q166: 18 | S166: 4月～翌年3月 | T166: 12 | U166: × | AB166: 有 | AC166: S-QUE | AD166: S-QUE | AL166: 10 | AM166: 14 | AN166: 14 | AR166: 4 | AS166: 4 | AU166: 4 | AX166: 4 | AY166: 14 | BA166: 14 | BD166: 14 | BE166: 14 | BJ166: 14 | BN166: 1 | BO166: R60910より指導者、研修内容の変更
A167: 165 | B167: 2020 | C167: 20 | D167: ２ | E167: 21 | F167: 010 | G167: 2021010 | I167: 社会医療法人蘇西厚生会 松波総合病院 | J167: 岐阜県 | K167: 501-6062 | L167: 岐阜県羽島郡笠松町田代１８５ー１ | M167: 病院 | N167: 501 | O167: 2 | P167: 1 | Q167: 2 | S167: 4月～翌年3月 | T167: 12 | U167: × | AB167: 有 | AC167: S-QUE | AD167: S-QUE | AL167: 1 | AO167: 2 | BN167: 0 | BO167: パのみ
A168: 166 | B168: 2020 | C168: 20 | D168: ２ | E168: 21 | F168: 011 | G168: 2021011 | I168: 美濃市立美濃病院 | J168: 岐阜県 | K168: 501-3746 | L168: 美濃市中央４丁目３番地 | M168: 病院 | N168: 122 | O168: 1 | P168: 1 | Q168: 1 | S168: 4月～翌年3月 | T168: 12 | U168: × | AB168: 有 | AC168: 学研 | AD168: 学研 | AL168: 4 | AO168: 1 | AT168: 1 | AW168: 1 | BA168: 1 | BH168: 1 | BN168: 1 | BO168: パのみ
A169: 167 | B169: 2020 | C169: 20 | D169: ２ | E169: 22 | F169: 007 | G169: 2022007 | I169: 順天堂大学医学部附属静岡病院 | J169: 静岡県 | K169: 410-2295 | L169: 伊豆の国市長岡１１２９ | M169: 大学病院 | N169: 577 | O169: 20 | P169: 1 | Q169: 20 | S169: 4月～3月8月～3月.1月～3月 | T169: 6.8.12 | U169: × | AB169: 有 | AC169: S-QUE | AD169: S-QUE | AL169: 16 | AM169: 13 | AN169: 13 | AO169: 3 | AP169: 2 | AT169: 2 | AU169: 2 | AV169: 4 | AW169: 3 | AX169: 5 | AY169: 13 | BA169: 14 | BB169: 3 | BC169: 5 | BD169: 3 | BE169: 5 | BF169: 6 | BJ169: 3 | BK169: 3 | BM169: 2 | BN169: 3 | BO169: 令和6年4月1日より研修管理委員会の構成員、研修施設、研修責任者、指導者の変更
A170: 168 | B170: 2020 | C170: 20 | D170: ２ | E170: 23 | F170: 006 | G170: 2023006 | I170: 愛知医科大学病院 | J170: 愛知県 | K170: 480-1195 | L170: 長久手市岩作雁又１番地１ | M170: 大学病院 | N170: 900 | O170: 25 | P170: 1 | Q170: 25 | S170: 4月～翌年2月 | T170: 11 | U170: × | AB170: 有 | AC170: S-QUE | AD170: S-QUE | AL170: 9 | AM170: 12 | AN170: 20 | AO170: 20 | AV170: 8 | AW170: 5 | AY170: 20 | BA170: 25 | BD170: 12 | BE170: 12 | BJ170: 12 | BN170: 1 | BO170: R60801より研修施設および指導者の変更
A171: 169 | B171: 2020 | C171: 20 | D171: ２ | E171: 24 | F171: 001 | G171: 2024001 | I171: 国立大学法人三重大学医学部附属病院 | J171: 三重県 | K171: 514-8507 | L171: 津市江戸橋２丁目１７４番地 | M171: 大学病院 | N171: 685 | O171: 30 | P171: 1 | Q171: 30 | S171: 4月～翌年3月 | T171: 12 | U171: × | V171: ○ | AB171: 有 | AC171: S-QUE | AD171: S-QUE | AL171: 11 | AM171: 0 | AN171: 3 | AR171: 3 | AS171: 3 | AU171: 3 | AY171: 0 | BA171: 23 | BB171: 23 | BD171: 0 | BE171: 0 | BF171: 3 | BJ171: 2 | BK171: 3 | BM171: 4 | BN171: 3 | BO171: R3.3共通・区分（栄養水分）定員変更,R5.6.1～術中麻酔パッケージ再開
A172: 170 | B172: 2020 | C172: 20 | D172: ２ | E172: 26 | F172: 003 | G172: 2026003 | I172: 医療法人医仁会 武田総合病院 | J172: 京都府 | K172: 601-1495 | L172: 京都市伏見区石田森南町２８番地の１ | M172: 病院 | N172: 500 | O172: 17 | P172: 1 | Q172: 17 | S172: 4月～翌年3月 | T172: 12 | U172: × | AB172: 有 | AC172: 学研 | AD172: 学研 | AL172: 13 | AM172: 11 | AN172: 11 | AO172: 5 | AP172: 4 | AU172: 11 | AV172: 6 | AW172: 4 | AY172: 13 | BA172: 14 | BB172: 4 | BC172: 8 | BE172: 8 | BF172: 12 | BK172: 4 | BM172: 4 | BN172: 2 | BO172: R70328より協力施設の追加、定員数の変更、指導者の変更
A173: 171 | B173: 2020 | C173: 20 | D173: ２ | E173: 26 | F173: 004 | G173: 2026004 | I173: 医療法人社団石鎚会京都田辺中央病院 | J173: 京都府 | K173: 610-0334 | L173: 京田辺市田辺中央６丁目１番地６ | M173: 病院 | N173: 188 | O173: 8 | P173: 1 | Q173: =P173*O173 -> 8 | S173: 4月～翌年3月 | T173: 12 | U173: × | AB173: 有 | AC173: S-QUE | AD173: S-QUE | AL173: 15 | AM173: 5 | AN173: 5 | AO173: 2 | AP173: 2 | AT173: 2 | AU173: 2 | AV173: 2 | AW173: 2 | AY173: 5 | BA173: 5 | BB173: 3 | BC173: 3 | BD173: 1 | BE173: 3 | BF173: 2 | BH173: 2 | BJ173: 1 | BK173: 2 | BM173: 2 | BN173: 4 | BO173: R3ﾊﾟ集中の申請あり（R5.1確認）
A174: 172 | B174: 2020 | C174: 20 | D174: ２ | E174: 26 | F174: 005 | G174: 2026005 | I174: 京都府公立大学法人 京都府立医科大学 | J174: 京都府 | K174: 602-8566 | L174: 京都市上京区河原町通広小路上ル梶井町４６５番地 | M174: 大学 | O174: 8 | P174: 1 | Q174: =P174*O174 -> 8 | S174: 4月～翌年3月 | T174: 12 | U174: × | AB174: 有 | AC174: S-QUE | AD174: S-QUE | AL174: 15 | AM174: 8 | AN174: 14 | AO174: 2 | AP174: 2 | AQ174: 2 | AR174: 2 | AS174: 2 | AU174: 4 | AV174: 2 | AX174: 2 | AY174: 10 | BA174: 8 | BD174: 4 | BE174: 14 | BF174: 2 | BI174: 2 | BJ174: 2 | BK174: 2 | BM174: 2 | BN174: 4 | BO174: R70401より研修内容、構成員、指導者の変更
A175: 173 | B175: 2020 | C175: 20 | D175: ２ | E175: 27 | F175: 009 | G175: 2027009 | I175: 大阪医科薬科大学病院 | J175: 大阪府 | K175: 569-8686 | L175: 大阪府高槻市大学町２番７号 | M175: 大学病院 | N175: 852 | O175: 4 | P175: 1 | Q175: =P175*O175 -> 4 | S175: 4月～翌年3月 | T175: 12 | U175: × | AB175: 無 | AC175: 学研 | AD175: 学研 | AL175: 15 | AM175: 6 | AN175: 6 | AO175: 3 | AR175: 2 | AS175: 2 | AT175: 1 | AU175: 2 | AV175: 2 | AW175: 1 | AX175: 2 | AY175: 6 | BA175: 7 | BD175: 3 | BE175: 5 | BF175: 3 | BH175: 1 | BI175: 2 | BJ175: 1 | BK175: 3 | BN175: 4 | BO175: R70401 より構成員、責任者、指導者の変更
A176: 174 | B176: 2020 | C176: 20 | D176: ２ | E176: 27 | F176: 010 | G176: 2027010 | I176: 大阪大学医学部附属病院 | J176: 大阪府 | K176: 565-0871 | L176: 大阪府吹田市 山田丘２－１５ | M176: 大学病院 | N176: 1086 | O176: 21 | P176: 1 | Q176: =P176*O176 -> 21 | S176: 4月～翌年3月 | T176: 12 | U176: × | AB176: 有 | AC176: 学研 | AD176: 学研 | AL176: 17 | AM176: 7 | AN176: 7 | AO176: 7 | AR176: 7 | AS176: 7 | AT176: 7 | AU176: 7 | AV176: 7 | AW176: 7 | AX176: 7 | AY176: 7 | BA176: 7 | BB176: 7 | BC176: 7 | BD176: 7 | BE176: 7 | BF176: 7 | BJ176: 7 | BK176: 7 | BN176: 2 | BO176: R70401より代表者、研修管理委員会の構成員の変更
A177: 175 | B177: 2020 | C177: 20 | D177: ２ | E177: 27 | F177: 011 | G177: 2027011 | I177: 関西医科大学附属病院 | J177: 大阪府 | K177: 573-1191 | L177: 枚方市新町２丁目３番１号 | M177: 大学病院 | N177: 751 | O177: 40 | P177: 1 | Q177: 60 | S177: 4月～翌年3月 | T177: 12 | U177: × | AB177: 有 | AC177: 学研 | AD177: 学研 | AL177: 12 | AM177: 25 | AN177: 25 | AP177: 25 | AS177: 25 | AU177: 40 | AV177: 2 | AX177: 25 | AY177: 40 | BA177: 45 | BC177: 10 | BD177: 10 | BE177: 25 | BJ177: 10 | BM177: 25 | BN177: 2 | BO177: R70401より定員数の変更、指導者の変更
A178: 176 | B178: 2020 | C178: 20 | D178: ２ | E178: 28 | F178: 005 | G178: 2028005 | I178: 公益社団法人日本麻酔科学会 | J178: 兵庫県 | K178: 650-0047 | L178: 兵庫県神戸市中央区港島中町１－５－２ 神戸キメックセンタービル３階 | M178: 学会 | O178: 59 | P178: 1 | Q178: =P178*O178 -> 59 | S178: 4月～翌年3月 | T178: 12 | U178: × | AB178: 有 | AC178: 学研 | AD178: 学研 | AL178: =COUNTA(AM178:BG178) -> 6 | AM178: 59 | AN178: 59 | AY178: 59 | BA178: 59 | BD178: 59 | BE178: 59 | BJ178: 59 | BN178: 1 | BO178: R７０２２８より指導者の変更
A179: 177 | B179: 2020 | C179: 20 | D179: ２ | E179: 28 | F179: 006 | G179: 2028006 | I179: 社会医療法人 榮昌会 吉田病院 | J179: 兵庫県 | K179: 652-0803 | L179: 兵庫県神戸市兵庫区大開通９丁目２ー６ | M179: 病院 | N179: 139 | O179: 4 | P179: 1 | Q179: =P179*O179 -> 4 | S179: 4月～翌年3月 | T179: 12 | U179: × | AB179: 有 | AC179: S-QUE | AD179: S-QUE | AL179: 3 | AU179: 2 | AY179: 2 | BF179: 2 | BN179: 0 | BO179: R60401より定員数、構成員、指導者変更（２→４）
A180: 178 | B180: 2020 | C180: 20 | D180: ２ | E180: 32 | F180: 004 | G180: 2032004 | I180: 公立大学法人島根県立大学 島根県立大学大学院看護学研究科看護学専攻 | J180: 島根県 | K180: 693-8550 | L180: 島根県出雲市西林木町１５１ | M180: 大学院 | O180: 20 | P180: 1 | Q180: 20 | S180: 24ヶ月（大学院診療看護師養成課程）12ヶ月（感染管理認定看護師教育課程B課程） | T180: 24 | U180: ○ | V180: ○ | X180: ○ | AB180: 無 | AC180: 放送大学 | AL180: 8 | AO180: 2 | AT180: 4 | AV180: 2 | AW180: 2 | BA180: 20 | BB180: 20 | BC180: 2 | BF180: 2 | BH180: 2 | BN180: 1 | BO180: R60401よりPのもの区分でも開講（長期呼吸療法）
A181: 179 | B181: 2020 | C181: 20 | D181: ２ | E181: 32 | F181: 005 | G181: 2032005 | I181: 国立大学法人島根大学医学部附属病院 | J181: 島根県 | K181: 693-8501 | L181: 島根県出雲市塩冶町８９ー１ | M181: 大学病院 | N181: 600 | O181: 28 | P181: 1 | Q181: 28 | S181: ４月～翌年3月 | T181: 12 | U181: × | AB181: 有 | AC181: S-QUE | AD181: S-QUE | AL181: 8 | AM181: 3 | AN181: 3 | AW181: 5 | AY181: 8 | BA181: 8 | BC181: 5 | BD181: 3 | BE181: 8 | BJ181: 3 | BN181: 1 | BO181: R70401より構成員、指導者の変更
A182: 180 | B182: 2020 | C182: 20 | D182: ２ | E182: 33 | F182: 003 | G182: 2033003 | I182: 国立大学法人岡山大学 岡山大学病院 | J182: 岡山県 | K182: 700-8558 | L182: 岡山市北区鹿田町２丁目５ー１ | M182: 大学病院 | N182: 855 | O182: 15 | P182: 1 | Q182: 15 | S182: 4月～翌年3月 | T182: 12 | U182: × | AB182: 有 | AC182: 学研 | AD182: 学研 | AL182: 12 | AM182: 10 | AN182: 15 | AO182: 5 | AR182: 5 | AS182: 5 | AU182: 10 | AV182: 10 | AX182: 5 | AY182: 15 | BA182: 10 | BD182: 10 | BE182: 10 | BI182: 5 | BJ182: 5 | BN182: 2 | BO182: R70101より指導者の変更
A183: 181 | B183: 2020 | C183: 20 | D183: ２ | E183: 35 | F183: 003 | G183: 2035003 | I183: 国立大学法人山口大学医学部附属病院 | J183: 山口県 | K183: 755-8505 | L183: 山口県宇部市南小串１ー１ー１ | M183: 大学病院 | N183: 756 | O183: 5 | P183: 1 | Q183: 5 | S183: 4月～翌年3月 | T183: 12 | U183: × | Z183: 5 | AB183: 無 | AC183: 学研 | AD183: 学研 | AL183: 13 | AM183: 5 | AN183: 5 | AO183: 5 | AR183: 5 | AS183: 5 | AU183: 5 | AV183: 5 | AX183: 5 | AY183: 5 | BA183: 5 | BD183: 5 | BE183: 5 | BF183: 5 | BI183: 5 | BJ183: 5 | BK183: 5 | BN183: 3 | BO183: R70314より担当分野変更
A184: 182 | B184: 2020 | C184: 20 | D184: ２ | E184: 36 | F184: 001 | G184: 2036001 | I184: 国立大学法人徳島大学 徳島大学病院 | J184: 徳島県 | K184: 770-8503 | L184: 徳島県徳島市蔵本町２丁目５０－１ | M184: 大学病院 | N184: 696 | O184: 10 | P184: 1 | Q184: 10 | S184: 5月～翌年3月 | T184: 11 | U184: × | AB184: 有 | AC184: 学研 | AD184: 学研 | AL184: 16 | AM184: 9 | AN184: 9 | AO184: 3 | AR184: 3 | AS184: 3 | AU184: 6 | AV184: 3 | AW184: 6 | AX184: 6 | AY184: 12 | BA184: 12 | BB184: 6 | BC184: 3 | BD184: 9 | BE184: 6 | BF184: 3 | BJ184: 3 | BK184: 3 | BL184: 3 | BN184: 3 | BO184: R70401より指導者、構成員、共通科目時間数変更
A185: 183 | B185: 2020 | C185: 20 | D185: ２ | E185: 37 | F185: 003 | G185: 2037003 | I185: 国立大学法人香川大学 | J185: 香川県 | K185: 760-8521 | L185: 香川県高松市幸町１番１号 | M185: 大学 | O185: 6 | P185: 1 | Q185: 6 | S185: 4月～翌年3月 | T185: 12 | U185: × | AB185: 有 | AC185: 学研 | AD185: 学研 | AL185: 14 | AM185: 4 | AN185: 4 | AO185: 4 | AR185: 2 | AS185: 2 | AT185: 2 | AU185: 2 | AV185: 2 | AW185: 2 | AX185: 2 | AY185: 4 | BA185: 6 | BD185: 2 | BE185: 2 | BH185: 2 | BI185: 0 | BJ185: 2 | BN185: 3 | BO185: R70401より休止区分（休止Pの中の1区分）再開、指導者の変更
A186: 184 | B186: 2020 | C186: 20 | D186: ２ | E186: 39 | F186: 002 | G186: 2039002 | I186: 国立大学法人高知大学 高知大学医学部附属病院 | J186: 高知県 | K186: 783-8505 | L186: 高知県南国市岡豊町小蓮１８５番地１ | M186: 大学病院 | N186: 613 | O186: 45 | P186: 1 | Q186: 49 | S186: 4月～翌年3月 | T186: 12 | U186: × | V186: ○ | AB186: 有 | AC186: 学研 | AD186: 学研 | AL186: 16 | AM186: 12 | AN186: 12 | AO186: 7 | AR186: 3 | AS186: 3 | AU186: 6 | AV186: 3 | AW186: 3 | AX186: 6 | AY186: 11 | BA186: 15 | BB186: 15 | BC186: 4 | BD186: 11 | BE186: 8 | BF186: 3 | BI186: 0 | BJ186: 0 | BK186: 0 | BL186: 0 | BN186: 4 | BO186: 令和6年10月1日パッケージの休止、区分の追加 R70127より協力施設、構成員の変更
A187: 185 | B187: 2020 | C187: 20 | D187: ２ | E187: 40 | F187: 005 | G187: 2040005 | I187: 医療法人八女発心会 姫野病院 | J187: 福岡県 | K187: 834-0115 | L187: 福岡県八女郡広川町新代２３１６ | M187: 病院 | N187: 140 | O187: 8 | P187: 1 | Q187: 10 | S187: 10月～3月4月～翌年3月 | T187: ６・12 | U187: × | Z187: 5 | AA187: 要 | AB187: 有 | AC187: 学研 | AD187: 学研 | AL187: 4 | AO187: 4 | AY187: 2 | BA187: 2 | BB187: 2 | BN187: 0
A188: 186 | B188: 2020 | C188: 20 | D188: ２ | E188: 40 | F188: 006 | G188: 2040006 | I188: 社会福祉法人恩賜財団済生会支部福岡県済生会福岡総合病院 | J188: 福岡県 | K188: 810-0001 | L188: 福岡県福岡市中央区天神１丁目３－４６ | M188: 病院 | N188: 380 | O188: 22 | P188: 1 | Q188: 35 | S188: 4月～翌年3月 | T188: 12 | U188: × | AB188: 有 | AC188: S-QUE | AD188: S-QUE | AL188: 14 | AM188: 26 | AN188: 26 | AO188: 8 | AP188: 4 | AS188: 6 | AU188: 12 | AV188: 5 | AW188: 4 | AY188: 26 | BA188: 18 | BC188: 6 | BD188: 8 | BE188: 8 | BF188: 10 | BJ188: 4 | BK188: 4 | BM188: 4 | BN188: 3 | BO188: 令和7年4月1日より構成員、指導者の変更
A189: 187 | B189: 2020 | C189: 20 | D189: ２ | E189: 40 | F189: 007 | G189: 2040007 | I189: 地方独立行政法人福岡市立病院機構 福岡市民病院 | J189: 福岡県 | K189: 812-0046 | L189: 福岡市博多区吉塚本町１３番１号 | M189: 病院 | N189: 204 | O189: 6 | P189: 1 | Q189: =P189*O189 -> 6 | S189: 4月～翌年3月 | T189: 12 | U189: × | AB189: 有 | AC189: 学研 | AD189: 学研 | AL189: 7 | AM189: 2 | AN189: 2 | AW189: 1 | AY189: 2 | BA189: 5 | BD189: 2 | BE189: 2 | BJ189: 2 | BN189: 1 | BO189: 令和6年4月1日より研修管理委員会の構成員および指導者の変更
A190: 188 | B190: 2020 | C190: 20 | D190: ２ | E190: 42 | F190: 001 | G190: 2042001 | I190: 国立大学法人 長崎大学病院 | J190: 長崎県 | K190: 852-8501 | L190: 長崎県長崎市坂本１丁目７番１号 | M190: 大学病院 | N190: 827 | O190: 10 | P190: 1 | Q190: 19 | S190: 4月～翌年3月 | T190: 12 | U190: × | AB190: 無 | AC190: 学研 | AD190: 学研 | AL190: 10 | AM190: 5 | AN190: 5 | AO190: 5 | AS190: 4 | AT190: 3 | AU190: 4 | AW190: 3 | AX190: 3 | AY190: 5 | BA190: 5 | BH190: 2 | BN190: 1 | BO190: R70101より使用施設の変更
A191: 189 | B191: 2020 | C191: 20 | D191: ２ | E191: 42 | F191: 002 | G191: 2042002 | I191: 独立行政法人国立病院機構 長崎医療センター | J191: 長崎県 | K191: 856-8562 | L191: 大村市久原２丁目１００１－１ | M191: 病院 | N191: 643 | O191: 5 | P191: 1 | Q191: =P191*O191 -> 5 | S191: 6月～翌年1月 | T191: 8 | U191: × | AB191: 無 | AC191: S-QUE | AD191: S-QUE | AL191: 5 | AN191: 5 | AO191: 5 | AY191: 5 | BA191: 5 | BC191: 0 | BN191: 0 | BO191: 令和6年4月1日より研修管理委員会の構成員および責任者、指導者の変更
A192: 190 | B192: 2020 | C192: 20 | D192: ２ | E192: 43 | F192: 002 | G192: 2043002 | I192: 学校法人銀杏学園 熊本保健科学大学 キャリア教育研修センター | J192: 熊本県 | K192: 861-5598 | L192: 熊本県熊本市北区和泉町３２５ | M192: 大学 | O192: 24 | P192: 1 | Q192: 24 | S192: 4月～翌年3月 | T192: 12 | U192: × | V192: ○ | AB192: 無 | AC192: 日看協 | AL192: 5 | AO192: 2 | AT192: 2 | AW192: 2 | BA192: 22 | BF192: 22 | BH192: 2 | BN192: 1 | BO192: R60830より、研修施設、構成員、指導者に変更。栄養・精神定員変更
A193: 191 | B193: 2020 | C193: 20 | D193: ２ | E193: 43 | F193: 003 | G193: 2043003 | I193: 国立大学法人熊本大学 熊本大学病院 | J193: 熊本県 | K193: 860-8556 | L193: 熊本県熊本市中央区本荘１丁目１番１ | M193: 大学病院 | N193: 845 | O193: 15 | P193: 1 | Q193: 15 | S193: 4月～翌年3月 | T193: 12 | U193: × | AB193: 無 | AC193: 学研 | AD193: 学研 | AL193: 12 | AM193: 10 | AN193: 15 | AO193: 10 | AR193: 10 | AS193: 10 | AU193: 10 | AV193: 10 | AX193: 10 | AY193: 15 | BA193: 15 | BD193: 10 | BE193: 10 | BI193: 10 | BJ193: 5 | BM193: 2 | BN193: 3 | BO193: R61001より指導者の変更
A194: 192 | B194: 2020 | C194: 20 | D194: ２ | E194: 43 | F194: 004 | G194: 2043004 | I194: 社会福祉法人恩賜財団済生会熊本病院 | J194: 熊本県 | K194: 861-4193 | L194: 熊本市南区近見５丁目３番１号 | M194: 病院 | N194: 400 | O194: 10 | P194: 1 | Q194: 10 | S194: 4月～翌年3月 | T194: 12 | U194: × | AB194: 無 | AC194: S-QUE | AD194: S-QUE | AL194: 17 | AM194: 8 | AN194: 10 | AP194: 3 | AQ194: 2 | AR194: 8 | AS194: 2 | AU194: 11 | AV194: 2 | AW194: 2 | AX194: 2 | AY194: 11 | BA194: 10 | BB194: 2 | BC194: 8 | BD194: 4 | BE194: 6 | BF194: 2 | BJ194: 2 | BK194: 2 | BL194: 1 | BM194: 2 | BN194: 4 | BO194: 令和6年4月1日より実施する特定行為区分、研修管理委員会の構成員、指導者、定員の変更
A195: 193 | B195: 2020 | C195: =RIGHT(B195,2) -> 20 | D195: 8 | E195: 02 | F195: 002 | G195: =CONCATENATE(C195,E195,F195) -> 2002002 | I195: 八戸市立市民病院 | J195: 青森県 | K195: 031－8555 | L195: 青森県八戸市田向3－1－1 | M195: 病院 | N195: 628 | O195: 13 | P195: 1 | Q195: 13 | S195: 10月～翌９月 4月～翌3月 | T195: 12 | U195: × | Y195: ○ | Z195: 5 | AA195: 不要 | AB195: 有 | AC195: S-QUE | AG195: 無 | AL195: 13 | AM195: 13 | AN195: 13 | AO195: 5 | AR195: 5 | AS195: 5 | AU195: 5 | AV195: 5 | AX195: 5 | AY195: 13 | BA195: 13 | BD195: 5 | BE195: 5 | BF195: 8 | BI195: 2 | BK195: 8 | BN195: 2 | BO195: R4.6～救急パ5→8 R70131より協力施設、指導者変更
A196: 194 | B196: 2020 | C196: 20 | D196: 8 | E196: 04 | F196: 004 | G196: 2004004 | I196: 独立行政法人国立病院機構仙台医療センター | J196: 宮城県 | K196: 983－8520 | L196: 宮城県仙台市宮城野区宮城野2－11－12 | M196: 病院 | O196: 10 | P196: 1 | Q196: 10 | S196: ５月～翌年2月10月～翌年2月 | T196: 5,10 | U196: × | Y196: ○ | Z196: 5 | AA196: 要 | AB196: 有 | AC196: 学研 | AG196: 無 | AH196: 42.5 | AI196: 67 | AL196: 11 | AM196: 2 | AN196: 2 | AO196: 2 | AU196: 2 | AV196: 2 | AW196: 2 | AY196: 3 | BA196: 3 | BB196: 1 | BF196: 2 | BG196: 0 | BK196: 2 | BN196: 1 | BO196: R61030より構成員、指導者の変更
A197: 195 | B197: 2020 | C197: 20 | D197: ８ | E197: 04 | F197: 005 | G197: 2004005 | I197: 国立大学法人東北大学 東北大学病院 | J197: 宮城県 | K197: 980－8574 | L197: 宮城県仙台市青葉区星陵町1－1 | M197: 大学病院 | O197: 9 | P197: 1 | Q197: 9 | S197: ４月～３月,免除10月～３月 | T197: 6.12 | U197: × | Y197: × | Z197: 5 | AA197: 要 | AB197: 有 | AC197: 学研 | AG197: 無 | AL197: 14 | AM197: 3 | AN197: 6 | AO197: 3 | AR197: 3 | AS197: 3 | AT197: 3 | AU197: 3 | AV197: 3 | AW197: 3 | AX197: 3 | AY197: 3 | BA197: 3 | BD197: 3 | BE197: 6 | BI197: 3 | BJ197: 3 | BN197: 2 | BO197: R61001より指導者の変更
A198: 196 | B198: 2020 | C198: 20 | D198: ８ | E198: 11 | F198: 003 | G198: 2011003 | I198: 防衛医科大学校病院 | J198: 埼玉県 | K198: 359－8513 | L198: 埼玉県所沢市並木3－2 | M198: 大学病院 | N198: 800 | O198: 5 | P198: 1 | Q198: 5 | S198: 10月～翌９月 | T198: 12 | U198: × | Y198: 不明 | AA198: 不明 | AB198: 無 | AC198: 学研 | AG198: 無 | AL198: 6 | AM198: 5 | AN198: 5 | AY198: 5 | BA198: 5 | BD198: 5 | BE198: 5 | BJ198: 5 | BN198: 1 | BO198: 令和6年8月29日より構成員、指導者の変更
A199: 197 | B199: 2020 | C199: 20 | D199: ８ | E199: 13 | F199: 025 | G199: 2013025 | I199: 独立行政法人国立病院機構東京医療センター | J199: 東京都 | K199: 152－8902 | L199: 東京都目黒区東が丘2－5－1 | M199: 病院 | N199: 740 | O199: 5 | P199: 1 | Q199: 5 | S199: 10月～翌９月 | T199: 12 | U199: × | Y199: ○ | Z199: 3 | AA199: 要 | AB199: 有 | AC199: S-QUE | AG199: 無 | AH199: 65 | AI199: 65 | AL199: 7 | AU199: 5 | AW199: 5 | AX199: 5 | AY199: 5 | BA199: 5 | BB199: 5 | BD199: 5 | BL199: 5 | BN199: 1
A200: 198 | B200: 2020 | C200: 20 | D200: ８ | E200: 14 | F200: 014 | G200: 2014014 | I200: 独立行政法人国立病院機構横浜医療センター | J200: 神奈川県 | K200: 245－8575 | L200: 神奈川県横浜市戸塚区原宿3－60－2 | M200: 病院 | N200: 510 | O200: 5 | P200: 1 | Q200: 5 | S200: 10月～翌９月 | T200: 12 | U200: × | Y200: ○ | Z200: 5 | AA200: 要 | AB200: 無 | AC200: S-QUE | AG200: 無 | AH200: 45 | AI200: 60 | AL200: 6 | AM200: 5 | AN200: 5 | AY200: 5 | BA200: 5 | BD200: 5 | BE200: 5 | BJ200: 5 | BN200: 1
... 311 more rows

Sheet ホームページ用
A1: 特定行為に係る看護師の研修制度 指定研修機関一覧 （令和7年9月現在、指定年順） | E1: ※休止中の区分・領域別パッケージ研修も○となっています。
A2: No | B2: 都道府県 | C2: 指定年 | D2: 指定研修機関名 | E2: 区分数 | F2: 区分別研修 | AA2: 領域別パッケージ研修数 | AB2: 領域別パッケージ研修
F3: 呼吸器（気道確保に係るもの） | G3: 呼吸器（人工呼吸療法に係るもの） | H3: 呼吸器（長期呼吸療法に係るもの） | I3: 循環器 | J3: 心嚢ドレーン管理 | K3: 胸腔ドレーン管理 | L3: 腹腔ドレーン管理 | M3: ろう孔管理 | N3: 栄養に係るカテーテル管理（中心静脈カテーテル管理） | O3: 栄養に係るカテーテル管理（末梢留置型中心静脈注射用カテーテル管理） | P3: 創傷管理 | Q3: 創部ドレーン管理 | R3: 動脈血液ガス 分析 | S3: 透析管理 | T3: 栄養及び水分管理に係る薬剤投与 | U3: 感染に係る薬剤投与 | V3: 血糖コントロールに係る薬剤投与 | W3: 術後疼痛管理 | X3: 循環動態に係る薬剤投与 | Y3: 精神及び神経症状に係る薬剤投与 | Z3: 皮膚損傷に係る薬剤投与 | AB3: 在宅 | AC3: 外科術後 | AD3: 麻酔 | AE3: 救急 | AF3: 外科基本 | AG3: 集中治療領域
A4: 1 | B4: 北海道 | C4: 2015 | D4: 学校法人東日本学園北海道医療大学大学院看護福祉学研究科看護学専攻 | E4: 13 | F4: ○ | H4: ○ | M4: ○ | N4: ○ | O4: ○ | P4: ○ | R4: ○ | T4: ○ | U4: ○ | V4: ○ | X4: ○ | Y4: ○ | Z4: ○ | AA4: 0
A5: 2 | B5: 岩手県 | C5: 2015 | D5: 学校法人岩手医科大学 岩手医科大学附属病院高度看護研修センター | E5: 14 | F5: ○ | G5: ○ | H5: ○ | K5: ○ | L5: ○ | M5: ○ | N5: ○ | O5: ○ | P5: ○ | Q5: ○ | R5: ○ | T5: ○ | W5: ○ | X5: ○ | AA5: 2 | AB5: ○ | AC5: ○
A6: 3 | B6: 栃木県 | C6: 2015 | D6: 学校法人自治医科大学 自治医科大学 | E6: 20 | F6: ○ | G6: ○ | H6: ○ | I6: ○ | K6: ○ | L6: ○ | M6: ○ | N6: ○ | O6: ○ | P6: ○ | Q6: ○ | R6: ○ | S6: ○ | T6: ○ | U6: ○ | V6: ○ | W6: ○ | X6: ○ | Y6: ○ | Z6: ○ | AA6: 5 | AB6: ○ | AC6: ○ | AD6: ○ | AF6: ○ | AG6: ○
A7: 4 | B7: 埼玉県 | C7: 2015 | D7: 医療法人社団愛友会上尾中央総合病院 | E7: 14 | F7: ○ | G7: ○ | H7: ○ | I7: ○ | J7: ○ | M7: ○ | N7: ○ | O7: ○ | P7: ○ | Q7: ○ | R7: ○ | T7: ○ | U7: ○ | W7: ○ | X7: ○ | Y7: ○ | AA7: 0
A8: 5 | B8: 東京都 | C8: 2015 | D8: 一般社団法人日本慢性期医療協会 | E8: 9 | G8: ○ | H8: ○ | N8: ○ | O8: ○ | P8: ○ | T8: ○ | U8: ○ | V8: ○ | Y8: ○ | AA8: 0
A9: 6 | B9: 東京都 | C9: 2015 | D9: 学校法人青葉学園東京医療保健大学大学院看護学研究科看護学専攻 | E9: 21 | F9: ○ | G9: ○ | H9: ○ | I9: ○ | J9: ○ | K9: ○ | L9: ○ | M9: ○ | N9: ○ | O9: ○ | P9: ○ | Q9: ○ | R9: ○ | S9: ○ | T9: ○ | U9: ○ | V9: ○ | W9: ○ | X9: ○ | Y9: ○ | Z9: ○ | AA9: 0
A10: 7 | B10: 東京都 | C10: 2015 | D10: 学校法人国際医療福祉大学国際医療福祉大学大学院医療福祉学研究科保健医療学専攻 | E10: 21 | F10: ○ | G10: ○ | H10: ○ | I10: ○ | J10: ○ | K10: ○ | L10: ○ | M10: ○ | N10: ○ | O10: ○ | P10: ○ | Q10: ○ | R10: ○ | S10: ○ | T10: ○ | U10: ○ | V10: ○ | W10: ○ | X10: ○ | Y10: ○ | Z10: ○ | AA10: 0
A11: 8 | B11: 東京都 | C11: 2015 | D11: 公益社団法人地域医療振興協会 NP・NDC研修センター | E11: 21 | F11: ○ | G11: ○ | H11: ○ | I11: ○ | J11: ○ | K11: ○ | L11: ○ | M11: ○ | N11: ○ | O11: ○ | P11: ○ | Q11: ○ | R11: ○ | S11: ○ | T11: ○ | U11: ○ | V11: ○ | W11: ○ | X11: ○ | Y11: ○ | Z11: ○ | AA11: 0
A12: 9 | B12: 東京都 | C12: 2015 | D12: 公益社団法人日本看護協会 | E12: 12 | F12: ○ | G12: ○ | H12: ○ | M12: ○ | O12: ○ | P12: ○ | R12: ○ | T12: ○ | U12: ○ | V12: ○ | X12: ○ | Y12: ○ | AA12: 1 | AB12: ○
A13: 10 | B13: 愛知県 | C13: 2015 | D13: 学校法人愛知医科大学大学院看護学研究科看護学専攻 | E13: 21 | F13: ○ | G13: ○ | H13: ○ | I13: ○ | J13: ○ | K13: ○ | L13: ○ | M13: ○ | N13: ○ | O13: ○ | P13: ○ | Q13: ○ | R13: ○ | S13: ○ | T13: ○ | U13: ○ | V13: ○ | W13: ○ | X13: ○ | Y13: ○ | Z13: ○ | AA13: 0
A14: 11 | B14: 愛知県 | C14: 2015 | D14: 学校法人藤田学園藤田保健衛生大学大学院保健学研究科保健学専攻 | E14: 21 | F14: ○ | G14: ○ | H14: ○ | I14: ○ | J14: ○ | K14: ○ | L14: ○ | M14: ○ | N14: ○ | O14: ○ | P14: ○ | Q14: ○ | R14: ○ | S14: ○ | T14: ○ | U14: ○ | V14: ○ | W14: ○ | X14: ○ | Y14: ○ | Z14: ○ | AA14: 1 | AB14: ○
A15: 12 | B15: 京都府 | C15: 2015 | D15: 医療法人社団洛和会洛和会音羽病院 | E15: 10 | F15: ○ | G15: ○ | H15: ○ | P15: ○ | R15: ○ | T15: ○ | V15: ○ | W15: ○ | X15: ○ | Y15: ○ | AA15: 1 | AD15: ○
A16: 13 | B16: 奈良県 | C16: 2015 | D16: 公立大学法人奈良県立医科大学 | E16: 14 | F16: ○ | G16: ○ | H16: ○ | I16: ○ | M16: ○ | N16: ○ | O16: ○ | P16: ○ | R16: ○ | T16: ○ | V16: ○ | W16: ○ | X16: ○ | Y16: ○ | AA16: 0
A17: 14 | B17: 大分県 | C17: 2015 | D17: 公立大学法人大分県立看護科学大学大学院看護学研究科看護学専攻 | E17: 21 | F17: ○ | G17: ○ | H17: ○ | I17: ○ | J17: ○ | K17: ○ | L17: ○ | M17: ○ | N17: ○ | O17: ○ | P17: ○ | Q17: ○ | R17: ○ | S17: ○ | T17: ○ | U17: ○ | V17: ○ | W17: ○ | X17: ○ | Y17: ○ | Z17: ○ | AA17: 0
A18: 15 | B18: 宮城県 | C18: 2016 | D18: 学校法人東北文化学園大学東北文化学園大学大学院健康社会システム研究科健康福祉専攻 | E18: 21 | F18: ○ | G18: ○ | H18: ○ | I18: ○ | J18: ○ | K18: ○ | L18: ○ | M18: ○ | N18: ○ | O18: ○ | P18: ○ | Q18: ○ | R18: ○ | S18: ○ | T18: ○ | U18: ○ | V18: ○ | W18: ○ | X18: ○ | Y18: ○ | Z18: ○ | AA18: 0
A19: 16 | B19: 福島県 | C19: 2016 | D19: 公益財団法人星総合病院 | E19: 6 | M19: ○ | P19: ○ | R19: ○ | T19: ○ | U19: ○ | Y19: ○ | AA19: 0
A20: 17 | B20: 埼玉県 | C20: 2016 | D20: 学校法人埼玉医科大学埼玉医科大学総合医療センター | E20: 7 | F20: ○ | G20: ○ | H20: ○ | M20: ○ | S20: ○ | T20: ○ | V20: ○ | AA20: 0
A21: 18 | B21: 千葉県 | C21: 2016 | D21: 社会医療法人社団さつき会袖ヶ浦さつき台病院看護師特定行為研修センター | E21: 3 | T21: ○ | V21: ○ | Y21: ○ | AA21: 0
A22: 19 | B22: 東京都 | C22: 2016 | D22: 独立行政法人地域医療機能推進機構東京新宿メディカルセンター | E22: 2 | T22: ○ | V22: ○ | AA22: 0
A23: 20 | B23: 滋賀県 | C23: 2016 | D23: 国立大学法人 滋賀医科大学 | E23: 21 | F23: ○ | G23: ○ | H23: ○ | I23: ○ | J23: ○ | K23: ○ | L23: ○ | M23: ○ | N23: ○ | O23: ○ | P23: ○ | Q23: ○ | R23: ○ | S23: ○ | T23: ○ | U23: ○ | V23: ○ | W23: ○ | X23: ○ | Y23: ○ | Z23: ○ | AA23: 6 | AB23: ○ | AC23: ○ | AD23: ○ | AE23: ○ | AF23: ○ | AG23: ○
A24: 21 | B24: 大阪府 | C24: 2016 | D24: 社会医療法人愛仁会 | E24: 16 | F24: ○ | G24: ○ | H24: ○ | I24: ○ | M24: ○ | N24: ○ | O24: ○ | P24: ○ | R24: ○ | S24: ○ | T24: ○ | U24: ○ | V24: ○ | W24: ○ | X24: ○ | Y24: ○ | AA24: 3 | AB24: ○ | AD24: ○ | AE24: ○
A25: 23 | B25: 茨城県 | C25: 2016 | D25: 国立大学法人筑波大学 筑波大学付属病院 | E25: 20 | F25: ○ | G25: ○ | H25: ○ | I25: ○ | K25: ○ | L25: ○ | M25: ○ | N25: ○ | O25: ○ | P25: ○ | Q25: ○ | R25: ○ | S25: ○ | T25: ○ | U25: ○ | V25: ○ | W25: ○ | X25: ○ | Y25: ○ | Z25: ○ | AA25: 6 | AB25: ○ | AC25: ○ | AD25: ○ | AE25: ○ | AF25: ○ | AG25: ○
A26: 24 | B26: 群馬県 | C26: 2016 | D26: 公益財団法人脳血管研究所 附属美原記念病院 | E26: 6 | H26: ○ | M26: ○ | O26: ○ | P26: ○ | R26: ○ | T26: ○ | AA26: 1 | AB26: ○
A27: 25 | B27: 石川県 | C27: 2016 | D27: 社会医療法人財団董仙会 恵寿総合病院 | E27: 9 | F27: ○ | G27: ○ | H27: ○ | M27: ○ | P27: ○ | R27: ○ | T27: ○ | V27: ○ | X27: ○ | AA27: 1 | AB27: ○
A28: 26 | B28: 福井県 | C28: 2016 | D28: 学校法人 新田塚学園 福井医療大学 | E28: 12 | F28: ○ | G28: ○ | H28: ○ | M28: ○ | P28: ○ | R28: ○ | T28: ○ | U28: ○ | V28: ○ | W28: ○ | X28: ○ | Y28: ○ | AA28: 2 | AB28: ○ | AD28: ○
A29: 27 | B29: 高知県 | C29: 2016 | D29: 社会医療法人近森会 近森病院 | E29: 17 | F29: ○ | G29: ○ | H29: ○ | I29: ○ | K29: ○ | L29: ○ | N29: ○ | O29: ○ | P29: ○ | Q29: ○ | R29: ○ | T29: ○ | U29: ○ | V29: ○ | W29: ○ | X29: ○ | Y29: ○ | AA29: 5 | AC29: ○ | AD29: ○ | AE29: ○ | AF29: ○ | AG29: ○
A30: 28 | B30: 鹿児島県 | C30: 2016 | D30: 国立大学法人鹿児島大学 鹿児島大学病院 | E30: 16 | F30: ○ | G30: ○ | H30: ○ | K30: ○ | L30: ○ | M30: ○ | N30: ○ | O30: ○ | P30: ○ | Q30: ○ | R30: ○ | T30: ○ | U30: ○ | V30: ○ | W30: ○ | X30: ○ | AA30: 3 | AB30: ○ | AC30: ○ | AD30: ○
A31: 29 | B31: 山形県 | C31: 2017 | D31: 国立大学法人山形大学 山形大学大学院医学系研究科看護学専攻 | E31: 21 | F31: ○ | G31: ○ | H31: ○ | I31: ○ | J31: ○ | K31: ○ | L31: ○ | M31: ○ | N31: ○ | O31: ○ | P31: ○ | Q31: ○ | R31: ○ | S31: ○ | T31: ○ | U31: ○ | V31: ○ | W31: ○ | X31: ○ | Y31: ○ | Z31: ○ | AA31: 0
A32: 30 | B32: 福島県 | C32: 2017 | D32: 公立大学法人福島県立医科大学 | E32: 20 | F32: ○ | G32: ○ | H32: ○ | I32: ○ | K32: ○ | L32: ○ | M32: ○ | N32: ○ | O32: ○ | P32: ○ | Q32: ○ | R32: ○ | S32: ○ | T32: ○ | U32: ○ | V32: ○ | W32: ○ | X32: ○ | Y32: ○ | Z32: ○ | AA32: 2 | AB32: ○ | AD32: ○
A33: 31 | B33: 東京都 | C33: 2017 | D33: 医療法人社団 明芳会 | E33: 12 | F33: ○ | G33: ○ | H33: ○ | N33: ○ | O33: ○ | P33: ○ | R33: ○ | T33: ○ | U33: ○ | V33: ○ | X33: ○ | Y33: ○ | AA33: 0
A34: 33 | B34: 石川県 | C34: 2017 | D34: 公立能登総合病院 | E34: 4 | P34: ○ | S34: ○ | T34: ○ | V34: ○ | AA34: 0
A35: 34 | B35: 大阪府 | C35: 2017 | D35: 公立大学法人大阪（大阪公立大学） | E35: 10 | F35: ○ | G35: ○ | H35: ○ | I35: ○ | N35: ○ | R35: ○ | T35: ○ | U35: ○ | V35: ○ | X35: ○ | AA35: 1 | AG35: ○
A36: 35 | B36: 大阪府 | C36: 2017 | D36: 社会医療法人きつこう会 多根総合病院 | E36: 7 | L36: ○ | N36: ○ | O36: ○ | P36: ○ | Q36: ○ | R36: ○ | T36: ○ | AA36: 0
A37: 36 | B37: 兵庫県 | C37: 2017 | D37: 兵庫医科大学 臨床教育統括センター | E37: 16 | F37: ○ | G37: ○ | H37: ○ | I37: ○ | M37: ○ | N37: ○ | O37: ○ | P37: ○ | Q37: ○ | R37: ○ | T37: ○ | U37: ○ | V37: ○ | W37: ○ | X37: ○ | Y37: ○ | AA37: 5 | AB37: ○ | AD37: ○ | AE37: ○ | AF37: ○ | AG37: ○
A38: 37 | B38: 和歌山県 | C38: 2017 | D38: 公立大学法人和歌山県立医科大学 | E38: 9 | F38: ○ | H38: ○ | M38: ○ | N38: ○ | O38: ○ | P38: ○ | R38: ○ | T38: ○ | V38: ○ | AA38: 1 | AB38: ○
A39: 38 | B39: 岡山県 | C39: 2017 | D39: 学校法人 川崎学園 | E39: 15 | F39: ○ | G39: ○ | H39: ○ | K39: ○ | L39: ○ | M39: ○ | N39: ○ | O39: ○ | P39: ○ | Q39: ○ | R39: ○ | T39: ○ | U39: ○ | W39: ○ | X39: ○ | AA39: 1 | AD39: ○
A40: 39 | B40: 香川県 | C40: 2017 | D40: 独立行政法人国立病院機構 四国こどもとおとなの医療センター | E40: 7 | F40: ○ | G40: ○ | H40: ○ | M40: ○ | P40: ○ | T40: ○ | V40: ○ | AA40: 1 | AB40: ○
A41: 40 | B41: 東京都 | C41: 2017 | D41: 独立行政法人地域医療機能推進機構 | E41: 18 | F41: ○ | G41: ○ | H41: ○ | K41: ○ | L41: ○ | M41: ○ | N41: ○ | O41: ○ | P41: ○ | Q41: ○ | R41: ○ | S41: ○ | T41: ○ | U41: ○ | V41: ○ | W41: ○ | X41: ○ | Z41: ○ | AA41: 2 | AB41: ○ | AD41: ○
A42: 41 | B42: 北海道 | C42: 2017 | D42: 社会医療法人恵和会 西岡病院 | E42: 1 | T42: ○ | AA42: 0
A43: 42 | B43: 東京都 | C43: 2017 | D43: 医療法人社団永生会 | E43: 2 | H43: ○ | P43: ○ | AA43: 0
A44: 43 | B44: 東京都 | C44: 2017 | D44: 社会福祉法人恩賜財団済生会支部東京都済生会 東京都済生会中央病院 | E44: 10 | F44: ○ | G44: ○ | I44: ○ | O44: ○ | R44: ○ | T44: ○ | V44: ○ | W44: ○ | X44: ○ | Y44: ○ | AA44: 1 | AD44: ○
A45: 44 | B45: 東京都 | C45: 2017 | D45: セコム医療システム株式会社 | E45: 14 | F45: ○ | G45: ○ | H45: ○ | M45: ○ | N45: ○ | O45: ○ | P45: ○ | Q45: ○ | R45: ○ | T45: ○ | U45: ○ | V45: ○ | W45: ○ | X45: ○ | AA45: 3 | AB45: ○ | AD45: ○ | AF45: ○
A46: 45 | B46: 神奈川県 | C46: 2017 | D46: 医療法人五星会 菊名記念病院 | E46: 2 | T46: ○ | V46: ○ | AA46: 0
A47: 46 | B47: 神奈川県 | C47: 2017 | D47: 医療法人横浜未来ヘルスケアシステム 戸塚共立第1病院 | E47: 18 | F47: ○ | G47: ○ | H47: ○ | K47: ○ | L47: ○ | M47: ○ | N47: ○ | O47: ○ | Q47: ○ | R47: ○ | S47: ○ | T47: ○ | U47: ○ | V47: ○ | W47: ○ | X47: ○ | Y47: ○ | Z47: ○ | AA47: 0
A48: 47 | B48: 神奈川県 | C48: 2017 | D48: 社会福祉法人恩賜財団済生会支部神奈川県済生会横浜市東部病院 | E48: 13 | F48: ○ | G48: ○ | H48: ○ | L48: ○ | M48: ○ | N48: ○ | O48: ○ | P48: ○ | Q48: ○ | R48: ○ | T48: ○ | V48: ○ | Y48: ○ | AA48: 1 | AB48: ○
A49: 49 | B49: 石川県 | C49: 2017 | D49: 医療法人社団和楽仁 芳珠記念病院 | E49: 5 | H49: ○ | M49: ○ | P49: ○ | T49: ○ | V49: ○ | AA49: 1 | AB49: ○
A50: 50 | B50: 石川県 | C50: 2017 | D50: 公立松任石川中央病院 | E50: 7 | L50: ○ | N50: ○ | O50: ○ | P50: ○ | S50: ○ | T50: ○ | U50: ○ | AA50: 0
A51: 51 | B51: 石川県 | C51: 2017 | D51: 国民健康保険 小松市民病院 | E51: 3 | P51: ○ | T51: ○ | V51: ○ | AA51: 0
A52: 52 | B52: 福岡県 | C52: 2017 | D52: 社会医療法人 弘恵会 ヨコクラ病院 | E52: 5 | H52: ○ | M52: ○ | P52: ○ | R52: ○ | T52: ○ | AA52: 1 | AB52: ○
A53: 53 | B53: 福岡県 | C53: 2017 | D53: 社会医療法人雪の聖母会 聖マリア病院 | E53: 9 | F53: ○ | G53: ○ | H53: ○ | M53: ○ | P53: ○ | R53: ○ | T53: ○ | W53: ○ | X53: ○ | AA53: 2 | AB53: ○ | AD53: ○
A54: 54 | B54: 佐賀県 | C54: 2017 | D54: 社会医療法人祐愛会 織田病院 | E54: 5 | H54: ○ | M54: ○ | P54: ○ | T54: ○ | W54: ○ | AA54: 1 | AB54: ○
A55: 55 | B55: 北海道 | C55: 2018 | D55: 旭川赤十字病院 | E55: 2 | P55: ○ | V55: ○ | AA55: 0
A56: 56 | B56: 北海道 | C56: 2018 | D56: 社会福祉法人恩賜財団済生会支部北海道済生会小樽病院 | E56: 10 | F56: ○ | G56: ○ | M56: ○ | P56: ○ | R56: ○ | T56: ○ | V56: ○ | W56: ○ | X56: ○ | Y56: ○ | AA56: 1 | AD56: ○
A57: 57 | B57: 秋田県 | C57: 2018 | D57: 社会医療法人青嵐会 本荘第一病院 | E57: 4 | N57: ○ | O57: ○ | R57: ○ | T57: ○ | AA57: 0
A58: 58 | B58: 東京都 | C58: 2018 | D58: 医療法人財団慈生会 野村病院 | E58: 1 | T58: ○ | AA58: 0
A59: 59 | B59: 東京都 | C59: 2018 | D59: 日本赤十字社 | E59: 12 | F59: ○ | G59: ○ | H59: ○ | M59: ○ | P59: ○ | R59: ○ | T59: ○ | U59: ○ | V59: ○ | W59: ○ | X59: ○ | Y59: ○ | AA59: 3 | AB59: ○ | AD59: ○ | AE59: ○
A60: 60 | B60: 東京都 | C60: 2018 | D60: 武蔵野赤十字病院 | E60: 11 | F60: ○ | G60: ○ | H60: ○ | P60: ○ | Q60: ○ | R60: ○ | T60: ○ | U60: ○ | V60: ○ | W60: ○ | X60: ○ | AA60: 1 | AD60: ○
A61: 61 | B61: 長野県 | C61: 2018 | D61: 学校法人佐久学園 佐久大学大学院看護学研究科看護学専攻 | E61: 10 | G61: ○ | H61: ○ | M61: ○ | P61: ○ | R61: ○ | T61: ○ | U61: ○ | V61: ○ | X61: ○ | Y61: ○ | AA61: 1 | AB61: ○
A62: 62 | B62: 大阪府 | C62: 2018 | D62: 公益社団法人 大阪府看護協会 | E62: 14 | F62: ○ | G62: ○ | H62: ○ | M62: ○ | N62: ○ | P62: ○ | Q62: ○ | R62: ○ | T62: ○ | U62: ○ | V62: ○ | W62: ○ | X62: ○ | Y62: ○ | AA62: 3 | AB62: ○ | AE62: ○ | AF62: ○
A63: 63 | B63: 兵庫県 | C63: 2018 | D63: 姫路赤十字病院 | E63: 12 | F63: ○ | G63: ○ | H63: ○ | O63: ○ | P63: ○ | R63: ○ | T63: ○ | U63: ○ | V63: ○ | W63: ○ | X63: ○ | Y63: ○ | AA63: 1 | AD63: ○
A64: 64 | B64: 鳥取県 | C64: 2018 | D64: 国立大学法人 鳥取大学医学部附属病院 | E64: 7 | F64: ○ | G64: ○ | R64: ○ | T64: ○ | V64: ○ | W64: ○ | X64: ○ | AA64: 0
A65: 65 | B65: 山口県 | C65: 2018 | D65: 綜合病院 山口赤十字病院 | E65: 4 | H65: ○ | M65: ○ | P65: ○ | T65: ○ | AA65: 1 | AB65: ○
A66: 66 | B66: 香川県 | C66: 2018 | D66: 高松赤十字病院 | E66: 5 | G66: ○ | H66: ○ | P66: ○ | T66: ○ | V66: ○ | AA66: 0
A67: 67 | B67: 福岡県 | C67: 2018 | D67: 社会医療法人共愛会 戸畑共立病院 | E67: 12 | F67: ○ | G67: ○ | H67: ○ | M67: ○ | N67: ○ | O67: ○ | P67: ○ | R67: ○ | S67: ○ | T67: ○ | W67: ○ | X67: ○ | AA67: 2 | AB67: ○ | AD67: ○
A68: 68 | B68: 沖縄県 | C68: 2018 | D68: 国立大学法人琉球大学 琉球大学病院 | E68: 20 | F68: ○ | G68: ○ | H68: ○ | I68: ○ | J68: ○ | K68: ○ | L68: ○ | M68: ○ | N68: ○ | O68: ○ | P68: ○ | Q68: ○ | R68: ○ | S68: ○ | T68: ○ | U68: ○ | V68: ○ | W68: ○ | X68: ○ | Y68: ○ | AA68: 5 | AB68: ○ | AD68: ○ | AE68: ○ | AF68: ○ | AG68: ○
A69: 69 | B69: 沖縄県 | C69: 2018 | D69: 社会医療法人仁愛会 浦添総合病院 | E69: 7 | F69: ○ | G69: ○ | H69: ○ | M69: ○ | R69: ○ | T69: ○ | X69: ○ | Y69: ○ | AA69: 1 | AE69: ○
A70: 70 | B70: 富山県 | C70: 2018 | D70: 医療法人社団藤聖会 富山西総合病院 | E70: 3 | T70: ○ | V70: ○ | X70: ○ | AA70: 0
A71: 71 | B71: 北海道 | C71: 2018 | D71: 医療法人社団 エス・エス・ジェイ 札幌整形循環器病院 | E71: 3 | T71: ○ | W71: ○ | X71: ○ | AA71: 0
A72: 72 | B72: 秋田県 | C72: 2018 | D72: 秋田赤十字病院 | E72: 4 | H72: ○ | M72: ○ | P72: ○ | T72: ○ | AA72: 1 | AB72: ○
A73: 73 | B73: 茨城県 | C73: 2018 | D73: 社会福祉法人恩賜財団済生会支部 茨城県済生会水戸済生会総合病院 | E73: 20 | F73: ○ | G73: ○ | H73: ○ | I73: ○ | J73: ○ | K73: ○ | L73: ○ | M73: ○ | N73: ○ | O73: ○ | P73: ○ | Q73: ○ | R73: ○ | S73: ○ | T73: ○ | U73: ○ | V73: ○ | W73: ○ | X73: ○ | Y73: ○ | AA73: 6 | AB73: ○ | AC73: ○ | AD73: ○ | AE73: ○ | AF73: ○ | AG73: ○
A74: 74 | B74: 福井県 | C74: 2018 | D74: 市立敦賀病院 | E74: 5 | H74: ○ | M74: ○ | O74: ○ | P74: ○ | T74: ○ | AA74: 1 | AB74: ○
A75: 75 | B75: 長野県 | C75: 2018 | D75: 伊那中央病院 | E75: 10 | F75: ○ | G75: ○ | H75: ○ | N75: ○ | P75: ○ | R75: ○ | T75: ○ | V75: ○ | Y75: ○ | Z75: ○ | AA75: 0
A76: 76 | B76: 岐阜県 | C76: 2018 | D76: 岐阜県厚生農業協同組合連合会 岐阜・西濃医療センター 西濃厚生病院 | E76: 2 | P76: ○ | R76: ○ | AA76: 0
A77: 77 | B77: 岐阜県 | C77: 2018 | D77: 岐阜県厚生農業協同組合連合会 岐阜・西濃医療センター 岐北厚生病院 | E77: 1 | N77: ○ | AA77: 0
A78: 78 | B78: 岐阜県 | C78: 2018 | D78: 岐阜県厚生農業協同組合連合会 飛騨医療センター 久美愛厚生病院 | E78: 2 | P78: ○ | T78: ○ | AA78: 0
A79: 79 | B79: 岐阜県 | C79: 2018 | D79: 岐阜県厚生農業協同組合連合会 中濃厚生病院 | E79: 5 | N79: ○ | R79: ○ | S79: ○ | T79: ○ | V79: ○ | AA79: 0
A80: 80 | B80: 岐阜県 | C80: 2018 | D80: 岐阜県厚生農業協同組合連合会 東濃中部医療センター 東濃厚生病院 | E80: 5 | G80: ○ | R80: ○ | T80: ○ | U80: ○ | Z80: ○ | AA80: 0
A81: 81 | B81: 岐阜県 | C81: 2018 | D81: 岐阜県厚生農業協同組合連合会 岐阜・西濃医療センター 西美濃厚生病院 | E81: 1 | M81: ○ | AA81: 0
A82: 82 | B82: 静岡県 | C82: 2018 | D82: 学校法人 聖隷学園 聖隷クリストファー大学 | E82: 8 | H82: ○ | M82: ○ | P82: ○ | T82: ○ | U82: ○ | V82: ○ | X82: ○ | Y82: ○ | AA82: 1 | AB82: ○
A83: 83 | B83: 静岡県 | C83: 2018 | D83: 公益社団法人有隣厚生会富士病院 | E83: 17 | F83: ○ | G83: ○ | H83: ○ | L83: ○ | M83: ○ | N83: ○ | O83: ○ | P83: ○ | Q83: ○ | R83: ○ | S83: ○ | T83: ○ | U83: ○ | V83: ○ | W83: ○ | X83: ○ | Y83: ○ | AA83: 3 | AB83: ○ | AD83: ○ | AF83: ○
A84: 84 | B84: 兵庫県 | C84: 2018 | D84: 医療法人社団慈恵会新須磨病院 | E84: 6 | N84: ○ | P84: ○ | R84: ○ | T84: ○ | V84: ○ | Y84: ○ | AA84: 0
A85: 85 | B85: 福岡県 | C85: 2018 | D85: 福岡赤十字病院 | E85: 11 | F85: ○ | G85: ○ | H85: ○ | P85: ○ | R85: ○ | T85: ○ | U85: ○ | V85: ○ | W85: ○ | X85: ○ | Y85: ○ | AA85: 2 | AD85: ○ | AE85: ○
A86: 86 | B86: 佐賀県 | C86: 2018 | D86: 社会医療法人謙仁会 山元記念病院 | E86: 5 | H86: ○ | M86: ○ | N86: ○ | P86: ○ | T86: ○ | AA86: 1 | AB86: ○
A87: 87 | B87: 大分県 | C87: 2018 | D87: 社会医療法人敬和会 大分岡病院 | E87: 15 | F87: ○ | G87: ○ | H87: ○ | K87: ○ | L87: ○ | M87: ○ | N87: ○ | O87: ○ | P87: ○ | Q87: ○ | R87: ○ | T87: ○ | U87: ○ | W87: ○ | X87: ○ | AA87: 4 | AB87: ○ | AC87: ○ | AD87: ○ | AF87: ○
A88: 88 | B88: 沖縄県 | C88: 2018 | D88: 医療法人徳洲会 南部徳洲会病院 | E88: 7 | H88: ○ | M88: ○ | N88: ○ | P88: ○ | R88: ○ | T88: ○ | V88: ○ | AA88: 1 | AB88: ○
A89: 89 | B89: 北海道 | C89: 2019 | D89: 清水赤十字病院 | E89: 6 | H89: ○ | M89: ○ | P89: ○ | T89: ○ | V89: ○ | W89: ○ | AA89: 1 | AB89: ○
A90: 90 | B90: 宮城県 | C90: 2019 | D90: 石巻赤十字病院 | E90: 7 | F90: ○ | G90: ○ | P90: ○ | R90: ○ | T90: ○ | U90: ○ | V90: ○ | AA90: 0
A91: 91 | B91: 宮城県 | C91: 2019 | D91: 医療法人 浄仁会 大泉記念病院 | E91: 4 | H91: ○ | M91: ○ | P91: ○ | T91: ○ | AA91: 1 | AB91: ○
A92: 92 | B92: 東京都 | C92: 2019 | D92: 公益財団法人日産厚生会玉川病院 | E92: 8 | K92: ○ | O92: ○ | P92: ○ | Q92: ○ | R92: ○ | T92: ○ | U92: ○ | V92: ○ | AA92: 0
A93: 93 | B93: 東京都 | C93: 2019 | D93: 社会医療法人社団正志会 花と森の東京病院 | E93: 8 | F93: ○ | G93: ○ | H93: ○ | N93: ○ | O93: ○ | R93: ○ | T93: ○ | Y93: ○ | AA93: 2 | AC93: ○ | AE93: ○
A94: 94 | B94: 神奈川県 | C94: 2019 | D94: 独立行政法人労働者健康安全機構 | E94: 18 | F94: ○ | G94: ○ | H94: ○ | I94: ○ | L94: ○ | M94: ○ | N94: ○ | O94: ○ | P94: ○ | Q94: ○ | R94: ○ | S94: ○ | T94: ○ | U94: ○ | V94: ○ | W94: ○ | X94: ○ | Y94: ○ | AA94: 4 | AD94: ○ | AE94: ○ | AF94: ○ | AG94: ○
A95: 95 | B95: 神奈川県 | C95: 2019 | D95: 横浜市立みなと赤十字病院 | E95: 10 | F95: ○ | G95: ○ | H95: ○ | O95: ○ | P95: ○ | R95: ○ | T95: ○ | U95: ○ | W95: ○ | X95: ○ | AA95: 2 | AD95: ○ | AG95: ○
A96: 96 | B96: 富山県 | C96: 2019 | D96: 富山県立中央病院 | E96: 14 | F96: ○ | G96: ○ | H96: ○ | I96: ○ | L96: ○ | N96: ○ | O96: ○ | P96: ○ | Q96: ○ | R96: ○ | T96: ○ | V96: ○ | X96: ○ | Y96: ○ | AA96: 2 | AE96: ○ | AG96: ○
A97: 97 | B97: 富山県 | C97: 2019 | D97: 南砺市民病院 | E97: 5 | H97: ○ | M97: ○ | P97: ○ | T97: ○ | V97: ○ | AA97: 1 | AB97: ○
A98: 98 | B98: 長野県 | C98: 2019 | D98: 社会医療法人財団慈泉会 相澤病院 | E98: 14 | F98: ○ | G98: ○ | H98: ○ | K98: ○ | L98: ○ | N98: ○ | O98: ○ | P98: ○ | Q98: ○ | R98: ○ | T98: ○ | V98: ○ | W98: ○ | X98: ○ | AA98: 0
A99: 99 | B99: 岐阜県 | C99: 2019 | D99: 県北西部地域医療センター 国保白鳥病院 | E99: 4 | H99: ○ | M99: ○ | P99: ○ | T99: ○ | AA99: 1 | AB99: ○
A100: 100 | B100: 静岡県 | C100: 2019 | D100: 国立大学法人浜松医科大学 浜松医科大学医学部附属病院 | E100: 17 | F100: ○ | G100: ○ | H100: ○ | I100: ○ | J100: ○ | K100: ○ | L100: ○ | N100: ○ | O100: ○ | Q100: ○ | R100: ○ | T100: ○ | U100: ○ | V100: ○ | W100: ○ | X100: ○ | Y100: ○ | AA100: 2 | AD100: ○ | AE100: ○
A101: 101 | B101: 愛知県 | C101: 2019 | D101: 医療法人名古屋澄心会 名古屋ハートセンター | E101: 10 | G101: ○ | H101: ○ | N101: ○ | O101: ○ | R101: ○ | S101: ○ | T101: ○ | U101: ○ | V101: ○ | X101: ○ | AA101: 0
A102: 102 | B102: 愛知県 | C102: 2019 | D102: 学校法人 藤田学園 藤田医科大学 保健衛生学部 臨床看護研修センター | E102: 18 | F102: ○ | G102: ○ | H102: ○ | I102: ○ | K102: ○ | L102: ○ | N102: ○ | O102: ○ | P102: ○ | Q102: ○ | R102: ○ | S102: ○ | T102: ○ | U102: ○ | V102: ○ | W102: ○ | X102: ○ | Y102: ○ | AA102: 4 | AC102: ○ | AD102: ○ | AE102: ○ | AG102: ○
A103: 103 | B103: 愛知県 | C103: 2019 | D103: 国立大学法人東海国立大学機構 名古屋大学医学部附属病院 | E103: 18 | F103: ○ | G103: ○ | H103: ○ | I103: ○ | K103: ○ | L103: ○ | M103: ○ | N103: ○ | O103: ○ | P103: ○ | Q103: ○ | R103: ○ | T103: ○ | U103: ○ | V103: ○ | W103: ○ | X103: ○ | Y103: ○ | AA103: 4 | AB103: ○ | AC103: ○ | AE103: ○ | AF103: ○
A104: 104 | B104: 大阪府 | C104: 2019 | D104: 医療法人藤井会 石切生喜病院 | E104: 13 | F104: ○ | G104: ○ | I104: ○ | N104: ○ | P104: ○ | Q104: ○ | R104: ○ | S104: ○ | T104: ○ | U104: ○ | W104: ○ | X104: ○ | Y104: ○ | AA104: 2 | AE104: ○ | AF104: ○
A105: 105 | B105: 大阪府 | C105: 2019 | D105: 社会福祉法人恩賜財団済生会支部大阪府済生会泉南医療福祉センター | E105: 2 | T105: ○ | U105: ○ | AA105: 0
A106: 106 | B106: 和歌山県 | C106: 2019 | D106: 日本赤十字社 和歌山医療センター | E106: 11 | F106: ○ | G106: ○ | O106: ○ | P106: ○ | R106: ○ | T106: ○ | U106: ○ | V106: ○ | W106: ○ | X106: ○ | Y106: ○ | AA106: 2 | AD106: ○ | AE106: ○
A107: 107 | B107: 鳥取県 | C107: 2019 | D107: 鳥取赤十字病院 | E107: 11 | F107: ○ | G107: ○ | H107: ○ | O107: ○ | P107: ○ | R107: ○ | T107: ○ | U107: ○ | V107: ○ | W107: ○ | X107: ○ | AA107: 1 | AD107: ○
A108: 108 | B108: 島根県 | C108: 2019 | D108: 松江市立病院 | E108: 7 | F108: ○ | G108: ○ | R108: ○ | T108: ○ | V108: ○ | W108: ○ | X108: ○ | AA108: 1 | AD108: ○
A109: 109 | B109: 島根県 | C109: 2019 | D109: 松江赤十字病院 | E109: 10 | F109: ○ | G109: ○ | H109: ○ | P109: ○ | R109: ○ | T109: ○ | U109: ○ | V109: ○ | W109: ○ | X109: ○ | AA109: 1 | AD109: ○
A110: 110 | B110: 広島県 | C110: 2019 | D110: 国立大学法人 広島大学病院 | E110: 10 | F110: ○ | G110: ○ | O110: ○ | P110: ○ | R110: ○ | T110: ○ | U110: ○ | V110: ○ | W110: ○ | X110: ○ | AA110: 0
A111: 112 | B111: 佐賀県 | C111: 2019 | D111: 地方独立行政法人 佐賀県医療センター好生館 | E111: 11 | F111: ○ | G111: ○ | K111: ○ | L111: ○ | N111: ○ | Q111: ○ | R111: ○ | T111: ○ | W111: ○ | X111: ○ | Y111: ○ | AA111: 2 | AD111: ○ | AE111: ○
A112: 113 | B112: 熊本県 | C112: 2019 | D112: 独立行政法人国立病院機構 熊本医療センター | E112: 6 | F112: ○ | G112: ○ | P112: ○ | R112: ○ | T112: ○ | Y112: ○ | AA112: 1 | AE112: ○
A113: 114 | B113: 鹿児島県 | C113: 2019 | D113: 公益財団法人慈愛会 今村総合病院 | E113: 17 | F113: ○ | G113: ○ | H113: ○ | L113: ○ | M113: ○ | N113: ○ | O113: ○ | P113: ○ | Q113: ○ | R113: ○ | S113: ○ | T113: ○ | U113: ○ | V113: ○ | W113: ○ | X113: ○ | Y113: ○ | AA113: 3 | AB113: ○ | AD113: ○ | AE113: ○
A114: 115 | B114: 栃木県 | C114: 2019 | D114: 学校法人獨協学園 獨協医科大学 | E114: 21 | F114: ○ | G114: ○ | H114: ○ | I114: ○ | J114: ○ | K114: ○ | L114: ○ | M114: ○ | N114: ○ | O114: ○ | P114: ○ | Q114: ○ | R114: ○ | S114: ○ | T114: ○ | U114: ○ | V114: ○ | W114: ○ | X114: ○ | Y114: ○ | Z114: ○ | AA114: 6 | AB114: ○ | AC114: ○ | AD114: ○ | AE114: ○ | AF114: ○ | AG114: ○
A115: 116 | B115: 群馬県 | C115: 2019 | D115: 医療法人 群馬会 群馬病院 | E115: 1 | Y115: ○ | AA115: 0
A116: 117 | B116: 群馬県 | C116: 2019 | D116: 前橋赤十字病院 | E116: 12 | F116: ○ | G116: ○ | H116: ○ | O116: ○ | P116: ○ | R116: ○ | T116: ○ | U116: ○ | V116: ○ | W116: ○ | X116: ○ | Y116: ○ | AA116: 2 | AD116: ○ | AE116: ○
A117: 118 | B117: 千葉県 | C117: 2019 | D117: 医療法人鉄蕉会 亀田総合病院 | E117: 18 | F117: ○ | G117: ○ | H117: ○ | I117: ○ | J117: ○ | K117: ○ | L117: ○ | M117: ○ | N117: ○ | O117: ○ | P117: ○ | Q117: ○ | R117: ○ | T117: ○ | V117: ○ | W117: ○ | X117: ○ | Y117: ○ | AA117: 4 | AB117: ○ | AC117: ○ | AE117: ○ | AG117: ○
A118: 119 | B118: 神奈川県 | C118: 2019 | D118: 学校法人日本医科大学 日本医科大学武蔵小杉病院 | E118: 8 | F118: ○ | G118: ○ | N118: ○ | R118: ○ | T118: ○ | V118: ○ | W118: ○ | X118: ○ | AA118: 1 | AD118: ○
A119: 120 | B119: 神奈川県 | C119: 2019 | D119: 学校法人 東海大学 | E119: 18 | F119: ○ | G119: ○ | H119: ○ | I119: ○ | K119: ○ | L119: ○ | M119: ○ | N119: ○ | O119: ○ | P119: ○ | Q119: ○ | R119: ○ | T119: ○ | U119: ○ | V119: ○ | W119: ○ | X119: ○ | Y119: ○ | AA119: 6 | AB119: ○ | AC119: ○ | AD119: ○ | AE119: ○ | AF119: ○ | AG119: ○
A120: 121 | B120: 新潟県 | C120: 2019 | D120: 国立大学法人新潟大学 新潟大学医歯学総合病院 | E120: 17 | F120: ○ | G120: ○ | H120: ○ | I120: ○ | J120: ○ | K120: ○ | L120: ○ | N120: ○ | P120: ○ | Q120: ○ | R120: ○ | T120: ○ | U120: ○ | V120: ○ | W120: ○ | X120: ○ | Y120: ○ | AA120: 3 | AD120: ○ | AF120: ○ | AG120: ○
A121: 122 | B121: 新潟県 | C121: 2019 | D121: 新潟県厚生農業協同組合連合会 上越総合病院 | E121: 6 | F121: ○ | G121: ○ | R121: ○ | T121: ○ | W121: ○ | X121: ○ | AA121: 1 | AD121: ○
A122: 123 | B122: 新潟県 | C122: 2019 | D122: 新潟県厚生農業協同組合連合会 長岡中央綜合病院 | E122: 5 | H122: ○ | M122: ○ | P122: ○ | R122: ○ | T122: ○ | AA122: 1 | AB122: ○
A123: 124 | B123: 新潟県 | C123: 2019 | D123: 新潟県厚生農業協同組合連合会 新潟医療センター | E123: 2 | N123: ○ | R123: ○ | AA123: 0
A124: 125 | B124: 富山県 | C124: 2019 | D124: 国立大学法人富山大学附属病院 | E124: 15 | F124: ○ | G124: ○ | I124: ○ | J124: ○ | K124: ○ | L124: ○ | N124: ○ | Q124: ○ | R124: ○ | T124: ○ | U124: ○ | V124: ○ | W124: ○ | X124: ○ | Y124: ○ | AA124: 0
A125: 126 | B125: 岐阜県 | C125: 2019 | D125: 医療法人澄心会 岐阜ハートセンター | E125: 9 | F125: ○ | G125: ○ | J125: ○ | K125: ○ | N125: ○ | P125: ○ | Q125: ○ | R125: ○ | T125: ○ | AA125: 0
A126: 127 | B126: 静岡県 | C126: 2019 | D126: 静岡県立静岡がんセンター | E126: 3 | P126: ○ | Q126: ○ | T126: ○ | AA126: 0
A127: 128 | B127: 静岡県 | C127: 2019 | D127: 社会福祉法人 聖隷福祉事業団 | E127: 11 | F127: ○ | G127: ○ | H127: ○ | M127: ○ | P127: ○ | R127: ○ | T127: ○ | U127: ○ | W127: ○ | X127: ○ | Y127: ○ | AA127: 3 | AB127: ○ | AD127: ○ | AE127: ○
A128: 129 | B128: 静岡県 | C128: 2019 | D128: 社会福祉法人 聖隷福祉事業団 総合病院 聖隷三方原病院 | E128: 17 | F128: ○ | G128: ○ | H128: ○ | K128: ○ | L128: ○ | M128: ○ | N128: ○ | O128: ○ | P128: ○ | Q128: ○ | R128: ○ | T128: ○ | U128: ○ | V128: ○ | W128: ○ | X128: ○ | Y128: ○ | AA128: 2 | AC128: ○ | AD128: ○
A129: 130 | B129: 京都府 | C129: 2019 | D129: 市立福知山市民病院 | E129: 14 | F129: ○ | G129: ○ | H129: ○ | K129: ○ | L129: ○ | M129: ○ | N129: ○ | O129: ○ | P129: ○ | Q129: ○ | R129: ○ | T129: ○ | W129: ○ | X129: ○ | AA129: 3 | AB129: ○ | AC129: ○ | AD129: ○
A130: 131 | B130: 大阪府 | C130: 2019 | D130: 大阪赤十字病院 | E130: 10 | F130: ○ | G130: ○ | H130: ○ | P130: ○ | R130: ○ | T130: ○ | U130: ○ | V130: ○ | W130: ○ | X130: ○ | AA130: 1 | AD130: ○
A131: 132 | B131: 大阪府 | C131: 2019 | D131: 国立研究開発法人 国立循環器病研究センター | E131: 11 | F131: ○ | G131: ○ | I131: ○ | N131: ○ | O131: ○ | R131: ○ | T131: ○ | V131: ○ | W131: ○ | X131: ○ | Y131: ○ | AA131: 0
A132: 133 | B132: 兵庫県 | C132: 2019 | D132: 神戸アドベンチスト病院 | E132: 4 | O132: ○ | R132: ○ | T132: ○ | U132: ○ | AA132: 0
A133: 134 | B133: 島根県 | C133: 2019 | D133: 島根県立中央病院 | E133: 13 | F133: ○ | G133: ○ | H133: ○ | L133: ○ | N133: ○ | P133: ○ | Q133: ○ | R133: ○ | T133: ○ | U133: ○ | V133: ○ | W133: ○ | X133: ○ | AA133: 1 | AD133: ○
A134: 135 | B134: 岡山県 | C134: 2019 | D134: 公益財団法人 大原記念倉敷中央医療機構 倉敷中央病院 | E134: 11 | F134: ○ | G134: ○ | I134: ○ | N134: ○ | O134: ○ | R134: ○ | T134: ○ | V134: ○ | W134: ○ | X134: ○ | Y134: ○ | AA134: 2 | AE134: ○ | AG134: ○
A135: 136 | B135: 北海道 | C135: 2020 | D135: 医療法人渓仁会 法人本部 | E135: 11 | F135: ○ | G135: ○ | H135: ○ | M135: ○ | O135: ○ | P135: ○ | R135: ○ | T135: ○ | V135: ○ | W135: ○ | X135: ○ | AA135: 2 | AB135: ○ | AD135: ○
A136: 137 | B136: 北海道 | C136: 2020 | D136: 医療法人徳洲会 札幌徳洲会病院 | E136: 13 | F136: ○ | G136: ○ | H136: ○ | M136: ○ | N136: ○ | O136: ○ | P136: ○ | Q136: ○ | R136: ○ | T136: ○ | W136: ○ | X136: ○ | Y136: ○ | AA136: 3 | AB136: ○ | AD136: ○ | AE136: ○
A137: 138 | B137: 北海道 | C137: 2020 | D137: 国立大学法人北海道大学病院 | E137: 15 | F137: ○ | G137: ○ | H137: ○ | I137: ○ | K137: ○ | L137: ○ | N137: ○ | O137: ○ | P137: ○ | Q137: ○ | R137: ○ | T137: ○ | V137: ○ | W137: ○ | X137: ○ | AA137: 2 | AC137: ○ | AD137: ○
A138: 139 | B138: 北海道 | C138: 2020 | D138: 社会医療法人禎心会 札幌禎心会病院 | E138: 4 | O138: ○ | R138: ○ | T138: ○ | U138: ○ | AA138: 0
A139: 140 | B139: 青森県 | C139: 2020 | D139: 学校法人青森田中学園 青森中央学院大学 | E139: 4 | H139: ○ | M139: ○ | P139: ○ | T139: ○ | AA139: 1 | AB139: ○
A140: 141 | B140: 秋田県 | C140: 2020 | D140: 国立大学法人秋田大学大学院医学系研究科保健学専攻（博士前期課程）臨床看護学分野 | E140: 21 | F140: ○ | G140: ○ | H140: ○ | I140: ○ | J140: ○ | K140: ○ | L140: ○ | M140: ○ | N140: ○ | O140: ○ | P140: ○ | Q140: ○ | R140: ○ | S140: ○ | T140: ○ | U140: ○ | V140: ○ | W140: ○ | X140: ○ | Y140: ○ | Z140: ○ | AA140: 0
A141: 142 | B141: 山形県 | C141: 2020 | D141: 国立大学法人山形大学医学部附属病院 | E141: 14 | F141: ○ | G141: ○ | H141: ○ | I141: ○ | K141: ○ | L141: ○ | N141: ○ | O141: ○ | Q141: ○ | R141: ○ | T141: ○ | W141: ○ | X141: ○ | Y141: ○ | AA141: 4 | AC141: ○ | AD141: ○ | AE141: ○ | AG141: ○
A142: 143 | B142: 山形県 | C142: 2020 | D142: 地方独立行政法人山形県・酒田市病院機構 日本海総合病院 | E142: 6 | F142: ○ | G142: ○ | R142: ○ | T142: ○ | W142: ○ | X142: ○ | AA142: 1 | AD142: ○
A143: 144 | B143: 群馬県 | C143: 2020 | D143: 群馬県公立大学法人 群馬県立県民健康科学大学 | E143: 3 | H143: ○ | T143: ○ | V143: ○ | AA143: 0
A144: 145 | B144: 千葉県 | C144: 2020 | D144: 千葉大学医学部附属病院 | E144: 21 | F144: ○ | G144: ○ | H144: ○ | I144: ○ | J144: ○ | K144: ○ | L144: ○ | M144: ○ | N144: ○ | O144: ○ | P144: ○ | Q144: ○ | R144: ○ | S144: ○ | T144: ○ | U144: ○ | V144: ○ | W144: ○ | X144: ○ | Y144: ○ | Z144: ○ | AA144: 0
A145: 146 | B145: 東京都 | C145: 2020 | D145: 医療法人社団ダイアステップ | E145: 5 | H145: ○ | M145: ○ | P145: ○ | T145: ○ | V145: ○ | AA145: 1 | AB145: ○
A146: 147 | B146: 東京都 | C146: 2020 | D146: 学校法人順天堂 順天堂大学医学部附属順天堂医院 | E146: 6 | F146: ○ | G146: ○ | R146: ○ | T146: ○ | W146: ○ | X146: ○ | AA146: 1 | AD146: ○
A147: 148 | B147: 東京都 | C147: 2020 | D147: 学校法人東邦大学 | E147: 13 | F147: ○ | G147: ○ | H147: ○ | N147: ○ | O147: ○ | P147: ○ | Q147: ○ | R147: ○ | T147: ○ | U147: ○ | W147: ○ | X147: ○ | Y147: ○ | AA147: 2 | AD147: ○ | AF147: ○
A148: 149 | B148: 東京都 | C148: 2020 | D148: 国立研究開発法人 国立国際医療研究センター | E148: 8 | F148: ○ | G148: ○ | L148: ○ | O148: ○ | Q148: ○ | R148: ○ | T148: ○ | U148: ○ | AA148: 0
A149: 150 | B149: 東京都 | C149: 2020 | D149: 東京科学大学病院 | E149: 20 | F149: ○ | G149: ○ | H149: ○ | I149: ○ | J149: ○ | K149: ○ | L149: ○ | M149: ○ | N149: ○ | O149: ○ | P149: ○ | Q149: ○ | R149: ○ | S149: ○ | T149: ○ | U149: ○ | V149: ○ | W149: ○ | X149: ○ | Y149: ○ | AA149: 0
A150: 151 | B150: 東京都 | C150: 2020 | D150: 国立大学法人東京大学 東京大学医学部附属病院 | E150: 6 | F150: ○ | G150: ○ | R150: ○ | T150: ○ | W150: ○ | X150: ○ | AA150: 1 | AD150: ○
A151: 152 | B151: 東京都 | C151: 2020 | D151: 町田市民病院 | E151: 7 | G151: ○ | M151: ○ | N151: ○ | P151: ○ | R151: ○ | T151: ○ | Y151: ○ | AA151: 0
A152: 153 | B152: 神奈川県 | C152: 2020 | D152: 医療法人徳洲会 湘南鎌倉総合病院 | E152: 16 | F152: ○ | G152: ○ | H152: ○ | I152: ○ | K152: ○ | L152: ○ | N152: ○ | O152: ○ | P152: ○ | Q152: ○ | R152: ○ | T152: ○ | U152: ○ | W152: ○ | X152: ○ | Y152: ○ | AA152: 4 | AC152: ○ | AD152: ○ | AE152: ○ | AF152: ○
A153: 154 | B153: 神奈川県 | C153: 2020 | D153: 学校法人北里研究所 北里大学病院 | E153: 12 | F153: ○ | G153: ○ | H153: ○ | L153: ○ | O153: ○ | P153: ○ | Q153: ○ | R153: ○ | T153: ○ | V153: ○ | W153: ○ | X153: ○ | AA153: 0
A154: 155 | B154: 神奈川県 | C154: 2020 | D154: 学校法人 聖マリアンナ医科大学 聖マリアンナ医科大学病院 看護師特定行為研修センター | E154: 21 | F154: ○ | G154: ○ | H154: ○ | I154: ○ | J154: ○ | K154: ○ | L154: ○ | M154: ○ | N154: ○ | O154: ○ | P154: ○ | Q154: ○ | R154: ○ | S154: ○ | T154: ○ | U154: ○ | V154: ○ | W154: ○ | X154: ○ | Y154: ○ | Z154: ○ | AA154: 0
A155: 156 | B155: 神奈川県 | C155: 2020 | D155: 公立大学法人横浜市立大学 YCU看護キャリア開発支援センター | E155: 18 | F155: ○ | G155: ○ | H155: ○ | K155: ○ | L155: ○ | M155: ○ | N155: ○ | O155: ○ | P155: ○ | Q155: ○ | R155: ○ | T155: ○ | U155: ○ | V155: ○ | W155: ○ | X155: ○ | Y155: ○ | Z155: ○ | AA155: 1 | AC155: ○
A156: 157 | B156: 神奈川県 | C156: 2020 | D156: 公立大学法人横浜市立大学 横浜市立大学大学院医学研究科看護学専攻 | E156: 8 | F156: ○ | G156: ○ | O156: ○ | R156: ○ | T156: ○ | V156: ○ | W156: ○ | X156: ○ | AA156: 1 | AD156: ○
A157: 158 | B157: 神奈川県 | C157: 2020 | D157: 社会福祉法人 親善福祉協会 国際親善総合病院 | E157: 10 | F157: ○ | G157: ○ | H157: ○ | L157: ○ | N157: ○ | P157: ○ | Q157: ○ | R157: ○ | T157: ○ | W157: ○ | AA157: 0
A158: 159 | B158: 富山県 | C158: 2020 | D158: 黒部市民病院 | E158: 2 | T158: ○ | V158: ○ | AA158: 0
A159: 160 | B159: 石川県 | C159: 2020 | D159: 金沢医科大学病院 | E159: 10 | F159: ○ | G159: ○ | N159: ○ | O159: ○ | R159: ○ | S159: ○ | T159: ○ | U159: ○ | W159: ○ | X159: ○ | AA159: 1 | AD159: ○
A160: 161 | B160: 福井県 | C160: 2020 | D160: 国立大学法人 福井大学大学院医学系研究科 | E160: 10 | F160: ○ | G160: ○ | N160: ○ | O160: ○ | R160: ○ | T160: ○ | U160: ○ | W160: ○ | X160: ○ | Y160: ○ | AA160: 2 | AD160: ○ | AE160: ○
A161: 162 | B161: 長野県 | C161: 2020 | D161: 地方独立行政法人長野県立病院機構 長野県立信州医療センター | E161: 5 | H161: ○ | M161: ○ | P161: ○ | T161: ○ | V161: ○ | AA161: 1 | AB161: ○
A162: 163 | B162: 長野県 | C162: 2020 | D162: 長野赤十字病院 | E162: 3 | H162: ○ | P162: ○ | T162: ○ | AA162: 0
A163: 164 | B163: 岐阜県 | C163: 2020 | D163: 岐阜大学医学部附属病院 | E163: 10 | F163: ○ | G163: ○ | K163: ○ | L163: ○ | N163: ○ | Q163: ○ | R163: ○ | T163: ○ | W163: ○ | X163: ○ | AA163: 1 | AD163: ○
A164: 165 | B164: 岐阜県 | C164: 2020 | D164: 社会医療法人蘇西厚生会 松波総合病院 | E164: 1 | H164: ○ | AA164: 0
A165: 166 | B165: 岐阜県 | C165: 2020 | D165: 美濃市立美濃病院 | E165: 4 | H165: ○ | M165: ○ | P165: ○ | T165: ○ | AA165: 1 | AB165: ○
A166: 167 | B166: 静岡県 | C166: 2020 | D166: 順天堂大学医学部附属静岡病院 | E166: 16 | F166: ○ | G166: ○ | H166: ○ | I166: ○ | M166: ○ | N166: ○ | O166: ○ | P166: ○ | Q166: ○ | R166: ○ | T166: ○ | U166: ○ | V166: ○ | W166: ○ | X166: ○ | Y166: ○ | AA166: 3 | AD166: ○ | AE166: ○ | AG166: ○
A167: 168 | B167: 愛知県 | C167: 2020 | D167: 愛知医科大学病院 | E167: 9 | F167: ○ | G167: ○ | H167: ○ | O167: ○ | P167: ○ | R167: ○ | T167: ○ | W167: ○ | X167: ○ | AA167: 1 | AD167: ○
A168: 169 | B168: 三重県 | C168: 2020 | D168: 国立大学法人三重大学医学部附属病院 | E168: 11 | F168: ○ | G168: ○ | K168: ○ | L168: ○ | N168: ○ | R168: ○ | T168: ○ | U168: ○ | W168: ○ | X168: ○ | Y168: ○ | AA168: 3 | AD168: ○ | AE168: ○ | AG168: ○
A169: 170 | B169: 京都府 | C169: 2020 | D169: 医療法人医仁会 武田総合病院 | E169: 13 | F169: ○ | G169: ○ | H169: ○ | I169: ○ | N169: ○ | O169: ○ | P169: ○ | R169: ○ | T169: ○ | U169: ○ | V169: ○ | X169: ○ | Y169: ○ | AA169: 2 | AE169: ○ | AG169: ○
A170: 171 | B170: 京都府 | C170: 2020 | D170: 医療法人社団石鎚会京都田辺中央病院 | E170: 15 | F170: ○ | G170: ○ | H170: ○ | I170: ○ | M170: ○ | N170: ○ | O170: ○ | P170: ○ | R170: ○ | T170: ○ | U170: ○ | V170: ○ | W170: ○ | X170: ○ | Y170: ○ | AA170: 4 | AB170: ○ | AD170: ○ | AE170: ○ | AG170: ○
A171: 172 | B171: 京都府 | C171: 2020 | D171: 京都府公立大学法人 京都府立医科大学 | E171: 15 | F171: ○ | G171: ○ | H171: ○ | I171: ○ | J171: ○ | K171: ○ | L171: ○ | N171: ○ | O171: ○ | Q171: ○ | R171: ○ | T171: ○ | W171: ○ | X171: ○ | Y171: ○ | AA171: 4 | AC171: ○ | AD171: ○ | AE171: ○ | AG171: ○
A172: 173 | B172: 大阪府 | C172: 2020 | D172: 大阪医科薬科大学病院 | E172: 15 | F172: ○ | G172: ○ | H172: ○ | K172: ○ | L172: ○ | M172: ○ | N172: ○ | O172: ○ | P172: ○ | Q172: ○ | R172: ○ | T172: ○ | W172: ○ | X172: ○ | Y172: ○ | AA172: 4 | AB172: ○ | AC172: ○ | AD172: ○ | AE172: ○
A173: 174 | B173: 大阪府 | C173: 2020 | D173: 大阪大学医学部附属病院 | E173: 17 | F173: ○ | G173: ○ | H173: ○ | K173: ○ | L173: ○ | M173: ○ | N173: ○ | O173: ○ | P173: ○ | Q173: ○ | R173: ○ | T173: ○ | U173: ○ | V173: ○ | W173: ○ | X173: ○ | Y173: ○ | AA173: 2 | AD173: ○ | AE173: ○
A174: 175 | B174: 大阪府 | C174: 2020 | D174: 関西医科大学附属病院 | E174: 12 | F174: ○ | G174: ○ | I174: ○ | L174: ○ | N174: ○ | O174: ○ | Q174: ○ | R174: ○ | T174: ○ | V174: ○ | W174: ○ | X174: ○ | AA174: 2 | AD174: ○ | AG174: ○
A175: 176 | B175: 兵庫県 | C175: 2020 | D175: 公益社団法人日本麻酔科学会 | E175: 6 | F175: ○ | G175: ○ | R175: ○ | T175: ○ | W175: ○ | X175: ○ | AA175: 1 | AD175: ○
A176: 177 | B176: 兵庫県 | C176: 2020 | D176: 社会医療法人 榮昌会 吉田病院 | E176: 3 | N176: ○ | R176: ○ | Y176: ○ | AA176: 0
A177: 178 | B177: 島根県 | C177: 2020 | D177: 公立大学法人島根県立大学 島根県立大学大学院看護学研究科看護学専攻 | E177: 8 | H177: ○ | M177: ○ | O177: ○ | P177: ○ | T177: ○ | U177: ○ | V177: ○ | Y177: ○ | AA177: 1 | AB177: ○
A178: 179 | B178: 島根県 | C178: 2020 | D178: 国立大学法人島根大学医学部附属病院 | E178: 8 | F178: ○ | G178: ○ | P178: ○ | R178: ○ | T178: ○ | V178: ○ | W178: ○ | X178: ○ | AA178: 1 | AD178: ○
A179: 180 | B179: 岡山県 | C179: 2020 | D179: 国立大学法人岡山大学 岡山大学病院 | E179: 12 | F179: ○ | G179: ○ | H179: ○ | K179: ○ | L179: ○ | N179: ○ | O179: ○ | Q179: ○ | R179: ○ | T179: ○ | W179: ○ | X179: ○ | AA179: 2 | AC179: ○ | AD179: ○
A180: 181 | B180: 山口県 | C180: 2020 | D180: 国立大学法人山口大学医学部附属病院 | E180: 13 | F180: ○ | G180: ○ | H180: ○ | K180: ○ | L180: ○ | N180: ○ | O180: ○ | Q180: ○ | R180: ○ | T180: ○ | W180: ○ | X180: ○ | Y180: ○ | AA180: 3 | AC180: ○ | AD180: ○ | AE180: ○
A181: 182 | B181: 徳島県 | C181: 2020 | D181: 国立大学法人徳島大学 徳島大学病院 | E181: 16 | F181: ○ | G181: ○ | H181: ○ | K181: ○ | L181: ○ | N181: ○ | O181: ○ | P181: ○ | Q181: ○ | R181: ○ | T181: ○ | U181: ○ | V181: ○ | W181: ○ | X181: ○ | Y181: ○ | AA181: 3 | AD181: ○ | AE181: ○ | AF181: ○
A182: 183 | B182: 香川県 | C182: 2020 | D182: 国立大学法人香川大学 | E182: 14 | F182: ○ | G182: ○ | H182: ○ | K182: ○ | L182: ○ | M182: ○ | N182: ○ | O182: ○ | P182: ○ | Q182: ○ | R182: ○ | T182: ○ | W182: ○ | X182: ○ | AA182: 3 | AB182: ○ | AC182: ○ | AD182: ○
A183: 184 | B183: 高知県 | C183: 2020 | D183: 国立大学法人高知大学 高知大学医学部附属病院 | E183: 16 | F183: ○ | G183: ○ | H183: ○ | K183: ○ | L183: ○ | N183: ○ | O183: ○ | P183: ○ | Q183: ○ | R183: ○ | T183: ○ | U183: ○ | V183: ○ | W183: ○ | X183: ○ | Y183: ○ | AA183: 4 | AC183: ○ | AD183: ○ | AE183: ○ | AF183: ○
A184: 185 | B184: 福岡県 | C184: 2020 | D184: 医療法人八女発心会 姫野病院 | E184: 4 | H184: ○ | R184: ○ | T184: ○ | U184: ○ | AA184: 0
A185: 186 | B185: 福岡県 | C185: 2020 | D185: 社会福祉法人恩賜財団済生会支部福岡県済生会福岡総合病院 | E185: 14 | F185: ○ | G185: ○ | H185: ○ | I185: ○ | L185: ○ | N185: ○ | O185: ○ | P185: ○ | R185: ○ | T185: ○ | V185: ○ | W185: ○ | X185: ○ | Y185: ○ | AA185: 3 | AD185: ○ | AE185: ○ | AG185: ○
A186: 187 | B186: 福岡県 | C186: 2020 | D186: 地方独立行政法人福岡市立病院機構 福岡市民病院 | E186: 7 | F186: ○ | G186: ○ | P186: ○ | R186: ○ | T186: ○ | W186: ○ | X186: ○ | AA186: 1 | AD186: ○
A187: 188 | B187: 長崎県 | C187: 2020 | D187: 国立大学法人 長崎大学病院 | E187: 10 | F187: ○ | G187: ○ | H187: ○ | L187: ○ | M187: ○ | N187: ○ | P187: ○ | Q187: ○ | R187: ○ | T187: ○ | AA187: 1 | AB187: ○
A188: 189 | B188: 長崎県 | C188: 2020 | D188: 独立行政法人国立病院機構 長崎医療センター | E188: 5 | G188: ○ | H188: ○ | R188: ○ | T188: ○ | V188: ○ | AA188: 0
A189: 190 | B189: 熊本県 | C189: 2020 | D189: 学校法人銀杏学園 熊本保健科学大学 キャリア教育研修センター | E189: 5 | H189: ○ | M189: ○ | P189: ○ | T189: ○ | Y189: ○ | AA189: 1 | AB189: ○
A190: 191 | B190: 熊本県 | C190: 2020 | D190: 国立大学法人熊本大学 熊本大学病院 | E190: 12 | F190: ○ | G190: ○ | H190: ○ | K190: ○ | L190: ○ | N190: ○ | O190: ○ | Q190: ○ | R190: ○ | T190: ○ | W190: ○ | X190: ○ | AA190: 3 | AC190: ○ | AD190: ○ | AG190: ○
A191: 192 | B191: 熊本県 | C191: 2020 | D191: 社会福祉法人恩賜財団済生会熊本病院 | E191: 17 | F191: ○ | G191: ○ | I191: ○ | J191: ○ | K191: ○ | L191: ○ | N191: ○ | O191: ○ | P191: ○ | Q191: ○ | R191: ○ | T191: ○ | U191: ○ | V191: ○ | W191: ○ | X191: ○ | Y191: ○ | AA191: 4 | AD191: ○ | AE191: ○ | AF191: ○ | AG191: ○
A192: 193 | B192: 青森県 | C192: 2020 | D192: 八戸市立市民病院 | E192: 13 | F192: ○ | G192: ○ | H192: ○ | K192: ○ | L192: ○ | N192: ○ | O192: ○ | Q192: ○ | R192: ○ | T192: ○ | W192: ○ | X192: ○ | Y192: ○ | AA192: 2 | AC192: ○ | AE192: ○
A193: 194 | B193: 宮城県 | C193: 2020 | D193: 独立行政法人国立病院機構仙台医療センター | E193: 11 | F193: ○ | G193: ○ | H193: ○ | N193: ○ | O193: ○ | P193: ○ | R193: ○ | T193: ○ | U193: ○ | Y193: ○ | Z193: ○ | AA193: 1 | AE193: ○
A194: 195 | B194: 宮城県 | C194: 2020 | D194: 国立大学法人東北大学 東北大学病院 | E194: 14 | F194: ○ | G194: ○ | H194: ○ | K194: ○ | L194: ○ | M194: ○ | N194: ○ | O194: ○ | P194: ○ | Q194: ○ | R194: ○ | T194: ○ | W194: ○ | X194: ○ | AA194: 2 | AC194: ○ | AD194: ○
A195: 196 | B195: 埼玉県 | C195: 2020 | D195: 防衛医科大学校病院 | E195: 6 | F195: ○ | G195: ○ | R195: ○ | T195: ○ | W195: ○ | X195: ○ | AA195: 1 | AD195: ○
A196: 197 | B196: 東京都 | C196: 2020 | D196: 独立行政法人国立病院機構東京医療センター | E196: 7 | N196: ○ | P196: ○ | Q196: ○ | R196: ○ | T196: ○ | U196: ○ | W196: ○ | AA196: 1 | AF196: ○
A197: 198 | B197: 神奈川県 | C197: 2020 | D197: 独立行政法人国立病院機構横浜医療センター | E197: 6 | F197: ○ | G197: ○ | R197: ○ | T197: ○ | W197: ○ | X197: ○ | AA197: 1 | AD197: ○
A198: 199 | B198: 新潟県 | C198: 2020 | D198: 独立行政法人国立病院機構 新潟病院 | E198: 5 | G198: ○ | H198: ○ | M198: ○ | P198: ○ | T198: ○ | AA198: 1 | AB198: ○
A199: 200 | B199: 富山県 | C199: 2020 | D199: 高岡市民病院 | E199: 3 | R199: ○ | T199: ○ | V199: ○ | AA199: 0
A200: 201 | B200: 山梨県 | C200: 2020 | D200: 国立大学法人山梨大学医学部附属病院 | E200: 18 | F200: ○ | G200: ○ | H200: ○ | I200: ○ | K200: ○ | L200: ○ | N200: ○ | O200: ○ | P200: ○ | Q200: ○ | R200: ○ | T200: ○ | U200: ○ | V200: ○ | W200: ○ | X200: ○ | Y200: ○ | Z200: ○ | AA200: 0
... 277 more rows
